Workbook

Sheet INICIO

Sheet Instructivo (hidden)
B2: Matriz Mapa de Riesgos
B4: Teniendo en cuenta que con la expedición del Decreto 1499 de 2017 “Por medio del cual se modifica el Decreto 1083 de 2015, Decreto Único Reglamentario del Sector Función Pública, en lo relacionado con el Sistema de Gestión establecido en el artículo 133 de la Ley 1753 de 2015”, se crea un solo Sistema de Gestión y se alinea con el Sistema de Control Interno, hoy todas las entidades públicas requieren actualizar y/o implementar el Modelo Integrado de Planeación y Gestión MIPG, modelo que incorpora el Modelo Estándar de Control Interno MECI a través de la 7a dimensión del mismo. En este marco general, el proceso de administración del riesgo es un esfuerzo conjunto entre la Alta Dirección y los servidores en todos sus niveles, ejercicio que inicia con la formulación de la política de Administración del Riesgo, la cual incluye los niveles de responsabilidad frente al seguimiento y evaluación, aspectos que deberán definirse acorde con el Esquema de Líneas de Defensa vinculado a la Dimensión 7. Teniendo en cuenta lo anterior y dada la necesidad de las entidades frente a la estructuración de los mapas de riesgos, como herramienta fundamental frente a la gestión del riesgo, el presente formato desarrolla un esquema completo acorde con los contenidos metodológicos de la Guía para la Administración del Riesgo y el diseño de controles V5. El formato cuenta con celdas parametrizadas y permite contar con los respectivos mapas de calor para riesgo inherente y riesgo residual.
B6: Orientaciones Generales
B7: Antes de iniciar con el diligenciamiento de la información en la matriz, se requiere haber avanzado en el análisis del proceso, su objetivo, alcance, actividades clave, considere los lineamientos establecidos en el Paso 2: identificación del riesgo, donde se explica ampliamente las bases para adelanter este análisis. Así mismo, considere en el Paso 3: valoración del riesgo los lineamientos para definir el No. de veces que se hace la actividad con la cual se relaciona el riesgo y su impacto en términos económicos o reputacionales. En este mismo paso se analizan los controles que deben responder a los atributos de eficiencia e informativos. NOTA: Si lo considera pertinente, es posible agregar hojas de trabajo adicionales al presente formato que permitan incluir la traza de estos análisis.
B9: El archivo contiene las siguientes hojas: - Hoja 1 Instructivo - Hoja 2 Mapa Riesgos: Encontrará la totalidad de la estructura para la identificación y valoración de los riesgos por proceso, programa o proyecto, acorde con el nivel de desagregación que la entidad considere necesaria.
C12: Columna | E12: Descripción - Lineamientos para el diligenciamiento
C13: Proceso | E13: Diligencie el nombre del proceso al cual se le identificarán y valorarán los riesgos.
C14: Objetivo | E14: Diligencie el objetivo del proceso.
C15: Alcance | E15: Diligencie el alcance del proceso.
C16: Referencia | E16: Permite definir unl consecutivo de riesgos. Una entidad puede ir en el riesgo 150, pero tener 70 riesgos, lo que permite llevar una traza de los riesgos. Esta información la debe administrar la oficina asesora de planeación o gerencia de riesgos. Cuando un el riesgo salga del mapa no existirá otro riesgo con el mismo número.
C17: Impacto | E17: Analice las consecuencias que puede ocasionar a la organización la materialización del riesgo, redacte de la forma más concreta posible.
C18: Causa Inmediata | E18: Circunstancias bajo las cuales se presenta el riesgo, es la situación más evidente frente al riesgo, redacte de la forma más concreta posible.
C19: Causa Raíz | E19: Causa principal o básica, corresponde a las razones por la cuales se puede presentar el riesgo, redacte de la forma más concreta posible.
C20: Descripción del Riesgo | E20: Consolida o resume los análisis sobre impacto + causa inmediata + causa raíz, permitiendo contar con una redacción clara y concreta del riesgo indentificado. Tenga en cuenta la estructura de alto nivel establecida en al guía, inicia con POSIBILIDAD DE + Impacto para la entidad (Qué) + Causa Inmediata (Cómo) + Causa Raíz (Por qué)
C21: Clasificación del Riesgo | E21: Utilice la lista de despligue que se encuentra parametrizada, le aparecerán las opciones: i)Daños Activos Fisicos, ii)Ejecucion y Administracion de procesos, iii)Fallas Tecnologicas, iv)Fraude Externo, v)Fraude Interno, vi)Relaciones Laborales, vii)Usuarios, productos y practicas organizacionales.
C22: Frecuencia con la cual se lleva a cabo la actividad | E22: Defina el # de veces que se ejecuta la actividad durante el año, (Recuerde la probabilidad e ocurrencia del riesgo se defien como el No. de veces que se pasa por el punto de riesgo en el periodo de 1 año). La matriz automáticamente hará el cálculo para el nivel de probabilidad inherente (Columnas H-I)
C23: Criterios de Impacto | E23: Utilice la lista de despligue que se encuentra parametrizada, le aparecerán las opciones de la tabla de Impacto en la tabla Impacto del presente documento. La matriz automáticamente hará el cálculo para el nivel de impacto inherente (Columnas K)
C24: Zona de Riesgo Inherente | E24: Teniendo en cuenta que ingresó la información de PROBABILIDAD e IMPACTO, la matriz automáticamente hará el cálculo para la zona de riesgo inherente (Columna O)
C25: Descripción del Control | E25: Recuerde que el control se define como la medida que permite reducir o mitigar un riesgo. Defina el control (es) que atacan la causa raíz del riesgo, considere la estructura explicada en la guía: Responsable de ejecutar el control + Acción + Complemento
C26: Afectación | E26: Esta casilla no se diligencia, depende de la selección en la columna S.
C27: ATRIBUTOS EFICIENCIA Tipo | E27: Utilice la lista de despligue que se encuentra parametrizada, le aparecerán las opciones: i)Preventivo, ii)Detectivo, iii)Correctivo.
C28: ATRIBUTOS EFICIENCIA Implementación | E28: Utilice la lista de despligue que se encuentra parametrizada, le aparecerán las opciones: i)Automático, ii)Manual.
C29: ATRIBUTOS EFICIENCIA Implementación | E29: Utilice la lista de despligue que se encuentra parametrizada, le aparecerán las opciones: i)Automático, ii)Manual.
C30: ATRIBUTOS EFICIENCIA Calificación | E30: La matriz automáticamente hará el cálculo para el control analizado (Columna T)
C31: ATRIBUTOS INFORMATIVOS Documentación | E31: Utilice la lista de despligue que se encuentra parametrizada, le aparecerán las opciones: i)Documentado, ii)Sin documentar.
C32: ATRIBUTOS INFORMATIVOS Frecuencia | E32: Utilice la lista de despligue que se encuentra parametrizada, le aparecerán las opciones: i)Continua, ii)Aleatoria.
C33: ATRIBUTOS INFORMATIVOS Evidencia | E33: Utilice la lista de despligue que se encuentra parametrizada, le aparecerán las opciones: i)Con Registro, ii) Sin Registro.
C34: Evaluación del Nivel de Riesgo - Nivel de Riesgo Residual | E34: La matriz automáticamente hará el cálculo, acorde con el control o controles definidos con sus atributos analizados, lo que permitirá establecer el nivel de riesgo inherente (Columnas Y- Z- AA -AB- AC-AD).
C35: Tratamiento | E35: Utilice la lista de despligue que se encuentra parametrizada, le aparecerán las opciones: i)Aceptar, ii)Evitar, iii)Reducir (compartir), iv)Reducir (mitigar).
C36: Plan de Acción Responsable, fecha implementación, fecha seguimiento, seguimiento. | E36: Esta casilla dependerá del tratamiento establecido, si es Aceptar no se requieren acciones adicionales, en caso de escoger Reducir (mitigar) se deben diligenciar las acciones que se adelantarán como complemento a los controles establecidos, no necesariamente son controles adicionales. Para Reducir (compartir), es viable diligenciar la acción que deriva de esta (ejemplo póliza seguros, terceración), indicando información relevante.
C37: Estado | E37: Utilice la lista de despligue que se encuentra parametrizada, le aparecerán las opciones: i)Finalizado, ii)En curso, la selección en este caso dependerá de las acciones del plan que se hayan establecido en cada caso.
B40: - Hoja 3 Mapa Riesgos de Corrupción: Encontrará la totalidad de la estructura para la identificación y valoración de los riesgos por proceso, programa o proyecto, acorde con el nivel de desagregación que la entidad considere necesaria.
B41: - Hoja 4 Matriz de Calor Inherente: En esta hoja, en la medida en que ese diligencia el Mapa Final, se verán reflejados los riesgos en su zona correspondiente. Esta hoja no se diligencia se genera de manera automática.
B42: - Hoja 5 Matriz de Calor Residual: En esta hoja, en la medida en que ese diligencia el Mapa Final, se verán reflejados los riesgos en su zona correspondiente. Esta hoja no se diligencia se genera de manera automática.
B43: - Hoja 6 Tabla de probabilidad: Tabla referente para todos los cálculos (no se diligencia)
B44: - Hoja 7 Tabla de Impacto: Tabla referente para todos los cálculos (no se diligencia)
B45: - Hoja 8 Tabla de Valoración de Controles: Tabla referente para todos los cálculos (no se diligencia)

Sheet Matriz Riesgos de Gestión
F1: PLANIFICACION DEL DESARROLLO INSTITUCIONAL | H1: Código:
H2: Versión: 01
F3: IDENTIFICACIÓN DE RIESGOS | H3: Fecha de aprobación:
A6: Proceso: | C6: ADMINISTRACIÓN DE RIESGOS
A7: Identificación del riesgo | J7: Análisis del riesgo inherente | Q7: Evaluación del riesgo - Valoración de los controles | Z7: Evaluación del riesgo - Nivel del riesgo residual | AH7: Plan de Acción
A8: Referencia | B8: Proceso | C8: Descripción del Riesgo (VIGENCIA 2022) | D8: Impacto | E8: Causa Inmediata ¿Cómo? | F8: Causa Raíz ¿Debido a que? | G8: Tipo de Riesgo | H8: Clasificación del Riesgo | I8: Frecuencia con la cual se realiza la actividad anual | J8: Probabilidad Inherente | K8: % | L8: Criterios de impacto | M8: Observación de criterio | N8: Impacto Inherente | O8: % | P8: Zona de Riesgo Inherente | Q8: No. Control | R8: Descripción del Control | S8: Afectación | T8: Atributos | Z8: Probabilidad Residual | AA8: Probabilidad Residual Final | AB8: % | AC8: Impacto Residual Final | AD8: % | AE8: Zona de Riesgo Final | AF8: Tratamiento | AG8: Plan de acción | AH8: Nombre del Responsable | AI8: Cargo del Responsable | AJ8: Área del Responsable | AK8: Jefe del Área del Responsable | AL8: Fecha Implementación | AM8: Fecha Compromiso | AN8: Número de Riesgo en Aplicativo | AO8: Registro de Actualizaciones
A9: 1 | B9: DIRECCIONAMIENTO ESTRATÉGICO | C9: Posibilidad de afectación Reputacional por mala imagen ante los directivos y la ciudadanía debido a la falta de capacitación en la formulación de indicadores del PAA, articulados con indicadores PES, PEI, PND y metas estrategicas. | D9: Reputacional | E9: mala imagen ante los directivos y la ciudadanía | F9: la falta de capacitación en la formulación de indicadores del PAA, articulados con indicadores PES, PEI, PND y metas estrategicas. | G9: Cumplimiento | H9: Ejecucion y Administracion de procesos | I9: 1 | J9: =IF(I9<=0,"",IF(I9<=2,"Muy Baja",IF(I9<=5,"Baja",IF(I9<=19,"Media",IF(I9<=50,"Alta","Muy Alta"))))) -> Muy Baja | K9: =IF(J9="","",IF(J9="Muy Baja",0.2,IF(J9="Baja",0.4,IF(J9="Media",0.6,IF(J9="Alta",0.8,IF(J9="Muy Alta",1,)))))) -> 0.2 | L9: El riesgo afecta la imagen de la entidad a nivel nacional, con efecto publicitarios sostenible a nivel país | M9: =IF(NOT(ISERROR(MATCH(L9,'Tabla Impacto'!$B$221:$B$223,0))),'Tabla Impacto'!$F$223&"Por favor no seleccionar los criterios de impacto(Afectación Económica o presupuestal y Pérdida Reputacional)",L9) -> El riesgo afecta la imagen de la entidad a nivel nacional, con efecto publicitarios sostenible a nivel país | N9: =IF(OR(M9='Tabla Impacto'!$C$11,M9='Tabla Impacto'!$D$11),"Leve",IF(OR(M9='Tabla Impacto'!$C$12,M9='Tabla Impacto'!$D$12),"Menor",IF(OR(M9='Tabla Impacto'!$C$13,M9='Tabla Impacto'!$D$13),"Moderado",IF(OR(M9='Tabla Impacto'!$C$14,M9='Tabla Impacto'!$D$14),"Mayor",IF(OR(M9='Tabla Impacto'!$C$15,M9='Tabla Impacto'!$D$15),"Catastrófico",""))))) -> Catastrófico | O9: =IF(N9="","",IF(N9="Leve",0.2,IF(N9="Menor",0.4,IF(N9="Moderado",0.6,IF(N9="Mayor",0.8,IF(N9="Catastrófico",1,)))))) -> 1 | P9: =IF(OR(AND(J9="Muy Baja",N9="Leve"),AND(J9="Muy Baja",N9="Menor"),AND(J9="Baja",N9="Leve")),"Bajo",IF(OR(AND(J9="Muy baja",N9="Moderado"),AND(J9="Baja",N9="Menor"),AND(J9="Baja",N9="Moderado"),AND(J9="Media",N9="Leve"),AND(J9="Media",N9="Menor"),AND(J9="Media",N9="Moderado"),AND(J9="Alta",N9="Leve"),AND(J9="Alta",N9="Menor")),"Moderado",IF(OR(AND(J9="Muy Baja",N9="Mayor"),AND(J9="Baja",N9="Mayor"),AND(J9="Media",N9="Mayor"),AND(J9="Alta",N9="Moderado"),AND(J9="Alta",N9="Mayor"),AND(J9="Muy Alta",N9="Leve"),AND(J9="Muy Alta",N9="Menor"),AND(J9="Muy Alta",N9="Moderado"),AND(J9="Muy Alta",N9="Mayor")),"Alto",IF(OR(AND(J9="Muy Baja",N9="Catastrófico"),AND(J9="Baja",N9="Catastrófico"),AND(J9="Media",N9="Catastrófico"),AND(J9="Alta",N9="Catastrófico"),AND(J9="Muy Alta",N9="Catastrófico")),"Extremo","")))) -> Extremo | Q9: 1 | R9: El profesional de la Oficina de Planeación y Gestión Internacional empezará el proceso para la formulación del plan de acción desde la vigencia anterior, brindando capacitaciones y asesorías a los líderes de cada dependencia para indicarles como se formulan los planes y solucionar dudas en su formulación para la siguiente vigencia, para esta actividad, se enviará una comunicación a las áreas con el cronograma establecido, previo a la publicación del mismo en la página web del Ministerio. | S9: =IF(OR(T9="Preventivo",T9="Detectivo"),"Probabilidad",IF(T9="Correctivo","Impacto","")) -> Probabilidad | T9: Preventivo | U9: Manual | V9: =IF(AND(T9="Preventivo",U9="Automático"),"50%",IF(AND(T9="Preventivo",U9="Manual"),"40%",IF(AND(T9="Detectivo",U9="Automático"),"40%",IF(AND(T9="Detectivo",U9="Manual"),"30%",IF(AND(T9="Correctivo",U9="Automático"),"35%",IF(AND(T9="Correctivo",U9="Manual"),"25%","")))))) -> 40% | W9: Documentado | X9: Continua | Y9: Con Registro | Z9: =IFERROR(IF(S9="Probabilidad",(K9-(+K9*V9)),IF(S9="Impacto",K9,"")),"") -> 0.12 | AA9: =IFERROR(IF(Z9="","",IF(Z9<=0.2,"Muy Baja",IF(Z9<=0.4,"Baja",IF(Z9<=0.6,"Media",IF(Z9<=0.8,"Alta","Muy Alta"))))),"") -> Muy Baja | AB9: =+Z9 -> 0.12 | AC9: =IFERROR(IF(AD9="","",IF(AD9<=0.2,"Leve",IF(AD9<=0.4,"Menor",IF(AD9<=0.6,"Moderado",IF(AD9<=0.8,"Mayor","Catastrófico"))))),"") -> Catastrófico | AD9: =IFERROR(IF(S9="Impacto",(O9-(+O9*V9)),IF(S9="Probabilidad",O9,"")),"") -> 1 | AE9: =IFERROR(IF(OR(AND(AA9="Muy Baja",AC9="Leve"),AND(AA9="Muy Baja",AC9="Menor"),AND(AA9="Baja",AC9="Leve")),"Bajo",IF(OR(AND(AA9="Muy baja",AC9="Moderado"),AND(AA9="Baja",AC9="Menor"),AND(AA9="Baja",AC9="Moderado"),AND(AA9="Media",AC9="Leve"),AND(AA9="Media",AC9="Menor"),AND(AA9="Media",AC9="Moderado"),AND(AA9="Alta",AC9="Leve"),AND(AA9="Alta",AC9="Menor")),"Moderado",IF(OR(AND(AA9="Muy Baja",AC9="Mayor"),AND(AA9="Baja",AC9="Mayor"),AND(AA9="Media",AC9="Mayor"),AND(AA9="Alta",AC9="Moderado"),AND(AA9="Alta",AC9="Mayor"),AND(AA9="Muy Alta",AC9="Leve"),AND(AA9="Muy Alta",AC9="Menor"),AND(AA9="Muy Alta",AC9="Moderado"),AND(AA9="Muy Alta",AC9="Mayor")),"Alto",IF(OR(AND(AA9="Muy Baja",AC9="Catastrófico"),AND(AA9="Baja",AC9="Catastrófico"),AND(AA9="Media",AC9="Catastrófico"),AND(AA9="Alta",AC9="Catastrófico"),AND(AA9="Muy Alta",AC9="Catastrófico")),"Extremo","")))),"") -> Extremo | AF9: Reducir (mitigar) | AG9: Realizar capacitación sobre la formulación del PAA, envío de comunicaciones con el cronograma definido para formular el PAA y articulación entre el PES, el PEI, los indicadores del PND y las metas estrategicas; acordando fechas para realizar el acompañamiento personalizado a los funcionarios, el cual se realizará en los meses de octubre a diciembre. | AH9: JACOME CONTRERAS EDGAR JOSE | AI9: CONTRATISTA | AJ9: Oficina de Planeación y Gestión Internacional | AK9: Luis Villanueva | AL9: 2022-01-03 | AM9: 2022-01-31
A10: =A9+1 -> 2 | B10: DIRECCIONAMIENTO ESTRATÉGICO | C10: Posibilidad de afectación Reputacional por mala imagen ante el comité directivo al no permitir realizar seguimiento al cumplimiento de las metas de la entidad por parte de los líderes de los procesos debido al incumplimiento al seguimiento del Plan de Acción del Ministerio, en lo relacionado con la presentación de informes trimestrales del avance (por falta de insumos para su construcción) | D10: Reputacional | E10: mala imagen ante el comité directivo al no permitir realizar seguimiento al cumplimiento de las metas de la entidad por parte de los líderes de los procesos | F10: incumplimiento al seguimiento del Plan de Acción del Ministerio, en lo relacionado con la presentación de informes trimestrales del avance (por falta de insumos para su construcción) | G10: Operativos | H10: Ejecucion y Administracion de procesos | I10: 12 | J10: Media | K10: 0.6 | L10: El riesgo afecta la imagen de la entidad internamente, de conocimiento general, nivel interno, de junta dircetiva y accionistas y/o de provedores | M10: =IF(NOT(ISERROR(MATCH(L10,'Tabla Impacto'!$B$221:$B$223,0))),'Tabla Impacto'!$F$223&"Por favor no seleccionar los criterios de impacto(Afectación Económica o presupuestal y Pérdida Reputacional)",L10) -> El riesgo afecta la imagen de la entidad internamente, de conocimiento general, nivel interno, de junta dircetiva y accionistas y/o de provedores | N10: =IF(OR(M10='Tabla Impacto'!$C$11,M10='Tabla Impacto'!$D$11),"Leve",IF(OR(M10='Tabla Impacto'!$C$12,M10='Tabla Impacto'!$D$12),"Menor",IF(OR(M10='Tabla Impacto'!$C$13,M10='Tabla Impacto'!$D$13),"Moderado",IF(OR(M10='Tabla Impacto'!$C$14,M10='Tabla Impacto'!$D$14),"Mayor",IF(OR(M10='Tabla Impacto'!$C$15,M10='Tabla Impacto'!$D$15),"Catastrófico",""))))) -> Menor | O10: 0.4 | P10: Moderado | Q10: 1 | R10: El profesional de la Oficina de Planeación y Gestión Internacional envía las notificaciones a las dependencias con tiempo de antelación, solicitando el reporte de avance de los indicadores de resultado y de producto para su registro en el aplicativo y realizar el acompañamiento permanente a los funcionarios que lo requieran, al momento de diligenciar la información. | S10: =IF(OR(T10="Preventivo",T10="Detectivo"),"Probabilidad",IF(T10="Correctivo","Impacto","")) -> Probabilidad | T10: Preventivo | U10: Manual | V10: =IF(AND(T10="Preventivo",U10="Automático"),"50%",IF(AND(T10="Preventivo",U10="Manual"),"40%",IF(AND(T10="Detectivo",U10="Automático"),"40%",IF(AND(T10="Detectivo",U10="Manual"),"30%",IF(AND(T10="Correctivo",U10="Automático"),"35%",IF(AND(T10="Correctivo",U10="Manual"),"25%","")))))) -> 40% | W10: Documentado | X10: Continua | Y10: Con Registro | Z10: 0.36 | AA10: =IFERROR(IF(Z10="","",IF(Z10<=0.2,"Muy Baja",IF(Z10<=0.4,"Baja",IF(Z10<=0.6,"Media",IF(Z10<=0.8,"Alta","Muy Alta"))))),"") -> Baja | AB10: =+Z10 -> 0.36 | AC10: =IFERROR(IF(AD10="","",IF(AD10<=0.2,"Leve",IF(AD10<=0.4,"Menor",IF(AD10<=0.6,"Moderado",IF(AD10<=0.8,"Mayor","Catastrófico"))))),"") -> Menor | AD10: 0.4 | AE10: =IFERROR(IF(OR(AND(AA10="Muy Baja",AC10="Leve"),AND(AA10="Muy Baja",AC10="Menor"),AND(AA10="Baja",AC10="Leve")),"Bajo",IF(OR(AND(AA10="Muy baja",AC10="Moderado"),AND(AA10="Baja",AC10="Menor"),AND(AA10="Baja",AC10="Moderado"),AND(AA10="Media",AC10="Leve"),AND(AA10="Media",AC10="Menor"),AND(AA10="Media",AC10="Moderado"),AND(AA10="Alta",AC10="Leve"),AND(AA10="Alta",AC10="Menor")),"Moderado",IF(OR(AND(AA10="Muy Baja",AC10="Mayor"),AND(AA10="Baja",AC10="Mayor"),AND(AA10="Media",AC10="Mayor"),AND(AA10="Alta",AC10="Moderado"),AND(AA10="Alta",AC10="Mayor"),AND(AA10="Muy Alta",AC10="Leve"),AND(AA10="Muy Alta",AC10="Menor"),AND(AA10="Muy Alta",AC10="Moderado"),AND(AA10="Muy Alta",AC10="Mayor")),"Alto",IF(OR(AND(AA10="Muy Baja",AC10="Catastrófico"),AND(AA10="Baja",AC10="Catastrófico"),AND(AA10="Media",AC10="Catastrófico"),AND(AA10="Alta",AC10="Catastrófico"),AND(AA10="Muy Alta",AC10="Catastrófico")),"Extremo","")))),"") -> Moderado | AF10: Evitar | AG10: Realizar acompañamiento personalizado por parte de los servidores de la OPGI a los funcionarios para hacer el respectivo seguimiento a los indicadores del Plan de acción y enviar comunicaciones a las dependencias, previas a las fechas de corte de los informes de seguimiento para solicitar el cargue de la información en los plazos determinados. | AH10: JACOME CONTRERAS EDGAR JOSE | AI10: CONTRATISTA | AJ10: Oficina de Planeación y Gestión Internacional | AK10: Luis Villanueva | AL10: 2022-01-03 | AM10: 2022-12-31
A11: =A10+1 -> 3 | B11: DIRECCIONAMIENTO ESTRATÉGICO | C11: Posibilidad de afectación Económico y Reputacional por demandas y quejas de los interesados en la gestión de los tramites debido a procedimientos erroneos publicados en el SUIT frente a lo establecido en la normatividad | D11: Económico y Reputacional | E11: demandas y quejas de los interesados en la gestión de los tramites | F11: procedimientos erroneos publicados en el SUIT frente a lo establecido en la normatividad | G11: Operativos | H11: Usuarios, productos y practicas , organizacionales | I11: 24 | J11: Alta | K11: 0.8 | L11: Mayor a 500 SMLMV | M11: =IF(NOT(ISERROR(MATCH(L11,'Tabla Impacto'!$B$221:$B$223,0))),'Tabla Impacto'!$F$223&"Por favor no seleccionar los criterios de impacto(Afectación Económica o presupuestal y Pérdida Reputacional)",L11) -> Mayor a 500 SMLMV | N11: =IF(OR(M11='Tabla Impacto'!$C$11,M11='Tabla Impacto'!$D$11),"Leve",IF(OR(M11='Tabla Impacto'!$C$12,M11='Tabla Impacto'!$D$12),"Menor",IF(OR(M11='Tabla Impacto'!$C$13,M11='Tabla Impacto'!$D$13),"Moderado",IF(OR(M11='Tabla Impacto'!$C$14,M11='Tabla Impacto'!$D$14),"Mayor",IF(OR(M11='Tabla Impacto'!$C$15,M11='Tabla Impacto'!$D$15),"Catastrófico",""))))) -> Catastrófico | O11: 1 | P11: Extremo | Q11: 1 | R11: El profesional de la Oficina de Planeación y Gestión Internacional verifica que la informacion de los tramites publicaods en el SUIT se encuentra actualizada y sea la correcta a través de una plantilla de validación de información de cada tramite y la revisa con los encargados misionales correspondientes. | S11: Probabilidad | T11: Preventivo | U11: Manual | V11: 40% | W11: Documentado | X11: Continua | Y11: Con Registro | Z11: 0.48 | AA11: Media | AB11: 0.48 | AC11: Catastrófico | AD11: 1 | AE11: Extremo | AF11: Evitar | AG11: Confrontar contenido del formato integrado del trámite, frente a las normas y los aspectos técnicos exigibles | AH11: AIDA MARCELA NIETO PENAGOS | AI11: Profesional Especializado | AJ11: OPGI / Grupo de Gestión y Seguimiento Sectorial | AK11: Paula Andrea Palacio | AL11: 2022-03-01 | AM11: 2021-12-31
A12: 4 | B12: DIRECCIONAMIENTO ESTRATÉGICO | C12: Posibilidad de afectación Reputacional por Generación de Reprocesos debido a debil soporte justificativo (Legal, tecnico, economico, ambiental), por los retrasos en el tramite de ajuste de ficha de proyectos | D12: Reputacional | E12: Generación de Reprocesos | F12: debil soporte justificativo (Legal, tecnico, economico, ambiental), por los retrasos en el tramite de ajuste de ficha de proyectos | G12: Estratégico | H12: Ejecucion y Administracion de procesos | I12: 160 | J12: Muy Alta | K12: 1 | L12: El riesgo afecta la imagen de alguna área de la organización | M12: El riesgo afecta la imagen de alguna área de la organización | N12: Leve | O12: 0.2 | P12: Alto | Q12: 1 | R12: Los profesional del Grupo de Planeación y Programación, realizan controles de formulación y de viablididad tecnica, a tarvés de cuestionarios mediante el apllicativo SUIFP en donde se verifican, rechazan y/o aprueban las justificaciones de los proyectos. | S12: Probabilidad | T12: Preventivo | U12: Manual | V12: 40% | W12: Documentado | X12: Continua | Y12: Con Registro | Z12: 0.6 | AA12: Media | AB12: 0.6 | AC12: Leve | AD12: 0.2 | AE12: Moderado | AF12: Reducir (mitigar) | AG12: 1. Capacitación periódica 2.Acompañamiento a gerentes y formuladores de proyectos. | AH12: NOGUERA MOYA NELSON EMIRO | AI12: Profesional Especializado | AJ12: OPGI / Grupo de Gestión y Seguimiento Sectorial | AK12: Paula Andrea Palacio | AL12: 2021-01-01 | AM12: 2021-12-31
A13: 5 | B13: DIRECCIONAMIENTO ESTRATÉGICO | C13: Posibilidad de afectación Reputacional por Generación de Reprocesos debido a Debil soporte justificativo (Legal, tecnico, economico, ambiental), por los retrasos en la viabilización de trámites presupuestales | D13: Reputacional | E13: Generación de Reprocesos | F13: Debil soporte justificativo (Legal, tecnico, economico, ambiental), por los retrasos en la viabilización de trámites presupuestales | G13: Estratégico | H13: Ejecucion y Administracion de procesos | I13: 80 | J13: =IF(I13<=0,"",IF(I13<=2,"Muy Baja",IF(I13<=5,"Baja",IF(I13<=19,"Media",IF(I13<=50,"Alta","Muy Alta"))))) -> Muy Alta | K13: =IF(J13="","",IF(J13="Muy Baja",0.2,IF(J13="Baja",0.4,IF(J13="Media",0.6,IF(J13="Alta",0.8,IF(J13="Muy Alta",1,)))))) -> 1 | L13: El riesgo afecta la imagen de alguna área de la organización | M13: El riesgo afecta la imagen de alguna área de la organización | N13: Leve | O13: =IF(N13="","",IF(N13="Leve",0.2,IF(N13="Menor",0.4,IF(N13="Moderado",0.6,IF(N13="Mayor",0.8,IF(N13="Catastrófico",1,)))))) -> 0.2 | P13: =IF(OR(AND(J13="Muy Baja",N13="Leve"),AND(J13="Muy Baja",N13="Menor"),AND(J13="Baja",N13="Leve")),"Bajo",IF(OR(AND(J13="Muy baja",N13="Moderado"),AND(J13="Baja",N13="Menor"),AND(J13="Baja",N13="Moderado"),AND(J13="Media",N13="Leve"),AND(J13="Media",N13="Menor"),AND(J13="Media",N13="Moderado"),AND(J13="Alta",N13="Leve"),AND(J13="Alta",N13="Menor")),"Moderado",IF(OR(AND(J13="Muy Baja",N13="Mayor"),AND(J13="Baja",N13="Mayor"),AND(J13="Media",N13="Mayor"),AND(J13="Alta",N13="Moderado"),AND(J13="Alta",N13="Mayor"),AND(J13="Muy Alta",N13="Leve"),AND(J13="Muy Alta",N13="Menor"),AND(J13="Muy Alta",N13="Moderado"),AND(J13="Muy Alta",N13="Mayor")),"Alto",IF(OR(AND(J13="Muy Baja",N13="Catastrófico"),AND(J13="Baja",N13="Catastrófico"),AND(J13="Media",N13="Catastrófico"),AND(J13="Alta",N13="Catastrófico"),AND(J13="Muy Alta",N13="Catastrófico")),"Extremo","")))) -> Alto | Q13: 1 | R13: Los profesional del Grupo de Planeación y Programación, Planear con tiempo y/o claridad el soporte justificativo, la solicitud de modificaciones presupuestales dentro del periodo fiscal | S13: =IF(OR(T13="Preventivo",T13="Detectivo"),"Probabilidad",IF(T13="Correctivo","Impacto","")) -> Probabilidad | T13: Preventivo | U13: Manual | V13: 40% | W13: Documentado | X13: Continua | Y13: Con Registro | Z13: 0.6 | AA13: Media | AB13: 0.6 | AC13: Leve | AD13: 0.2 | AE13: Moderado | AF13: Reducir (mitigar) | AG13: Interactuar directamente con los formuladores y gerentes de proyectos para conocer la necesidad de incluir una modificación de tipo presupuestal, durante la respectiva vigencia fiscal | AH13: RAMOS QUINTERO GLADYS YOLANDA | AI13: Profesional Especializado | AJ13: OPGI / Grupo de Gestión y Seguimiento Sectorial | AK13: Paula Andrea Palacio | AL13: 2021-01-01 | AM13: 2021-12-31
A14: 6 | B14: GESTIÓN INTERNACIONAL | C14: Posibilidad de afectación Reputacional por no atender los compromisos internacionales, perdiendo credibilidad y posicionamiento en los distintos escenarios debido a la desarticulación en la gestión internacional al interior del Ministerio de Minas y Energía y sus entidades adscritas. | D14: Reputacional | E14: no atender los compromisos internacionales, perdiendo credibilidad y posicionamiento en los distintos escenarios | F14: la desarticulación en la gestión internacional al interior del Ministerio de Minas y Energía y sus entidades adscritas. | G14: Estratégico | H14: Ejecucion y Administracion de procesos | I14: 51 | J14: =IF(I14<=0,"",IF(I14<=2,"Muy Baja",IF(I14<=5,"Baja",IF(I14<=19,"Media",IF(I14<=50,"Alta","Muy Alta"))))) -> Muy Alta | K14: =IF(J14="","",IF(J14="Muy Baja",0.2,IF(J14="Baja",0.4,IF(J14="Media",0.6,IF(J14="Alta",0.8,IF(J14="Muy Alta",1,)))))) -> 1 | L14: El riesgo afecta la imagen de la entidad con algunos usuarios de relevancia frente al logro de los objetivos | M14: =IF(NOT(ISERROR(MATCH(L14,'Tabla Impacto'!$B$221:$B$223,0))),'Tabla Impacto'!$F$223&"Por favor no seleccionar los criterios de impacto(Afectación Económica o presupuestal y Pérdida Reputacional)",L14) -> El riesgo afecta la imagen de la entidad con algunos usuarios de relevancia frente al logro de los objetivos | N14: =IF(OR(M14='Tabla Impacto'!$C$11,M14='Tabla Impacto'!$D$11),"Leve",IF(OR(M14='Tabla Impacto'!$C$12,M14='Tabla Impacto'!$D$12),"Menor",IF(OR(M14='Tabla Impacto'!$C$13,M14='Tabla Impacto'!$D$13),"Moderado",IF(OR(M14='Tabla Impacto'!$C$14,M14='Tabla Impacto'!$D$14),"Mayor",IF(OR(M14='Tabla Impacto'!$C$15,M14='Tabla Impacto'!$D$15),"Catastrófico",""))))) -> Moderado | O14: =IF(N14="","",IF(N14="Leve",0.2,IF(N14="Menor",0.4,IF(N14="Moderado",0.6,IF(N14="Mayor",0.8,IF(N14="Catastrófico",1,)))))) -> 0.6 | P14: =IF(OR(AND(J14="Muy Baja",N14="Leve"),AND(J14="Muy Baja",N14="Menor"),AND(J14="Baja",N14="Leve")),"Bajo",IF(OR(AND(J14="Muy baja",N14="Moderado"),AND(J14="Baja",N14="Menor"),AND(J14="Baja",N14="Moderado"),AND(J14="Media",N14="Leve"),AND(J14="Media",N14="Menor"),AND(J14="Media",N14="Moderado"),AND(J14="Alta",N14="Leve"),AND(J14="Alta",N14="Menor")),"Moderado",IF(OR(AND(J14="Muy Baja",N14="Mayor"),AND(J14="Baja",N14="Mayor"),AND(J14="Media",N14="Mayor"),AND(J14="Alta",N14="Moderado"),AND(J14="Alta",N14="Mayor"),AND(J14="Muy Alta",N14="Leve"),AND(J14="Muy Alta",N14="Menor"),AND(J14="Muy Alta",N14="Moderado"),AND(J14="Muy Alta",N14="Mayor")),"Alto",IF(OR(AND(J14="Muy Baja",N14="Catastrófico"),AND(J14="Baja",N14="Catastrófico"),AND(J14="Media",N14="Catastrófico"),AND(J14="Alta",N14="Catastrófico"),AND(J14="Muy Alta",N14="Catastrófico")),"Extremo","")))) -> Alto | Q14: 1 | R14: 1. El profesional del Grupo de Asuntos Internacionales, realiza reuniones con las dependencias del Ministerio de Minas y Energía y sus entidades adscritas para hacer el levantamiento de las prioridades de cooperación internacional para el sector y presentar los lineamientos de articulación para la gestión internacional, a través de listas de asistencia y/o ayudas de memoria. (Carolina Garzón, Heidy Peña). 2. El profesional del Grupo de Asuntos Internacionales integra y registra la información del grupo a través del Sistema Integrado de Gestión Internacional (SIGI). | S14: =IF(OR(T14="Preventivo",T14="Detectivo"),"Probabilidad",IF(T14="Correctivo","Impacto","")) -> Probabilidad | T14: Preventivo | U14: Manual | V14: =IF(AND(T14="Preventivo",U14="Automático"),"50%",IF(AND(T14="Preventivo",U14="Manual"),"40%",IF(AND(T14="Detectivo",U14="Automático"),"40%",IF(AND(T14="Detectivo",U14="Manual"),"30%",IF(AND(T14="Correctivo",U14="Automático"),"35%",IF(AND(T14="Correctivo",U14="Manual"),"25%","")))))) -> 40% | W14: Documentado | X14: Continua | Y14: Con Registro | Z14: 0.6 | AA14: Media | AB14: 0.6 | AC14: Moderado | AD14: 0.6 | AE14: Moderado | AF14: Evitar | AG14: 1. Realizar una reunión anual con las dependencias del Ministerio de Minas y Energía y sus entidades adscritas para hacer el levantamiento de las prioridades de cooperación internacional y presentar los lineamientos de articulación para la gestión internacional del sector. | AH14: 1. CARREÑO GUERRERO BLANCA HERMENCIA | AI14: Profresional Universitario | AJ14: OPGI / Grupo de Asuntos Internacionales | AK14: Paula Andrea Palacio | AL14: 2022-01-01 | AM14: 2022-12-31
A15: 7 | B15: ADMINISTRACIÓN DEL SISTEMA INTEGRADO DE GESTIÓN | C15: Posibilidad de afectación Económico y Reputacional por materialización de riesgos de gestión y de corrupción en la entidad e incumplimiento de la ley, generando sanciones y multas debido a mala formulación y seguimiento a los mapas de riesgo sin acompañamiento de la Oficina de Planeación y Gestión Internacional | D15: Económico y Reputacional | E15: materialización de riesgos de gestión y de corrupción en la entidad e incumplimiento de la ley, generando sanciones y multas | F15: mala formulación y seguimiento a los mapas de riesgo sin acompañamiento de la Oficina de Planeación y Gestión Internacional | G15: Imagen | H15: Ejecucion y Administracion de procesos | I15: 200 | J15: =IF(I15<=0,"",IF(I15<=2,"Muy Baja",IF(I15<=5,"Baja",IF(I15<=19,"Media",IF(I15<=50,"Alta","Muy Alta"))))) -> Muy Alta | K15: =IF(J15="","",IF(J15="Muy Baja",0.2,IF(J15="Baja",0.4,IF(J15="Media",0.6,IF(J15="Alta",0.8,IF(J15="Muy Alta",1,)))))) -> 1 | L15: El riesgo afecta la imagen de la entidad a nivel nacional, con efecto publicitarios sostenible a nivel país | M15: =IF(NOT(ISERROR(MATCH(L15,'Tabla Impacto'!$B$221:$B$223,0))),'Tabla Impacto'!$F$223&"Por favor no seleccionar los criterios de impacto(Afectación Económica o presupuestal y Pérdida Reputacional)",L15) -> El riesgo afecta la imagen de la entidad a nivel nacional, con efecto publicitarios sostenible a nivel país | N15: =IF(OR(M15='Tabla Impacto'!$C$11,M15='Tabla Impacto'!$D$11),"Leve",IF(OR(M15='Tabla Impacto'!$C$12,M15='Tabla Impacto'!$D$12),"Menor",IF(OR(M15='Tabla Impacto'!$C$13,M15='Tabla Impacto'!$D$13),"Moderado",IF(OR(M15='Tabla Impacto'!$C$14,M15='Tabla Impacto'!$D$14),"Mayor",IF(OR(M15='Tabla Impacto'!$C$15,M15='Tabla Impacto'!$D$15),"Catastrófico",""))))) -> Catastrófico | O15: =IF(N15="","",IF(N15="Leve",0.2,IF(N15="Menor",0.4,IF(N15="Moderado",0.6,IF(N15="Mayor",0.8,IF(N15="Catastrófico",1,)))))) -> 1 | P15: =IF(OR(AND(J15="Muy Baja",N15="Leve"),AND(J15="Muy Baja",N15="Menor"),AND(J15="Baja",N15="Leve")),"Bajo",IF(OR(AND(J15="Muy baja",N15="Moderado"),AND(J15="Baja",N15="Menor"),AND(J15="Baja",N15="Moderado"),AND(J15="Media",N15="Leve"),AND(J15="Media",N15="Menor"),AND(J15="Media",N15="Moderado"),AND(J15="Alta",N15="Leve"),AND(J15="Alta",N15="Menor")),"Moderado",IF(OR(AND(J15="Muy Baja",N15="Mayor"),AND(J15="Baja",N15="Mayor"),AND(J15="Media",N15="Mayor"),AND(J15="Alta",N15="Moderado"),AND(J15="Alta",N15="Mayor"),AND(J15="Muy Alta",N15="Leve"),AND(J15="Muy Alta",N15="Menor"),AND(J15="Muy Alta",N15="Moderado"),AND(J15="Muy Alta",N15="Mayor")),"Alto",IF(OR(AND(J15="Muy Baja",N15="Catastrófico"),AND(J15="Baja",N15="Catastrófico"),AND(J15="Media",N15="Catastrófico"),AND(J15="Alta",N15="Catastrófico"),AND(J15="Muy Alta",N15="Catastrófico")),"Extremo","")))) -> Extremo | Q15: 1 | R15: El profesional de la Oficina de Planeación y Gestión Internacional realiza mesas de trabajo, asesorías y acompañamientos para la formulación de los mapas de riesgo de cada vigencia, dejando listas de asistencia. El profesional de la Oficina de Planeación y Gestión Internacional realiza seguimiento a los controles de la gerencia de riesgos por parte de cada responsable, con el fin de evitar la materialización de los riesgos, a través de informes trimestrales para los riesgos de gestión y mensuales para los riesgos de corrupción | S15: Probabilidad | T15: Preventivo | U15: Manual | V15: 40% | W15: Documentado | X15: Continua | Y15: Con Registro | Z15: 0.6 | AA15: Media | AB15: 0.6 | AC15: Catastrófico | AD15: 1 | AE15: Extremo | AF15: Evitar | AG15: 1. Coordinar y realizar reuniones de acompañamiento y asesoría con los responsables de la formulación de los mapas de riesgo de la entidad, basándose en la Guía del DAFP y en el análisis de los riesgos de las vigencias anteriores. 2. Realizar monitoreo trimestralmente a los riesgos para evidenciar la inclusión de los seguimientos por parte de los funcionarios responsables, enviando correos, realizando llamadas y/o brindando asesorías con el fin de garantizar el registro de todos los seguimientos y solicitar la publicación de un informe en la página web de la entidad para conocimiento de la ciudadana. | AH15: LUIS ENRIQUE CASTELBLANCO CÁRDENAS | AI15: CONTRATISTA | AJ15: OPGI | AK15: PAULA PALACIO | AL15: 2022-01-03 | AM15: 2022-12-31
A16: 8 | B16: ADMINISTRACIÓN DEL SISTEMA INTEGRADO DE GESTIÓN | C16: Posibilidad de afectación Reputacional por mala imagen ante los grupos de valor de la entidad debido a la no revisión y demoras en la oficialización de los documentos del sistema de gestión de calidad | D16: Reputacional | E16: mala imagen ante los grupos de valor de la entidad | F16: la no revisión y demoras en la oficialización de los documentos del sistema de gestión de calidad | G16: Operativos | H16: Ejecucion y Administracion de procesos | I16: 51 | J16: =IF(I16<=0,"",IF(I16<=2,"Muy Baja",IF(I16<=5,"Baja",IF(I16<=19,"Media",IF(I16<=50,"Alta","Muy Alta"))))) -> Muy Alta | K16: =IF(J16="","",IF(J16="Muy Baja",0.2,IF(J16="Baja",0.4,IF(J16="Media",0.6,IF(J16="Alta",0.8,IF(J16="Muy Alta",1,)))))) -> 1 | L16: El riesgo afecta la imagen de la entidad internamente, de conocimiento general, nivel interno, de junta dircetiva y accionistas y/o de provedores | M16: =IF(NOT(ISERROR(MATCH(L16,'Tabla Impacto'!$B$221:$B$223,0))),'Tabla Impacto'!$F$223&"Por favor no seleccionar los criterios de impacto(Afectación Económica o presupuestal y Pérdida Reputacional)",L16) -> El riesgo afecta la imagen de la entidad internamente, de conocimiento general, nivel interno, de junta dircetiva y accionistas y/o de provedores | N16: =IF(OR(M16='Tabla Impacto'!$C$11,M16='Tabla Impacto'!$D$11),"Leve",IF(OR(M16='Tabla Impacto'!$C$12,M16='Tabla Impacto'!$D$12),"Menor",IF(OR(M16='Tabla Impacto'!$C$13,M16='Tabla Impacto'!$D$13),"Moderado",IF(OR(M16='Tabla Impacto'!$C$14,M16='Tabla Impacto'!$D$14),"Mayor",IF(OR(M16='Tabla Impacto'!$C$15,M16='Tabla Impacto'!$D$15),"Catastrófico",""))))) -> Menor | O16: =IF(N16="","",IF(N16="Leve",0.2,IF(N16="Menor",0.4,IF(N16="Moderado",0.6,IF(N16="Mayor",0.8,IF(N16="Catastrófico",1,)))))) -> 0.4 | P16: =IF(OR(AND(J16="Muy Baja",N16="Leve"),AND(J16="Muy Baja",N16="Menor"),AND(J16="Baja",N16="Leve")),"Bajo",IF(OR(AND(J16="Muy baja",N16="Moderado"),AND(J16="Baja",N16="Menor"),AND(J16="Baja",N16="Moderado"),AND(J16="Media",N16="Leve"),AND(J16="Media",N16="Menor"),AND(J16="Media",N16="Moderado"),AND(J16="Alta",N16="Leve"),AND(J16="Alta",N16="Menor")),"Moderado",IF(OR(AND(J16="Muy Baja",N16="Mayor"),AND(J16="Baja",N16="Mayor"),AND(J16="Media",N16="Mayor"),AND(J16="Alta",N16="Moderado"),AND(J16="Alta",N16="Mayor"),AND(J16="Muy Alta",N16="Leve"),AND(J16="Muy Alta",N16="Menor"),AND(J16="Muy Alta",N16="Moderado"),AND(J16="Muy Alta",N16="Mayor")),"Alto",IF(OR(AND(J16="Muy Baja",N16="Catastrófico"),AND(J16="Baja",N16="Catastrófico"),AND(J16="Media",N16="Catastrófico"),AND(J16="Alta",N16="Catastrófico"),AND(J16="Muy Alta",N16="Catastrófico")),"Extremo","")))) -> Alto | Q16: 1 | R16: El profesional de la Oficina de Planeación y Gestión Internacional realiza asesoría y revisión de las solicitudes de control documental conjuntamente con los dueños de los procesos y validar los documentos antes de ser aprobados para evitar errores en forma y/o contenido, a través de listado de verificación de actualización de documentos. | S16: =IF(OR(T16="Preventivo",T16="Detectivo"),"Probabilidad",IF(T16="Correctivo","Impacto","")) -> Probabilidad | T16: Preventivo | U16: Manual | V16: =IF(AND(T16="Preventivo",U16="Automático"),"50%",IF(AND(T16="Preventivo",U16="Manual"),"40%",IF(AND(T16="Detectivo",U16="Automático"),"40%",IF(AND(T16="Detectivo",U16="Manual"),"30%",IF(AND(T16="Correctivo",U16="Automático"),"35%",IF(AND(T16="Correctivo",U16="Manual"),"25%","")))))) -> 40% | W16: Documentado | X16: Continua | Y16: Con Registro | Z16: 0.6 | AA16: =IFERROR(IF(Z16="","",IF(Z16<=0.2,"Muy Baja",IF(Z16<=0.4,"Baja",IF(Z16<=0.6,"Media",IF(Z16<=0.8,"Alta","Muy Alta"))))),"") -> Media | AB16: =+Z16 -> 0.6 | AC16: =IFERROR(IF(AD16="","",IF(AD16<=0.2,"Leve",IF(AD16<=0.4,"Menor",IF(AD16<=0.6,"Moderado",IF(AD16<=0.8,"Mayor","Catastrófico"))))),"") -> Menor | AD16: 0.4 | AE16: =IFERROR(IF(OR(AND(AA16="Muy Baja",AC16="Leve"),AND(AA16="Muy Baja",AC16="Menor"),AND(AA16="Baja",AC16="Leve")),"Bajo",IF(OR(AND(AA16="Muy baja",AC16="Moderado"),AND(AA16="Baja",AC16="Menor"),AND(AA16="Baja",AC16="Moderado"),AND(AA16="Media",AC16="Leve"),AND(AA16="Media",AC16="Menor"),AND(AA16="Media",AC16="Moderado"),AND(AA16="Alta",AC16="Leve"),AND(AA16="Alta",AC16="Menor")),"Moderado",IF(OR(AND(AA16="Muy Baja",AC16="Mayor"),AND(AA16="Baja",AC16="Mayor"),AND(AA16="Media",AC16="Mayor"),AND(AA16="Alta",AC16="Moderado"),AND(AA16="Alta",AC16="Mayor"),AND(AA16="Muy Alta",AC16="Leve"),AND(AA16="Muy Alta",AC16="Menor"),AND(AA16="Muy Alta",AC16="Moderado"),AND(AA16="Muy Alta",AC16="Mayor")),"Alto",IF(OR(AND(AA16="Muy Baja",AC16="Catastrófico"),AND(AA16="Baja",AC16="Catastrófico"),AND(AA16="Media",AC16="Catastrófico"),AND(AA16="Alta",AC16="Catastrófico"),AND(AA16="Muy Alta",AC16="Catastrófico")),"Extremo","")))),"") -> Moderado | AF16: Evitar | AG16: Realizar revisión de las solicitudes de control documental que realicen las dependencias, validando que los documentos que se modifiquen, creen o eliminen no tengan errores de forma, contenido o vayan encontra del procedimiento para la elaboración de documentos. | AH16: ALVARO JOSE PEÑA ESCOBAR | AI16: CONTRATISTA | AJ16: OPGI | AK16: PAULA PALACIO | AL16: 2022-01-03 | AM16: 2022-12-31
A17: 9 | B17: COMUNICACIÓN INSTITUCIONAL | C17: Posibilidad de afectación Reputacional por mala percepción del desarrollo de la misionalidad del ministerio frente a la opinión pública, debido a divulgación de información de baja confiabilidad a traves de los canales propios y otros medios de comunicación | D17: Reputacional | E17: mala percepción del desarrollo de la misionalidad del ministerio frente a la opinión pública, | F17: divulgación de información de baja confiabilidad a traves de los canales propios y otros medios de comunicación | G17: Estratégico | H17: Usuarios, productos y practicas , organizacionales | I17: 51 | J17: =IF(I17<=0,"",IF(I17<=2,"Muy Baja",IF(I17<=5,"Baja",IF(I17<=19,"Media",IF(I17<=50,"Alta","Muy Alta"))))) -> Muy Alta | K17: =IF(J17="","",IF(J17="Muy Baja",0.2,IF(J17="Baja",0.4,IF(J17="Media",0.6,IF(J17="Alta",0.8,IF(J17="Muy Alta",1,)))))) -> 1 | L17: El riesgo afecta la imagen de la entidad a nivel nacional, con efecto publicitarios sostenible a nivel país | M17: =IF(NOT(ISERROR(MATCH(L17,'Tabla Impacto'!$B$221:$B$223,0))),'Tabla Impacto'!$F$223&"Por favor no seleccionar los criterios de impacto(Afectación Económica o presupuestal y Pérdida Reputacional)",L17) -> El riesgo afecta la imagen de la entidad a nivel nacional, con efecto publicitarios sostenible a nivel país | N17: =IF(OR(M17='Tabla Impacto'!$C$11,M17='Tabla Impacto'!$D$11),"Leve",IF(OR(M17='Tabla Impacto'!$C$12,M17='Tabla Impacto'!$D$12),"Menor",IF(OR(M17='Tabla Impacto'!$C$13,M17='Tabla Impacto'!$D$13),"Moderado",IF(OR(M17='Tabla Impacto'!$C$14,M17='Tabla Impacto'!$D$14),"Mayor",IF(OR(M17='Tabla Impacto'!$C$15,M17='Tabla Impacto'!$D$15),"Catastrófico",""))))) -> Catastrófico | O17: =IF(N17="","",IF(N17="Leve",0.2,IF(N17="Menor",0.4,IF(N17="Moderado",0.6,IF(N17="Mayor",0.8,IF(N17="Catastrófico",1,)))))) -> 1 | P17: =IF(OR(AND(J17="Muy Baja",N17="Leve"),AND(J17="Muy Baja",N17="Menor"),AND(J17="Baja",N17="Leve")),"Bajo",IF(OR(AND(J17="Muy baja",N17="Moderado"),AND(J17="Baja",N17="Menor"),AND(J17="Baja",N17="Moderado"),AND(J17="Media",N17="Leve"),AND(J17="Media",N17="Menor"),AND(J17="Media",N17="Moderado"),AND(J17="Alta",N17="Leve"),AND(J17="Alta",N17="Menor")),"Moderado",IF(OR(AND(J17="Muy Baja",N17="Mayor"),AND(J17="Baja",N17="Mayor"),AND(J17="Media",N17="Mayor"),AND(J17="Alta",N17="Moderado"),AND(J17="Alta",N17="Mayor"),AND(J17="Muy Alta",N17="Leve"),AND(J17="Muy Alta",N17="Menor"),AND(J17="Muy Alta",N17="Moderado"),AND(J17="Muy Alta",N17="Mayor")),"Alto",IF(OR(AND(J17="Muy Baja",N17="Catastrófico"),AND(J17="Baja",N17="Catastrófico"),AND(J17="Media",N17="Catastrófico"),AND(J17="Alta",N17="Catastrófico"),AND(J17="Muy Alta",N17="Catastrófico")),"Extremo","")))) -> Extremo | Q17: 1 | R17: El profesional del Grupo de Comunicaciones y Prensa realiza comités para la planeación y seguimiento de las actividades a realizarse durante los días siguientes, garantizando que la información sea clara, veráz y oportuna, a través de actas. | S17: Probabilidad | T17: Preventivo | U17: Manual | V17: 40% | W17: Documentado | X17: Continua | Y17: Con Registro | Z17: 0.6 | AA17: Media | AB17: 0.6 | AC17: Catastrófico | AD17: 1 | AE17: Extremo | AF17: Evitar | AG17: Reuniones para planear y coordinar temas sectoriales que seran difundida a través de los canales oficiales de comunicación del Ministerio de Minas y Energía | AH17: JUAN DAVID PORTILLA HERNANDEZ | AI17: CONTRATISTA | AJ17: GCYP | AK17: JAVIER DARÍO RAMÍREZ | AL17: 2022-02-01 | AM17: 2022-12-31
A18: 10 | B18: COMUNICACIÓN INSTITUCIONAL | C18: Posibilidad de afectación Reputacional por mala percepción del desarrollo de las acciones adelantadas por las diferentes entidadaes adscritas al sector mienroenergetico debido a divulgación de información de baja confiabilidad a traves de los canales propios y otros medios de comunicación | D18: Reputacional | E18: mala percepción del desarrollo de las acciones adelantadas por las diferentes entidadaes adscritas al sector mienroenergetico | F18: divulgación de información de baja confiabilidad a traves de los canales propios y otros medios de comunicación | G18: Estratégico | H18: Usuarios, productos y practicas , organizacionales | I18: 22 | J18: Alta | K18: 0.8 | L18: El riesgo afecta la imagen de la entidad a nivel nacional, con efecto publicitarios sostenible a nivel país | M18: =IF(NOT(ISERROR(MATCH(L18,'Tabla Impacto'!$B$221:$B$223,0))),'Tabla Impacto'!$F$223&"Por favor no seleccionar los criterios de impacto(Afectación Económica o presupuestal y Pérdida Reputacional)",L18) -> El riesgo afecta la imagen de la entidad a nivel nacional, con efecto publicitarios sostenible a nivel país | N18: =IF(OR(M18='Tabla Impacto'!$C$11,M18='Tabla Impacto'!$D$11),"Leve",IF(OR(M18='Tabla Impacto'!$C$12,M18='Tabla Impacto'!$D$12),"Menor",IF(OR(M18='Tabla Impacto'!$C$13,M18='Tabla Impacto'!$D$13),"Moderado",IF(OR(M18='Tabla Impacto'!$C$14,M18='Tabla Impacto'!$D$14),"Mayor",IF(OR(M18='Tabla Impacto'!$C$15,M18='Tabla Impacto'!$D$15),"Catastrófico",""))))) -> Catastrófico | O18: 1 | P18: Extremo | Q18: 1 | R18: El profesional del Grupo de Comunicaciones y Prensa realiza comités para la planeación y seguimiento de las actividades a realizarse durante los días siguientes, garantizando que la información sea clara, veráz y oportuna, a través de actas. | S18: Probabilidad | T18: Detectivo | U18: Manual | V18: 30% | W18: Documentado | X18: Continua | Y18: Con Registro | Z18: 0.56 | AA18: Media | AB18: 0.56 | AC18: Catastrófico | AD18: 1 | AE18: Extremo | AF18: Evitar | AG18: Reuniones para planear y coordinar temas sectoriales que seran difundidos a través de los canales oficiales de comunicación del Ministerio y/o a través de los canales propios de las entidades adscritas. | AH18: JUAN DAVID PORTILLA HERNANDEZ | AI18: CONTRATISTA | AJ18: GCYP | AK18: JAVIER DARÍO RAMÍREZ | AL18: 2022-02-01 | AM18: 2022-12-31
A19: 11 | B19: DIRECCIÓN DE HIDROCARBUROS - FORMULACIÓN | C19: Posibilidad de afectación Reputacional por inducir a errores normativos, no facilitar la participación ciudadana en las decisiones de la Entidad debido a Falta de Publicidad y limitación a la participación de los Grupos de interés | D19: Reputacional | E19: inducir a errores normativos, no facilitar la participación ciudadana en las decisiones de la Entidad | F19: Falta de Publicidad y limitación a la participación de los Grupos de interés | G19: Operativo | H19: Usuarios, productos y practicas , organizacionales | I19: 12 | J19: Baja | K19: 0.4 | L19: El riesgo afecta la imagen de la entidad a nivel nacional, con efecto publicitarios sostenible a nivel país | M19: El riesgo afecta la credibilidad e imagen de la Entidad | N19: Moderado | O19: 0.3 | P19: Moderado | Q19: 1 | R19: El profecional de la Dirección de Hidrocarburos, realiza seguimientos mensuales de verificación y cumplimiento a los lineamientos establecidos para la publicidad de los proyectos normativos que expide la Dirección de Hidrocarburos | S19: Probabilidad | T19: Preventivo | U19: Manual | V19: 0.1 | W19: Documentado | X19: Continua | Y19: Con Registro | Z19: 0.36 | AA19: Baja | AB19: 0.36 | AC19: Menor | AD19: 0.3 | AE19: Moderado | AF19: Evitar | AG19: Solicitar a través de los canalaeds de comunicación oficial (correos, Teams,) a los Coordinadores de Grupo, la información correspondiente a los actos administrativos que requieren ser publicados y/o notificados | AH19: ANA PATRICIA MAYORGA GOMEZ | AI19: Profesional Especializado | AJ19: Grupo Gestión de Proyectos y Optimización | AK19: Jeferson A. Mendoza Ariza | AL19: 2022-01-01 | AM19: 2022-12-31
A20: 12 | B20: DIRECCIÓN DE HIDROCARBUROS - EJECUCIÓN | C20: Posibilidad de afectación Reputacional por demandas y quejas de los interesados en la gestión de los tramites debido a error en la captura de la información de los agentes de la cadena de combustible | D20: Reputacional | E20: demandas y quejas de los interesados en la gestión de los tramites | F20: error en la captura de la información de los agentes de la cadena de combustible | G20: Operativo | H20: Usuarios, productos y practicas , organizacionales | I20: 12 | J20: Baja | K20: 0.4 | L20: El riesgo afecta la imagen de la entidad con algunos usuarios de relevancia frente al logro de los objetivos | M20: El riesgo afecta la imagen de la entidad con algunos usuarios de relevancia frente al logro de los objetivos | N20: Moderado | O20: 0.3 | P20: Moderado | Q20: 1 | R20: El profecional de la Dirección de Hidrocarburos, realiza validaciones aleatorias de la conformación reportada por los agentes de la cadena de combustibles vs la información subida al SICOM | S20: Probabilidad | T20: Preventivo | U20: Manual | V20: 40% | W20: Documentado | X20: Aleatoria | Y20: Con Registro | Z20: 0.24 | AA20: Baja | AB20: 0.24 | AC20: Menor | AD20: 0.3 | AE20: Moderado | AF20: Evitar | AG20: Validaciones periódicas vs información reportada por los agentes de la cadena de combustibles | AH20: Luis Javier Mosquera | AI20: Contratiista | AJ20: Grupo Gas | AK20: Sara Velez Cuartas | AL20: 2022-01-01 | AM20: 3022-12-31
A21: 13 | B21: DIRECCIÓN DE HIDROCARBUROS - EJECUCIÓN | C21: Posibilidad de afectación Económico y Reputacional por incumplimiento a los procedimientos de verificación y control a la compensación por el transporte terrestre de combustible para abastecer el departamento de Nariño debido a incumplimiento a los procedimientos establecidos | D21: Económico y Reputacional | E21: incumplimiento a los procedimientos de verificación y control a la compensación por el transporte terrestre de combustible para abastecer el departamento de Nariño | F21: incumplimiento a los procedimientos establecidos | G21: Operativo | H21: Ejecucion y Administracion de procesos | I21: 12 | J21: Baja | K21: 0.4 | L21: El riesgo afecta la imagen de la entidad con algunos usuarios de relevancia frente al logro de los objetivos | M21: El riesgo afecta la imagen de la entidad con algunos usuarios de relevancia frente al logro de los objetivos | N21: El riesgo afecta la imagen de alguna área de la organización | O21: 0.1 | P21: Moderado | Q21: 2 | R21: El profecional de la Dirección de Hidrocarburos, realiza seguimientos mensuales de verificación y validación de cumplimiento para el reconocimiento de la compesnación por concepto de transporte de combustibles líquidos del Departamento de Nariño | S21: Probabilidad | T21: Preventivo | U21: Manual | V21: 40% | W21: Documentado | X21: Continua | Y21: Con Registro | Z21: 0.24 | AA21: Baja | AB21: 0.24 | AC21: Leve | AD21: 0.1 | AE21: Bajo | AG21: Validaciones periódicas de las guías de transporte, vehículos y volumenes para el reconocimiento de la compesnación por concepto de transporte de combustibles líquidos del Departamento de Nariño | AH21: OSCAR ANDRES RODRIGUEZ/LUIS FABIAN OCAMPO | AI21: Profesionales Especializados | AJ21: Grupo de Gas Midstream | AK21: Jorge Alirio Ortiz | AL21: 2022-01-01 | AM21: 2022-12-31
A22: 14 | B22: DIRECCIÓN DE HIDROCARBUROS - SEGUIMIENTO | C22: Posibilidad de afectación Reputacional por Incumplimiento en el cargue de la información en el sistema NEON para tramitar los pagos programados debido a reportes extemporáneos por parte empresas y contratistas | D22: Reputacional | E22: Incumplimiento en el cargue de la información en el sistema NEON para tramitar los pagos programados | F22: reportes extemporáneos por parte empresas y contratistas | G22: Financiero | H22: Ejecucion y Administracion de procesos | I22: 12 | J22: Baja | K22: 0.4 | L22: El riesgo afecta la imagen de la entidad con algunos usuarios de relevancia frente al logro de los objetivos | M22: El riesgo afecta la imagen de la entidad con algunos usuarios de relevancia frente al logro de los objetivos | N22: El riesgo afecta la imagen de alguna área de la organización | O22: 0.1 | P22: Moderado | Q22: 12 | R22: El profecional de la Dirección de Hidrocarburos, realiza verificaciones mensuales a través del sistema NEON | S22: Probabilidad | T22: Preventivo | U22: Manual | V22: 0.1 | W22: Documentado | X22: Continua | Y22: Con Registro | Z22: 0.36 | AA22: Baja | AB22: 0.36 | AC22: Leve | AD22: 0.1 | AE22: Bajo | AF22: Evitar | AG22: Solicitar y validar a través de los canales de comunicación oficial (correos, Teams,) a las empresas y Contratistas | AH22: LEONARDO TAMAYO | AI22: CONTRATISTA | AJ22: Grupo Gestión de Proyectos y Optimización | AK22: Jeferson A. Mendoza Ariza | AL22: 2022-01-01 | AM22: 2022-12-31
A23: 15 | B23: DIRECCIÓN DE HIDROCARBUROS - SEGUIMIENTO | C23: Posibilidad de afectación Reputacional por Inducir al error, al debido proceso, oponibilidad y efectos jurídicos debido a falta de publicación de los actos administrativos del sector de hidrocarburos | D23: Reputacional | E23: Inducir al error, al debido proceso, oponibilidad y efectos jurídicos | F23: falta de publicación de los actos administrativos del sector de hidrocarburos | G23: Operativo | H23: Ejecucion y Administracion de procesos | I23: 4 | J23: =IF(I23<=0,"",IF(I23<=2,"Muy Baja",IF(I23<=5,"Baja",IF(I23<=19,"Media",IF(I23<=50,"Alta","Muy Alta"))))) -> Baja | K23: 0.4 | L23: El riesgo afecta la imagen de alguna área de la organización | M23: El riesgo afecta la imagen de alguna área de la organización | N23: Leve | O23: =IF(N23="","",IF(N23="Leve",0.2,IF(N23="Menor",0.4,IF(N23="Moderado",0.6,IF(N23="Mayor",0.8,IF(N23="Catastrófico",1,)))))) -> 0.2 | P23: =IF(OR(AND(J23="Muy Baja",N23="Leve"),AND(J23="Muy Baja",N23="Menor"),AND(J23="Baja",N23="Leve")),"Bajo",IF(OR(AND(J23="Muy baja",N23="Moderado"),AND(J23="Baja",N23="Menor"),AND(J23="Baja",N23="Moderado"),AND(J23="Media",N23="Leve"),AND(J23="Media",N23="Menor"),AND(J23="Media",N23="Moderado"),AND(J23="Alta",N23="Leve"),AND(J23="Alta",N23="Menor")),"Moderado",IF(OR(AND(J23="Muy Baja",N23="Mayor"),AND(J23="Baja",N23="Mayor"),AND(J23="Media",N23="Mayor"),AND(J23="Alta",N23="Moderado"),AND(J23="Alta",N23="Mayor"),AND(J23="Muy Alta",N23="Leve"),AND(J23="Muy Alta",N23="Menor"),AND(J23="Muy Alta",N23="Moderado"),AND(J23="Muy Alta",N23="Mayor")),"Alto",IF(OR(AND(J23="Muy Baja",N23="Catastrófico"),AND(J23="Baja",N23="Catastrófico"),AND(J23="Media",N23="Catastrófico"),AND(J23="Alta",N23="Catastrófico"),AND(J23="Muy Alta",N23="Catastrófico")),"Extremo","")))) -> Bajo | Q23: 1 | R23: Implementar mesas de trabajo para realizar una segunda revisión a los procesos y procedimientos con el apoyo y participación de la Oficina de Planeación | S23: =IF(OR(T23="Preventivo",T23="Detectivo"),"Probabilidad",IF(T23="Correctivo","Impacto","")) -> Probabilidad | T23: Preventivo | U23: Manual | V23: 0.3 | W23: Documentado | X23: Continua | Y23: Con Registro | Z23: =IFERROR(IF(S23="Probabilidad",(K23-(+K23*V23)),IF(S23="Impacto",K23,"")),"") -> 0.28 | AA23: Baja | AB23: 0.28 | AC23: Leve | AD23: 0.2 | AE23: Bajo | AF23: Evitar | AG23: Realizar una segunda revisón del contenido de los procesos y procedimientos | AH23: LEONARDO TAMAYO | AI23: CONTRATISTA | AJ23: Grupo Gestión de Proyectos y Optimización | AK23: Jeferson A. Mendoza Ariza | AL23: 2022-01-01 | AM23: 2022-12-31
A24: 16 | B24: DIRECCIÓN DE HIDROCARBUROS - SEGUIMIENTO | C24: Posibilidad de afectación Reputacional por Perdida de credibilidad y mala imagen ante el sector minero energético, grupos de interés y ciudadanía en general, debido a error de captura en la asignación de cupos de combustibles | D24: Reputacional | E24: Perdida de credibilidad y mala imagen ante el sector minero energético, grupos de interés y ciudadanía en general, | F24: error de captura en la asignación de cupos de combustibles | G24: Tecnologico | H24: Fallas Tecnologicas | I24: 6 | J24: Media | K24: 0.6 | L24: El riesgo afecta la imagen de de la entidad con efecto publicitario sostenido a nivel de sector administrativo, nivel departamental o municipal | M24: El riesgo afecta la imagen de de la entidad con efecto publicitario sostenido a nivel de sector administrativo, nivel departamental o municipal | N24: Mayor | O24: 0.8 | P24: Alto | Q24: 1 | R24: El profecional de la Dirección de Hidrocarburos, realiza y verificar la configuración de los agentesde la cadena mediante muestreo aleatorio | S24: Probabilidad | T24: Preventivo | U24: Manual | V24: 0.3 | W24: Documentado | X24: Continua | Y24: Con Registro | Z24: 0.42 | AA24: =IFERROR(IF(Z24="","",IF(Z24<=0.2,"Muy Baja",IF(Z24<=0.4,"Baja",IF(Z24<=0.6,"Media",IF(Z24<=0.8,"Alta","Muy Alta"))))),"") -> Media | AB24: =+Z24 -> 0.42 | AC24: =IFERROR(IF(AD24="","",IF(AD24<=0.2,"Leve",IF(AD24<=0.4,"Menor",IF(AD24<=0.6,"Moderado",IF(AD24<=0.8,"Mayor","Catastrófico"))))),"") -> Mayor | AD24: =IFERROR(IF(S24="Impacto",(O24-(+O24*V24)),IF(S24="Probabilidad",O24,"")),"") -> 0.8 | AE24: =IFERROR(IF(OR(AND(AA24="Muy Baja",AC24="Leve"),AND(AA24="Muy Baja",AC24="Menor"),AND(AA24="Baja",AC24="Leve")),"Bajo",IF(OR(AND(AA24="Muy baja",AC24="Moderado"),AND(AA24="Baja",AC24="Menor"),AND(AA24="Baja",AC24="Moderado"),AND(AA24="Media",AC24="Leve"),AND(AA24="Media",AC24="Menor"),AND(AA24="Media",AC24="Moderado"),AND(AA24="Alta",AC24="Leve"),AND(AA24="Alta",AC24="Menor")),"Moderado",IF(OR(AND(AA24="Muy Baja",AC24="Mayor"),AND(AA24="Baja",AC24="Mayor"),AND(AA24="Media",AC24="Mayor"),AND(AA24="Alta",AC24="Moderado"),AND(AA24="Alta",AC24="Mayor"),AND(AA24="Muy Alta",AC24="Leve"),AND(AA24="Muy Alta",AC24="Menor"),AND(AA24="Muy Alta",AC24="Moderado"),AND(AA24="Muy Alta",AC24="Mayor")),"Alto",IF(OR(AND(AA24="Muy Baja",AC24="Catastrófico"),AND(AA24="Baja",AC24="Catastrófico"),AND(AA24="Media",AC24="Catastrófico"),AND(AA24="Alta",AC24="Catastrófico"),AND(AA24="Muy Alta",AC24="Catastrófico")),"Extremo","")))),"") -> Alto | AF24: Evitar | AG24: Realizar la validación de la información reportada por los agentes de la cadena de combustibles y la publicada en el SICOM | AH24: CATALINA PÉREZ | AI24: CONTRATISTA | AJ24: DIRECCIÓN DE HIDROCARBUROS | AK24: José manuel Moreno | AL24: 2022-01-01 | AM24: 2022-12-31
B25: DIRECCIÓN DE HIDROCARBUROS - SEGUIMIENTO | C25: Posibilidad de afectación Reputacional por Incumplimiento a los lineamientos establecidos para el seguimiento y control a los contratos asignados a la Dirección de Hidrocarburos debido a falta de cumplimiento a los lineamientos establecidos para el seguimiento y control de los contratos asignados a la Dirección de Hidrocarburos | D25: Reputacional | E25: Incumplimiento a los lineamientos establecidos para el seguimiento y control a los contratos asignados a la Dirección de Hidrocarburos | F25: falta de cumplimiento a los lineamientos establecidos para el seguimiento y control de los contratos asignados a la Dirección de Hidrocarburos | G25: Operativo | H25: Ejecucion y Administracion de procesos | I25: 13 | J25: Media | K25: 0.6 | L25: El riesgo afecta la imagen de la entidad con algunos usuarios de relevancia frente al logro de los objetivos | M25: El riesgo afecta la imagen de la entidad con algunos usuarios de relevancia frente al logro de los objetivos | N25: Mayor | O25: 0.8 | P25: Alto | R25: El profesional de la Dirección de la Dirección de Hidrocarburos verifica que los formatos establecidos para el seguimiento y control de los contratos y /o convenios asignados a la Dirección de Hidrocarburos, cuentan con el diligenciamiento del formato correspondiete Código SP-F-14, el cual deberá estár totalamente diligenciado y firmado por parte del supervisor y/o quien haga sus veces. | S25: Probabilidad | T25: Preventivo | U25: Manual | V25: 40% | W25: Documentado | X25: Continua | Y25: Con Registro | Z25: 0.36 | AA25: Baja | AB25: 0.36 | AC25: Mayor | AD25: 0.8 | AE25: Alto | AF25: Evitar | AG25: Verificar que los lineamientos se cumplan de acuerdo con la normatividad respectiva | AH25: LESSLY Y. GIL SOSA | AI25: CONTRATISTA | AJ25: DIRECCIÓN DE HIDROCARBUROS | AK25: José manuel Moreno | AL25: 2022-01-01 | AM25: 2022-12-31
B26: DIRECCIÓN DE HIDROCARBUROS - FORMULACIÓN | C26: ="Posibilidad de afectación "&D26&" por "&E26&" debido a "&F26 -> Posibilidad de afectación Reputacional por Incumplimiento a los lineamientos establecidos en la formulación de la regulación para el sector hidrocarburos debido a la pérdida de la información relacionada con la trazabilidad en la construcción de los actos administrativo | D26: Reputacional | E26: Incumplimiento a los lineamientos establecidos en la formulación de la regulación para el sector hidrocarburos | F26: la pérdida de la información relacionada con la trazabilidad en la construcción de los actos administrativo | G26: Operativo | H26: Ejecucion y Administracion de procesos | I26: 12 | J26: =IF(I26<=0,"",IF(I26<=2,"Muy Baja",IF(I26<=5,"Baja",IF(I26<=19,"Media",IF(I26<=50,"Alta","Muy Alta"))))) -> Media | K26: =IF(J26="","",IF(J26="Muy Baja",0.2,IF(J26="Baja",0.4,IF(J26="Media",0.6,IF(J26="Alta",0.8,IF(J26="Muy Alta",1,)))))) -> 0.6 | L26: El riesgo afecta la imagen de alguna área de la organización | M26: =IF(NOT(ISERROR(MATCH(L26,'[5]Tabla Impacto'!$B$221:$B$223,0))),'[5]Tabla Impacto'!$F$223&"Por favor no seleccionar los criterios de impacto(Afectación Económica o presupuestal y Pérdida reputacional)",L26) -> El riesgo afecta la imagen de alguna área de la organización | N26: Moderado | O26: =IF(N26="","",IF(N26="Leve",0.2,IF(N26="Menor",0.4,IF(N26="Moderado",0.6,IF(N26="Mayor",0.8,IF(N26="Catastrófico",1,)))))) -> 0.6 | P26: =IF(OR(AND(J26="Muy Baja",N26="Leve"),AND(J26="Muy Baja",N26="Menor"),AND(J26="Baja",N26="Leve")),"Bajo",IF(OR(AND(J26="Muy baja",N26="Moderado"),AND(J26="Baja",N26="Menor"),AND(J26="Baja",N26="Moderado"),AND(J26="Media",N26="Leve"),AND(J26="Media",N26="Menor"),AND(J26="Media",N26="Moderado"),AND(J26="Alta",N26="Leve"),AND(J26="Alta",N26="Menor")),"Moderado",IF(OR(AND(J26="Muy Baja",N26="Mayor"),AND(J26="Baja",N26="Mayor"),AND(J26="Media",N26="Mayor"),AND(J26="Alta",N26="Moderado"),AND(J26="Alta",N26="Mayor"),AND(J26="Muy Alta",N26="Leve"),AND(J26="Muy Alta",N26="Menor"),AND(J26="Muy Alta",N26="Moderado"),AND(J26="Muy Alta",N26="Mayor")),"Alto",IF(OR(AND(J26="Muy Baja",N26="Catastrófico"),AND(J26="Baja",N26="Catastrófico"),AND(J26="Media",N26="Catastrófico"),AND(J26="Alta",N26="Catastrófico"),AND(J26="Muy Alta",N26="Catastrófico")),"Extremo","")))) -> Moderado | R26: EL profesional del Grupo Gestión de Proyectos y Optimización de la Dirección de Hidrocaarburos, verifica el cumplimieto de los lineamientos establecidos, validados a través de una lista de chequeo | S26: =IF(OR(T26="Preventivo",T26="Detectivo"),"Probabilidad",IF(T26="Correctivo","Impacto","")) -> Probabilidad | T26: Preventivo | U26: Manual | V26: =IF(AND(T26="Preventivo",U26="Automático"),"50%",IF(AND(T26="Preventivo",U26="Manual"),"40%",IF(AND(T26="Detectivo",U26="Automático"),"40%",IF(AND(T26="Detectivo",U26="Manual"),"30%",IF(AND(T26="Correctivo",U26="Automático"),"35%",IF(AND(T26="Correctivo",U26="Manual"),"25%","")))))) -> 40% | W26: Documentado | X26: Aleatoria | Y26: Con Registro | Z26: 0.36 | AA26: Baja | AB26: 0.36 | AC26: Moderado | AD26: 0.6 | AE26: Moderado | AF26: Evitar | AG26: Verificar que los lineamientos se cumplan de acuerdo con lo establecido en el procedimiento | AH26: JEFERSON A. MENDOZA A | AI26: Profesional Especializado | AJ26: DIRECCIÓN DE HIDROCARBUROS | AK26: José manuel Moreno | AL26: 2022-04-01 | AM26: 2022-12-31
A27: =A24+1 -> 17 | B27: DIRECCIÓN DE HIDROCARBUROS - SEGUIMIENTO | C27: Posibilidad de afectación Reputacional por Perdida de credibilidad y mala imagen ante el sector minero energético, grupos de interés y ciudadanía en general debido a fallas reportadas por el sistema SICOM | D27: Reputacional | E27: Perdida de credibilidad y mala imagen ante el sector minero energético, grupos de interés y ciudadanía en general | F27: fallas reportadas por el sistema SICOM | G27: Tecnologico | H27: Fallas Tecnologicas | I27: 12 | J27: Media | K27: 0.6 | L27: El riesgo afecta la imagen de la entidad con algunos usuarios de relevancia frente al logro de los objetivos | M27: El riesgo afecta la imagen de la entidad con algunos usuarios de relevancia frente al logro de los objetivos | N27: Moderado | O27: 0.2 | P27: Moderado | Q27: 1 | R27: El profecional de la Dirección de Hidrocarburos, desarrolla un plan de Contingencia en caso de Fallas en el Sistema, a tarvés de un ….. | S27: Impacto | T27: Correctivo | U27: Manual | V27: 0.3 | W27: Documentado | X27: Continua | Y27: Con Registro | Z27: 0.6 | AA27: Media | AB27: 0.6 | AC27: Leve | AD27: 0.14 | AE27: Moderado | AF27: Evitar | AG27: Verificar el funcionamiento del Plan de Contingencia en caso de Fallas en el Sistema | AH27: CATALINA PÉREZ | AI27: CONTRATISTA | AJ27: DIRECCIÓN DE HIDROCARBUROS | AK27: José manuel Moreno | AL27: 2022-01-01 | AM27: 2022-12-31
A28: 18 | B28: MINERÍA EMPRESARIAL SEGUIMIENTO | C28: Posibilidad de afectación Económico y Reputacional por Mala articulación en los procesos de contratación generando procesos ineficientes y sanciones al supervisor debido a seguimiento y aprobación inadecuado de los productos de los contratos y convenios | D28: Económico y Reputacional | E28: Mala articulación en los procesos de contratación generando procesos ineficientes y sanciones al supervisor | F28: seguimiento y aprobación inadecuado de los productos de los contratos y convenios | G28: Operativo | H28: Usuarios, productos y practicas , organizacionales | I28: 11 | J28: Media | K28: 0.6 | L28: El riesgo afecta la imagen de la entidad con algunos usuarios de relevancia frente al logro de los objetivos | M28: El riesgo afecta la imagen de la entidad con algunos usuarios de relevancia frente al logro de los objetivos | N28: Moderado | O28: =IF(N28="","",IF(N28="Leve",0.2,IF(N28="Menor",0.4,IF(N28="Moderado",0.6,IF(N28="Mayor",0.8,IF(N28="Catastrófico",1,)))))) -> 0.6 | P28: Moderado | Q28: 1 | R28: El supervisor de los contratos y/o convenios de la Dirección de Mineria Empresarial realiza el control y seguimiento de los productos por medio informes de supervisión. | S28: Probabilidad | T28: Detectivo | U28: Manual | V28: =IF(AND(T28="Preventivo",U28="Automático"),"50%",IF(AND(T28="Preventivo",U28="Manual"),"40%",IF(AND(T28="Detectivo",U28="Automático"),"40%",IF(AND(T28="Detectivo",U28="Manual"),"30%",IF(AND(T28="Correctivo",U28="Automático"),"35%",IF(AND(T28="Correctivo",U28="Manual"),"25%","")))))) -> 30% | W28: Sin Documentar | X28: Continua | Y28: Con Registro | Z28: 0.42 | AA28: Media | AB28: 0.42 | AC28: Moderado | AD28: 0.6 | AE28: Moderado | AF28: Evitar | AG28: Realizar informes de supervisión de los contratos y convenios bajo la supervisión de la Dirección de Minería Empresarial | AH28: ANLLELA MARSELA CASTILLO REY | AI28: Profesional Especializado | AJ28: Dirección de Minería Empresarial | AK28: TATIANA LORENA AGUILAR LONDOÑO | AL28: 2022-01-03 | AM28: 2021-12-31
A29: 19 | B29: MINERÍA EMPRESARIAL SEGUIMIENTO | C29: Posibilidad de afectación Reputacional por toma de malas desiciones frente a los proyectos estrategicos mineros debido a no utilización de información oficial de los proyectos mineros proporcionada por los titulares mineros para la gestion de las problematicas asociadas. | D29: Reputacional | E29: toma de malas desiciones frente a los proyectos estrategicos mineros | F29: no utilización de información oficial de los proyectos mineros proporcionada por los titulares mineros para la gestion de las problematicas asociadas. | G29: Operativo | H29: Ejecucion y Administracion de procesos | I29: 11 | J29: Media | K29: 0.6 | L29: El riesgo afecta la imagen de la entidad con algunos usuarios de relevancia frente al logro de los objetivos | M29: El riesgo afecta la imagen de la entidad con algunos usuarios de relevancia frente al logro de los objetivos | N29: Moderado | O29: 0.6 | P29: Moderado | Q29: 1 | R29: El profesional de la Dirección de Mineria Empresarial realiza la validación, seguimiento y depuración de la información proporcionada de los proyectos mineros estrategicos priorizados a través de una matriz de seguimiento. | S29: Probabilidad | T29: Detectivo | U29: Manual | V29: 30% | W29: Sin Documentar | X29: Continua | Y29: Con Registro | Z29: 0.42 | AA29: Media | AB29: 0.42 | AC29: Moderado | AD29: 0.6 | AE29: Moderado | AF29: Evitar | AG29: Definir los productos de cada uno de los contratos y realizar seguimiento de su cumplimiento en las herramientas que posee la entidad para su publicación. | AH29: ANLLELA MARSELA CASTILLO REY | AI29: Profesional Especializado | AJ29: Dirección de Minería Empresarial | AK29: TATIANA LORENA AGUILAR LONDOÑO | AL29: 2022-01-03 | AM29: 2021-12-31
A30: 20 | B30: MINERÍA EMPRESARIAL FORMULACIÓN | C30: Posibilidad de afectación Reputacional por mala imagen ante las partes interesadas debido a la desarticulación interinstitucional, la no divulgacion y la incompleta formulación de políticas, planes, programas, reglamentos, lineamientos sectoriales y actos administrativos. | D30: Reputacional | E30: mala imagen ante las partes interesadas | F30: la desarticulación interinstitucional, la no divulgacion y la incompleta formulación de políticas, planes, programas, reglamentos, lineamientos sectoriales y actos administrativos. | G30: Estrategico | H30: Ejecucion y Administracion de procesos | I30: 5 | J30: Baja | K30: 0.4 | L30: El riesgo afecta la imagen de la entidad con algunos usuarios de relevancia frente al logro de los objetivos | M30: El riesgo afecta la imagen de la entidad con algunos usuarios de relevancia frente al logro de los objetivos | N30: Moderado | O30: 0.6 | P30: Moderado | Q30: 1 | R30: El profesional de la dirección de Mineria Empresarial asegura que en el proceso de formulación de las políticas, planes, programas, reglamentos, lineamientos sectoriales y actos administrativos participen todas las partes interesadas, que se divulgue en los tiempos establecidos y que cumplan con los requisitos y lineamientos a traves de mesas de trabajo, ayudas de memoria de reuniones, comunicaciones oficiales y/o listas de asistencia. | S30: Probabilidad | T30: Preventivo | U30: Manual | V30: 40% | W30: Documentado | X30: Aleatoria | Y30: Con Registro | Z30: 0.24 | AA30: Baja | AB30: 0.24 | AC30: Moderado | AD30: 0.6 | AE30: Moderado | AF30: Evitar | AG30: Comunicaciones con propuestas de formulación de políticas, planes, programas, reglamentos, lineamientos sectoriales y actos administrativos Organización de mesas de trabajo con las partes interesadas | AH30: ANLLELA MARSELA CASTILLO REY | AI30: Profesional Especializado | AJ30: MINERIA EMPRESARIAL | AK30: TATIANA LORENA AGUILAR LONDOÑO | AL30: 2022-01-03 | AM30: 2022-12-31
A31: 21 | B31: MINERÍA EMPRESARIAL EJECUCIÓN | C31: Posibilidad de afectación Reputacional por Perdida de credibilidad y mala imagen ante el sector minero y personas interesadas debido a El incumplimiento de las metas estipuladas en el plan de acción de la presente vigencia | D31: Reputacional | E31: Perdida de credibilidad y mala imagen ante el sector minero y personas interesadas | F31: El incumplimiento de las metas estipuladas en el plan de acción de la presente vigencia | G31: Cumplimiento | H31: Usuarios, productos y practicas , organizacionales | I31: 12 | J31: Media | K31: 0.6 | L31: El riesgo afecta la imagen de la entidad con algunos usuarios de relevancia frente al logro de los objetivos | M31: El riesgo afecta la imagen de la entidad con algunos usuarios de relevancia frente al logro de los objetivos | N31: Moderado | O31: 0.6 | P31: Moderado | Q31: 1 | R31: El profesional de la dirección de Mineria Empresarial realiza de manera mensual seguimientos al plan de acción analizando la ejecución de las metas y llevando la trazabilidad del cumplimiento de los indicadores, a traves de memorias de reuniones, mesas de trabajo, y herramienta de seguimiento y control. | S31: Probabilidad | T31: Preventivo | U31: Manual | V31: 40% | W31: Sin Documentar | X31: Continua | Y31: Con Registro | Z31: 0.36 | AA31: Baja | AB31: 0.36 | AC31: Moderado | AD31: 0.6 | AE31: Moderado | AF31: Reducir (mitigar) | AG31: Realizar seguimiento a la ejecución de los indicadores del Plan de Acción de la dirección . | AH31: ANLLELA MARSELA CASTILLO REY | AI31: PROFESIONAL ESPECIALIZADO | AJ31: MINERIA EMPRESARIAL | AK31: TATIANA LORENA AGUILAR LONDOÑO | AL31: 2022-01-03 | AM31: 2022-12-31
A32: 22 | B32: MINERÍA EMPRESARIAL EJECUCIÓN | C32: Posibilidad de afectación Reputacional por Perdida de credibilidad y mala imagen ante el sector minero y personas interesadas debido a El incumplimiento de las metas estipuladas en el plan de acción de la presente vigencia | D32: Reputacional | E32: Perdida de credibilidad y mala imagen ante el sector minero y personas interesadas | F32: El incumplimiento de las metas estipuladas en el plan de acción de la presente vigencia | G32: Cumplimiento | H32: Usuarios, productos y practicas , organizacionales | I32: 12 | J32: Media | K32: 0.6 | L32: El riesgo afecta la imagen de la entidad con algunos usuarios de relevancia frente al logro de los objetivos | M32: =IF(NOT(ISERROR(MATCH(L32,'Tabla Impacto'!$B$221:$B$223,0))),'Tabla Impacto'!$F$223&"Por favor no seleccionar los criterios de impacto(Afectación Económica o presupuestal y Pérdida Reputacional)",L32) -> El riesgo afecta la imagen de la entidad con algunos usuarios de relevancia frente al logro de los objetivos | N32: =IF(OR(M32='Tabla Impacto'!$C$11,M32='Tabla Impacto'!$D$11),"Leve",IF(OR(M32='Tabla Impacto'!$C$12,M32='Tabla Impacto'!$D$12),"Menor",IF(OR(M32='Tabla Impacto'!$C$13,M32='Tabla Impacto'!$D$13),"Moderado",IF(OR(M32='Tabla Impacto'!$C$14,M32='Tabla Impacto'!$D$14),"Mayor",IF(OR(M32='Tabla Impacto'!$C$15,M32='Tabla Impacto'!$D$15),"Catastrófico",""))))) -> Moderado | O32: 0.6 | P32: Moderado | Q32: 1 | R32: El profesional de la dirección de Mineria Empresarial realiza de manera mensual seguimientos al plan de acción analizando la ejecución de las metas y llevando la trazabilidad del cumplimiento de los indicadores, a traves de memorias de reuniones, mesas de trabajo, y herramienta de seguimiento y control. | S32: Probabilidad | T32: Preventivo | U32: Manual | V32: 40% | W32: Sin Documentar | X32: Continua | Y32: Con Registro | Z32: 0.36 | AA32: Baja | AB32: 0.36 | AC32: Moderado | AD32: 0.6 | AE32: Moderado | AF32: Reducir (mitigar) | AG32: Realizar seguimiento a la ejecución de los indicadores del Plan de Acción de la dirección . | AH32: ANLLELA MARSELA CASTILLO REY | AI32: PROFESIONAL ESPECIALIZADO | AJ32: MINERIA EMPRESARIAL | AK32: TATIANA LORENA AGUILAR LONDOÑO | AL32: 2022-01-03 | AM32: 2022-12-31
A33: 23 | B33: FORMALIZACIÓN MINERA - EJECUCIÓN | C33: Posibilidad de afectación Económico y Reputacional por atrasos en la ejecución de convenios y/o contratos de la Dirección de Formalización Minera debido a falta de controles a las obligación de la presentación de los informes de seguimiento. | D33: Económico y Reputacional | E33: atrasos en la ejecución de convenios y/o contratos de la Dirección de Formalización Minera | F33: falta de controles a las obligación de la presentación de los informes de seguimiento. | G33: Estrategico | H33: Ejecucion y Administracion de procesos | I33: 80 | J33: Muy Alta | K33: 1 | L33: El riesgo afecta la imagen de la entidad internamente, de conocimiento general, nivel interno, de junta dircetiva y accionistas y/o de provedores | M33: El riesgo afecta la imagen de la entidad internamente, de conocimiento general, nivel interno, de junta dircetiva y accionistas y/o de provedores | N33: Menor | O33: 0.4 | P33: Alto | Q33: 1 | R33: El profesional de la Dirección de Formalización Minera realizará seguimiento a los contratistas a traves de los informes de supervisión donde se evidencie el cumplimientode las actividades del contrato | S33: Probabilidad | T33: Preventivo | U33: Manual | V33: 40% | W33: Sin Documentar | X33: Continua | Y33: Con Registro | Z33: 0.6 | AA33: Media | AB33: 0.6 | AC33: Menor | AD33: 0.4 | AE33: Moderado | AF33: Evitar | AG33: Realizar seguimiento a la entrega de los informes de supervisión de cada uno de los contratos y/o convenios suscritos en la DFM. | AH33: Eliana María Daguer Montalvo | AI33: CONTRATISTA | AJ33: GRUPO DE COORDINACIÓN PARA LA GESTION DEL PROGRAMA DE FORMALIZACION MINERA | AK33: Ercilia María Monroy Sanchez | AL33: 2022-01-03 | AM33: 2022-12-30
A34: 24 | B34: FORMALIZACIÓN MINERA - FORMULACIÓN | C34: Posibilidad de afectación Económico y Reputacional por expedir las normas sin los procedimientos técnicos y legales exigidos por el Ministerio debido a desconocimiento de los controles y el seguimiento del proceso | D34: Económico y Reputacional | E34: expedir las normas sin los procedimientos técnicos y legales exigidos por el Ministerio | F34: desconocimiento de los controles y el seguimiento del proceso | G34: Estrategico | H34: Usuarios, productos y practicas , organizacionales | I34: 3 | J34: Baja | K34: 0.4 | L34: El riesgo afecta la imagen de la entidad a nivel nacional, con efecto publicitarios sostenible a nivel país | M34: El riesgo afecta la imagen de la entidad a nivel nacional, con efecto publicitarios sostenible a nivel país | N34: Catastrófico | O34: 1 | P34: Extremo | Q34: 1 | R34: El profesional de la Dirección de Formalización Minera realizará seguimiento a la agenda regulatoria con el fin de mantenerla actualizada e informará a través de la respectiva comunicación, la normatividad que se vaya expidiendo de acuerdo a la agenda regulatoria en la cual se encuentran priorizadas las pólitias públicas relacionadas con la Dirección de Formalización Minera y se lleva a cabo control de la formulación de las mismas | S34: Probabilidad | T34: Preventivo | U34: Manual | V34: 40% | W34: Sin Documentar | X34: Continua | Y34: Con Registro | Z34: 0.24 | AA34: Baja | AB34: 0.24 | AC34: Catastrófico | AD34: 1 | AE34: Extremo | AF34: Evitar | AG34: Realizar seguimiento a la agenda regulatoria a través de reuniones, memorandos, correos electrónicos para la priorización de las pólitias públicas relacionadas con la Dirección de Formalización Minera y se lleva a cabo control de la formulación de las mismas | AH34: Elsa Yadira Laiton Sotelo | AI34: CONTRATISTA | AJ34: GRUPO DE COORDINACIÓN PARA LA GESTION DEL PROGRAMA DE FORMALIZACION MINERA | AK34: Ercilia María Monroy Sanchez | AL34: 2022-01-03 | AM34: 2022-12-30
A35: 25 | B35: FORMALIZACIÓN MINERA - SEGUIMIENTO | C35: Posibilidad de afectación Económico y Reputacional por atrasos en la liquidación de convenios y/o contratos de la Dirección de Formalización Minera debido a falta de apoyo jurídico y financiero de profesionales para las liquidaciones de acuerdo al orden cronologico de ejecución | D35: Económico y Reputacional | E35: atrasos en la liquidación de convenios y/o contratos de la Dirección de Formalización Minera | F35: falta de apoyo jurídico y financiero de profesionales para las liquidaciones de acuerdo al orden cronologico de ejecución | G35: Estrategico | H35: Ejecucion y Administracion de procesos | I35: 20 | J35: Alta | K35: 0.8 | L35: El riesgo afecta la imagen de la entidad internamente, de conocimiento general, nivel interno, de junta dircetiva y accionistas y/o de provedores | M35: El riesgo afecta la imagen de la entidad internamente, de conocimiento general, nivel interno, de junta dircetiva y accionistas y/o de provedores | N35: Menor | O35: 0.4 | P35: Moderado | Q35: 1 | R35: Contratar personal profesional de apoyo para la supervisión y liquidación de los convenios celebrados, adicionalmente contar con el apoyo jurídico y financiero de dos profesionales encargados de establecer un cronograma de liquidaciones de acuerdo al orden cronologico de ejecución | S35: Probabilidad | T35: Preventivo | U35: Manual | V35: 40% | W35: Documentado | X35: Continua | Y35: Con Registro | Z35: 0.48 | AA35: Media | AB35: 0.48 | AC35: Menor | AD35: 0.4 | AE35: Moderado | AF35: Evitar | AG35: Construir una matriz de control donde se relacionen las liquidaciones pendientes por tramitar | AH35: Maigda Lorena Ossa Vargas | AI35: CONTRATISTA | AJ35: GRUPO DE COORDINACIÓN PARA LA GESTION DEL PROGRAMA DE FORMALIZACION MINERA | AK35: Ercilia María Monroy Sanchez | AL35: 2022-01-03 | AM35: 2022-12-30
A36: 26 | B36: FORMALIZACIÓN MINERA - SEGUIMIENTO | C36: Posibilidad de afectación Económico y Reputacional por la no inclusión en el plan de acción del Viceministerio de Minas de las actividades para el cumplimiento de politicas, planes y programas de la Dirección de Formalización Minera debido a la falta de seguimiento a dichas actividades | D36: Económico y Reputacional | E36: la no inclusión en el plan de acción del Viceministerio de Minas de las actividades para el cumplimiento de politicas, planes y programas de la Dirección de Formalización Minera | F36: la falta de seguimiento a dichas actividades | G36: Estrategico | H36: Ejecucion y Administracion de procesos | I36: 12 | J36: Media | K36: 0.6 | L36: El riesgo afecta la imagen de la entidad con algunos usuarios de relevancia frente al logro de los objetivos | M36: El riesgo afecta la imagen de la entidad con algunos usuarios de relevancia frente al logro de los objetivos | N36: Moderado | O36: 0.6 | P36: Moderado | Q36: 1 | R36: Inclusión en el plan de acción del Viceministerio de Minas de actividades para el cumplimiento de politicas, planes y programas de la DFM a tavés de la matriz de seguimiento de la DFM. | S36: Probabilidad | T36: Preventivo | U36: Manual | V36: 40% | W36: Documentado | X36: Continua | Y36: Con Registro | Z36: 0.36 | AA36: Baja | AB36: 0.36 | AC36: Moderado | AD36: 0.6 | AE36: Moderado | AF36: Evitar | AG36: Inclusión en el plan de acción del Viceministerio de Minas de actividades para el cumplimiento de politicas, planes y programas de la DFM | AH36: Alejandro Rocha Carrillo | AI36: CONTRATISTA | AJ36: GRUPO DE COORDINACIÓN PARA LA GESTION DEL PROGRAMA DE FORMALIZACION MINERA | AK36: Ercilia María Monroy Sanchez | AL36: 2022-01-03 | AM36: 2022-12-30
A37: 27 | B37: ENERGÍA ELÉCTRICA - EJECUCIÓN | C37: ="Posibilidad de afectación "&D37&" por "&E37&" debido a "&F37 -> Posibilidad de afectación económico y reputacional por incumplimiento a las metas del Gobierno Nacional debido a insuficiencia de proyectos con viabilidad técnica y financiera, e insuficiencia de recursos para asiganar a proyectos | D37: económico y reputacional | E37: incumplimiento a las metas del Gobierno Nacional | F37: insuficiencia de proyectos con viabilidad técnica y financiera, e insuficiencia de recursos para asiganar a proyectos | G37: Estrategico | H37: Usuarios, productos y practicas , organizacionales | I37: 3 | J37: Baja | K37: 0.4 | L37: El riesgo afecta la imagen de la entidad con algunos usuarios de relevancia frente al logro de los objetivos | M37: El riesgo afecta la imagen de la entidad con algunos usuarios de relevancia frente al logro de los objetivos | N37: Moderado | O37: 0.6 | P37: Moderado | Q37: 1 | R37: El profesional del Grupo de Fondos, realiza mesas de trabajo con los entes territoriales operadores de red y otros estructuradores, para digulgar las diferentes fuentes de financiación (FAER, FAZNI, OCAD Paz, entre otros) con el fin de incentivar la estructuración y ajuste de proyectos para obtener concepto favorable en la viabilidad técnica y financiera yse evidenciará a través de actas de los comités, los oficios al Ipse y a la upme solicitando proyectos | S37: Probabilidad | T37: Preventivo | U37: Manual | V37: 40% | W37: Documentado | X37: Continua | Y37: Con Registro | Z37: 0.24 | AA37: Baja | AB37: 0.24 | AC37: Moderado | AD37: 0.6 | AE37: Moderado | AF37: Reducir (mitigar) | AG37: Mesas de trabajo con los entes territoriales, operadores de red y otros estructuradores, para digulgar las diferentes fuentes de financiación (FAER, FAZNI, OCAD Paz, entre otros) Y también buscar cofinanciación de los operadores de Red y entes territoriales (con recursos de OCAD PAZ y SGR) | AH37: Eulogio Solarte | AI37: Coordinador | AJ37: Dirección de Energía Eléctrica | AK37: Luis Julian Zuluaga | AL37: 2022-01-15 | AM37: 2022-12-15
A38: 28 | B38: ENERGÍA ELÉCTRICA SEGUIMIENTO | C38: Posibilidad de afectación económico y reputacional por multa, sanción y mala imagen institucional debido a Demora en envío de la información solicitada por los entes de control | D38: económico y reputacional | E38: multa, sanción y mala imagen institucional | F38: Demora en envío de la información solicitada por los entes de control | G38: Operativos | H38: Ejecucion y Administracion de procesos | I38: 96 | J38: Muy Alta | K38: 1 | L38: El riesgo afecta la imagen de de la entidad con efecto publicitario sostenido a nivel de sector administrativo, nivel departamental o municipal | M38: El riesgo afecta la imagen de de la entidad con efecto publicitario sostenido a nivel de sector administrativo, nivel departamental o municipal | N38: Mayor | O38: 0.8 | P38: Alto | Q38: 1 | R38: El profesional de la Dirección de energía eléctrica realiza seguimiento a los tiempos de respuesta en la información solicitada por los entes de control y otras entidades a través de una matriz de seguimiento | S38: Probabilidad | T38: Preventivo | U38: Manual | V38: 40% | W38: Documentado | X38: Continua | Y38: Con Registro | Z38: 0.6 | AA38: Media | AB38: 0.6 | AC38: Mayor | AD38: 0.8 | AE38: Alto | AF38: Evitar | AG38: realizar seguimiento a los tiempos de respuesta a los entes de control y otras entidades | AH38: Liliana Corredor | AI38: Profesional Especializado | AJ38: Dirección de Energía Eléctrica | AK38: Luis Julian Zuluaga | AL38: 2022-01-03 | AM38: 2022-12-31
A39: 29 | B39: ENERGÍA ELÉCTRICA SEGUIMIENTO | C39: ="Posibilidad de afectación "&D39&" por "&E39&" debido a "&F39 -> Posibilidad de afectación económico y reputacional por retrasos en la entrada en operación de los proyectos financiados con los Fondos FAER y FAZNI y el Programa PRONE generando multas y mala imagen debido a incumplimiento en el cronograma de los contratos y convenios | D39: económico y reputacional | E39: retrasos en la entrada en operación de los proyectos financiados con los Fondos FAER y FAZNI y el Programa PRONE generando multas y mala imagen | F39: incumplimiento en el cronograma de los contratos y convenios | G39: Estratégico | H39: Ejecucion y Administracion de procesos | I39: 580 | J39: Muy Alta | K39: 1 | L39: El riesgo afecta la imagen de la entidad con algunos usuarios de relevancia frente al logro de los objetivos | M39: El riesgo afecta la imagen de la entidad con algunos usuarios de relevancia frente al logro de los objetivos | N39: Moderado | O39: 0.6 | P39: Alto | Q39: 1 | R39: Los profesionales del Gurpo de Supervisión de la Dirección de Energía Eléctrica aplican los controles descritos en el procedimiento "SP-23" donde se realizan revisiones cruzadas en las áreas técnica, jurídica, financiera, contable y administrativa para evitar los atrasos y tomar acciones preventivas en caso de que se evidencie un posible atraso, lo cual se realizará a través de la matriz general de supervisión donde se evidencian todas las actuaciones hechas en virtud de la supervisión realizada | S39: Probabilidad | T39: Preventivo | U39: Manual | V39: =IF(AND(T39="Preventivo",U39="Automático"),"50%",IF(AND(T39="Preventivo",U39="Manual"),"40%",IF(AND(T39="Detectivo",U39="Automático"),"40%",IF(AND(T39="Detectivo",U39="Manual"),"30%",IF(AND(T39="Correctivo",U39="Automático"),"35%",IF(AND(T39="Correctivo",U39="Manual"),"25%","")))))) -> 40% | W39: Documentado | X39: Continua | Y39: Con Registro | Z39: 0.6 | AA39: =IFERROR(IF(Z39="","",IF(Z39<=0.2,"Muy Baja",IF(Z39<=0.4,"Baja",IF(Z39<=0.6,"Media",IF(Z39<=0.8,"Alta","Muy Alta"))))),"") -> Media | AB39: =+Z39 -> 0.6 | AC39: =IFERROR(IF(AD39="","",IF(AD39<=0.2,"Leve",IF(AD39<=0.4,"Menor",IF(AD39<=0.6,"Moderado",IF(AD39<=0.8,"Mayor","Catastrófico"))))),"") -> Moderado | AD39: =IFERROR(IF(S39="Impacto",(O39-(+O39*V39)),IF(S39="Probabilidad",O39,"")),"") -> 0.6 | AE39: =IFERROR(IF(OR(AND(AA39="Muy Baja",AC39="Leve"),AND(AA39="Muy Baja",AC39="Menor"),AND(AA39="Baja",AC39="Leve")),"Bajo",IF(OR(AND(AA39="Muy baja",AC39="Moderado"),AND(AA39="Baja",AC39="Menor"),AND(AA39="Baja",AC39="Moderado"),AND(AA39="Media",AC39="Leve"),AND(AA39="Media",AC39="Menor"),AND(AA39="Media",AC39="Moderado"),AND(AA39="Alta",AC39="Leve"),AND(AA39="Alta",AC39="Menor")),"Moderado",IF(OR(AND(AA39="Muy Baja",AC39="Mayor"),AND(AA39="Baja",AC39="Mayor"),AND(AA39="Media",AC39="Mayor"),AND(AA39="Alta",AC39="Moderado"),AND(AA39="Alta",AC39="Mayor"),AND(AA39="Muy Alta",AC39="Leve"),AND(AA39="Muy Alta",AC39="Menor"),AND(AA39="Muy Alta",AC39="Moderado"),AND(AA39="Muy Alta",AC39="Mayor")),"Alto",IF(OR(AND(AA39="Muy Baja",AC39="Catastrófico"),AND(AA39="Baja",AC39="Catastrófico"),AND(AA39="Media",AC39="Catastrófico"),AND(AA39="Alta",AC39="Catastrófico"),AND(AA39="Muy Alta",AC39="Catastrófico")),"Extremo","")))),"") -> Moderado | AF39: Reducir (mitigar) | AG39: Realizar Informes mensuales de acuerdo al procedimiento SP-23 de supervisión donde se evidencie el seguimiento del cumplimiento de actividades de los contratos y se generen alertas tempranas en caso de evidenciar un atraso en el cronograma del Contrato. | AH39: Emanuel Ramírez | AI39: COORDINADOR GRUPO DE SUPERVISIÓN | AJ39: DIRECCIÓN DE ENERGÍA ELÉCTRICA | AK39: LUIS JULIÁN ZULUAGA LÓPEZ | AL39: 2022-02-15 | AM39: 2022-12-31
A40: 30 | B40: ENERGÍA ELÉCTRICA SEGUIMIENTO | C40: ="Posibilidad de afectación "&D40&" por "&E40&" debido a "&F40 -> Posibilidad de afectación reputacional por desconocimiento de las variables energeticas del sector electrico debido a la falta de revisión y de seguimiento de las caracteristicas del sistema energetico | D40: reputacional | E40: desconocimiento de las variables energeticas del sector electrico | F40: la falta de revisión y de seguimiento de las caracteristicas del sistema energetico | G40: Estratégico | H40: Ejecucion y Administracion de procesos | I40: 11 | J40: Media | K40: 0.6 | L40: El riesgo afecta la imagen de la entidad internamente, de conocimiento general, nivel interno, de junta dircetiva y accionistas y/o de provedores | M40: El riesgo afecta la imagen de la entidad internamente, de conocimiento general, nivel interno, de junta dircetiva y accionistas y/o de provedores | N40: Menor | O40: 0.4 | P40: Moderado | Q40: 1 | R40: El profesional del Grupo de Gestión del sector, realiza la revisión y seguimiento de las caracteristicas del sector eléctrico a través de un informe mensual de seguimiento al monitoreo | S40: Probabilidad | T40: Preventivo | U40: Manual | V40: 40% | W40: Documentado | X40: Continua | Y40: Sin Registro | Z40: 0.36 | AA40: Baja | AB40: 0.36 | AC40: Menor | AD40: 0.4 | AE40: Moderado | AF40: Evitar | AG40: Realizar informe mensual de seguimiento al monitoreo | AH40: SANDRA SALAMANCA | AI40: COORDINADORA GRUPO DE GESTIÓN DEL SECTOR | AJ40: Dirección de Energía | AK40: Luis Julian Zuluaga Lopez | AL40: 2022-02-01 | AM40: 2022-12-31
A41: 31 | B41: ENERGÍA ELÉCTRICA SEGUIMIENTO | C41: Posibilidad de afectación económico y reputacional por baja ejecución en el presupuesto asignado para la vigencia debido a la no disposición oportuna y por ende la no presentación a Comité de proyectos de infraestructura con viabilidad técnica y financiera favorable; la no presentación de oferentes en los concursos de méritos publicados para consultorías en algunos proyectos y retraso en avance de los proyectos de infraestructura por agentes externos como por ejemplo factores contractuales, climáticos o de orden público. | D41: económico y reputacional | E41: baja ejecución en el presupuesto asignado para la vigencia | F41: la no disposición oportuna y por ende la no presentación a Comité de proyectos de infraestructura con viabilidad técnica y financiera favorable; la no presentación de oferentes en los concursos de méritos publicados para consultorías en algunos proyectos y retraso en avance de los proyectos de infraestructura por agentes externos como por ejemplo factores contractuales, climáticos o de orden público. | G41: Estratégico | H41: Ejecucion y Administracion de procesos | I41: 4 | J41: Baja | K41: 0.4 | L41: El riesgo afecta la imagen de de la entidad con efecto publicitario sostenido a nivel de sector administrativo, nivel departamental o municipal | M41: El riesgo afecta la imagen de de la entidad con efecto publicitario sostenido a nivel de sector administrativo, nivel departamental o municipal | N41: Mayor | O41: 0.8 | P41: Alto | Q41: 1 | R41: El profesional de la Dirección de energía eléctrica, realiza seguimiento a la ejecución presupuestal de los proyectos de inversión a través de un informe de seguimiento a la ejecución de los proyectos de inversión | S41: Probabilidad | T41: Preventivo | U41: Manual | V41: 40% | W41: Documentado | X41: Continua | Y41: Con Registro | Z41: 0.24 | AA41: Baja | AB41: 0.24 | AC41: Mayor | AD41: 0.8 | AE41: Alto | AF41: Reducir (compartir) | AG41: realizar Informe de seguimiento a la ejecución de los proyectos de inversión | AH41: Martha Lucia Landines Parra | AI41: Contratista | AJ41: Dirección de Energía | AK41: Luis Julián Zuluaga López | AL41: 2022-12-03 | AM41: 2022-12-31
A42: 32 | B42: ENERGÍA ELÉCTRICA - EJECUCIÓN | C42: Posibilidad de afectación económico y reputacional por por multa y sancion del ente regulador debido a otorgamiento indebido de subsdios por el incumplimiento de algunos de los requisitos exigidos en la normatividad. | D42: económico y reputacional | E42: por multa y sancion del ente regulador | F42: otorgamiento indebido de subsdios por el incumplimiento de algunos de los requisitos exigidos en la normatividad. | G42: Operativo | H42: Ejecucion y Administracion de procesos | I42: 12 | J42: =IF(I42<=0,"",IF(I42<=2,"Muy Baja",IF(I42<=5,"Baja",IF(I42<=19,"Media",IF(I42<=50,"Alta","Muy Alta"))))) -> Media | K42: =IF(J42="","",IF(J42="Muy Baja",0.2,IF(J42="Baja",0.4,IF(J42="Media",0.6,IF(J42="Alta",0.8,IF(J42="Muy Alta",1,)))))) -> 0.6 | L42: El riesgo afecta la imagen de alguna área de la organización | M42: =IF(NOT(ISERROR(MATCH(L42,'[6]Tabla Impacto'!$B$221:$B$223,0))),'[6]Tabla Impacto'!$F$223&"Por favor no seleccionar los criterios de impacto(Afectación Económica o presupuestal y Pérdida reputacional)",L42) -> El riesgo afecta la imagen de alguna área de la organización | N42: =IF(OR(M42='[6]Tabla Impacto'!$C$11,M42='[6]Tabla Impacto'!$D$11),"Leve",IF(OR(M42='[6]Tabla Impacto'!$C$12,M42='[6]Tabla Impacto'!$D$12),"Menor",IF(OR(M42='[6]Tabla Impacto'!$C$13,M42='[6]Tabla Impacto'!$D$13),"Moderado",IF(OR(M42='[6]Tabla Impacto'!$C$14,M42='[6]Tabla Impacto'!$D$14),"Mayor",IF(OR(M42='[6]Tabla Impacto'!$C$15,M42='[6]Tabla Impacto'!$D$15),"Catastrófico",""))))) -> Leve | O42: =IF(N42="","",IF(N42="Leve",0.2,IF(N42="Menor",0.4,IF(N42="Moderado",0.6,IF(N42="Mayor",0.8,IF(N42="Catastrófico",1,)))))) -> 0.2 | P42: =IF(OR(AND(J42="Muy Baja",N42="Leve"),AND(J42="Muy Baja",N42="Menor"),AND(J42="Baja",N42="Leve")),"Bajo",IF(OR(AND(J42="Muy baja",N42="Moderado"),AND(J42="Baja",N42="Menor"),AND(J42="Baja",N42="Moderado"),AND(J42="Media",N42="Leve"),AND(J42="Media",N42="Menor"),AND(J42="Media",N42="Moderado"),AND(J42="Alta",N42="Leve"),AND(J42="Alta",N42="Menor")),"Moderado",IF(OR(AND(J42="Muy Baja",N42="Mayor"),AND(J42="Baja",N42="Mayor"),AND(J42="Media",N42="Mayor"),AND(J42="Alta",N42="Moderado"),AND(J42="Alta",N42="Mayor"),AND(J42="Muy Alta",N42="Leve"),AND(J42="Muy Alta",N42="Menor"),AND(J42="Muy Alta",N42="Moderado"),AND(J42="Muy Alta",N42="Mayor")),"Alto",IF(OR(AND(J42="Muy Baja",N42="Catastrófico"),AND(J42="Baja",N42="Catastrófico"),AND(J42="Media",N42="Catastrófico"),AND(J42="Alta",N42="Catastrófico"),AND(J42="Muy Alta",N42="Catastrófico")),"Extremo","")))) -> Moderado | Q42: 1 | R42: El profesional del Grupo de Energìa Elèctrica, realizará seguimiento a la recepción de la información de consumos de energía de usuarios de areas especiales la cual se recepciona por medio de correo electrónico en las fechas establecidas en el cronograma, la evidencia es los correos electrónicos | S42: =IF(OR(T42="Preventivo",T42="Detectivo"),"Probabilidad",IF(T42="Correctivo","Impacto","")) -> Probabilidad | T42: Preventivo | U42: Manual | V42: =IF(AND(T42="Preventivo",U42="Automático"),"50%",IF(AND(T42="Preventivo",U42="Manual"),"40%",IF(AND(T42="Detectivo",U42="Automático"),"40%",IF(AND(T42="Detectivo",U42="Manual"),"30%",IF(AND(T42="Correctivo",U42="Automático"),"35%",IF(AND(T42="Correctivo",U42="Manual"),"25%","")))))) -> 40% | W42: Documentado | X42: Continua | Y42: Con Registro | Z42: 0.36 | AA42: =IFERROR(IF(Z42="","",IF(Z42<=0.2,"Muy Baja",IF(Z42<=0.4,"Baja",IF(Z42<=0.6,"Media",IF(Z42<=0.8,"Alta","Muy Alta"))))),"") -> Baja | AB42: =+Z42 -> 0.36 | AC42: =IFERROR(IF(AD42="","",IF(AD42<=0.2,"Leve",IF(AD42<=0.4,"Menor",IF(AD42<=0.6,"Moderado",IF(AD42<=0.8,"Mayor","Catastrófico"))))),"") -> Leve | AD42: =IFERROR(IF(S42="Impacto",(O42-(+O42*V42)),IF(S42="Probabilidad",O42,"")),"") -> 0.2 | AE42: =IFERROR(IF(OR(AND(AA42="Muy Baja",AC42="Leve"),AND(AA42="Muy Baja",AC42="Menor"),AND(AA42="Baja",AC42="Leve")),"Bajo",IF(OR(AND(AA42="Muy baja",AC42="Moderado"),AND(AA42="Baja",AC42="Menor"),AND(AA42="Baja",AC42="Moderado"),AND(AA42="Media",AC42="Leve"),AND(AA42="Media",AC42="Menor"),AND(AA42="Media",AC42="Moderado"),AND(AA42="Alta",AC42="Leve"),AND(AA42="Alta",AC42="Menor")),"Moderado",IF(OR(AND(AA42="Muy Baja",AC42="Mayor"),AND(AA42="Baja",AC42="Mayor"),AND(AA42="Media",AC42="Mayor"),AND(AA42="Alta",AC42="Moderado"),AND(AA42="Alta",AC42="Mayor"),AND(AA42="Muy Alta",AC42="Leve"),AND(AA42="Muy Alta",AC42="Menor"),AND(AA42="Muy Alta",AC42="Moderado"),AND(AA42="Muy Alta",AC42="Mayor")),"Alto",IF(OR(AND(AA42="Muy Baja",AC42="Catastrófico"),AND(AA42="Baja",AC42="Catastrófico"),AND(AA42="Media",AC42="Catastrófico"),AND(AA42="Alta",AC42="Catastrófico"),AND(AA42="Muy Alta",AC42="Catastrófico")),"Extremo","")))),"") -> Bajo | AF42: Evitar | AG42: Realizar seguimiento y monitoreo mensual a la información detallada requerida para la distribución de los recursos FOES | AH42: JAVIER FABIAN PINZON | AI42: PROFESIONAL ESPECIALIZADO | AJ42: DIRECCION DE ENERGIA | AK42: LUIS JULIAN ZULUAGA | AL42: 2022-01-03 | AM42: 2022-12-31
A43: 33 | B43: ENERGÍA ELÉCTRICA FORMULACIÓN | C43: ="Posibilidad de afectación "&D43&" por "&E43&" debido al "&F43 -> Posibilidad de afectación reputacional por Mala imagen ante los regulados por no actualización de los reglamentos debido al incumplimiento de algunas etapas de buenas prácticas Reglamentarias Decretadas por Mincit, y de procedimientos al interior del Ministerio. | D43: reputacional | E43: Mala imagen ante los regulados por no actualización de los reglamentos | F43: incumplimiento de algunas etapas de buenas prácticas Reglamentarias Decretadas por Mincit, y de procedimientos al interior del Ministerio. | G43: Operativo | H43: Ejecucion y Administracion de procesos | I43: 9 | J43: Media | K43: 0.6 | L43: El riesgo afecta la imagen de alguna área de la organización | M43: El riesgo afecta la imagen de alguna área de la organización | N43: Leve | O43: 0.2 | P43: Moderado | Q43: 1 | R43: El Coordinador del Grupo de Reglemantos Técnicos o su delegado, realizarán un seguimiento al avance de los reglamentos técnicos, el cual se realizará por medio de una matriz de seguimiento. | S43: Probabilidad | T43: Preventivo | U43: Manual | V43: 40% | W43: Documentado | X43: Continua | Y43: Con Registro | Z43: 0.36 | AA43: Baja | AB43: 0.36 | AC43: Leve | AD43: 0.2 | AE43: Bajo | AF43: Reducir (mitigar) | AG43: Disponer de un equipo de trabajo con el fin de cumplir con la actualización de los reglamentos | AH43: Orlando Rojas Duarte | AI43: Coordinador Grupo Reglamentos Técnicos | AJ43: Dirección de Energía Eléctrica | AK43: Luis Julian Zuluaga Lopez | AL43: 2022-04-01 | AM43: 2021-12-31
A44: 34 | B44: ENERGÍAS NO CONVENCIONALES Y ASUNTOS NUCLEARES - FORMULACIÓN | C44: Posibilidad de afectación Reputacional por el deterioro de la imagen del Ministerio ante las partes interesadas debido a Incumplimiento en la elaboración de las normas y la falta de regulación para el uso seguro de materiales nucleares y radiactivos | D44: Reputacional | E44: el deterioro de la imagen del Ministerio ante las partes interesadas | F44: Incumplimiento en la elaboración de las normas y la falta de regulación para el uso seguro de materiales nucleares y radiactivos | G44: Cumplimiento | H44: Usuarios, productos y practicas , organizacionales | I44: 2 | J44: Muy Baja | K44: 0.2 | L44: El riesgo afecta la imagen de la entidad con algunos usuarios de relevancia frente al logro de los objetivos | M44: El riesgo afecta la imagen de la entidad con algunos usuarios de relevancia frente al logro de los objetivos | N44: Moderado | O44: 0.6 | P44: Moderado | Q44: 1 | R44: El profesional del grupo GENCAN realiza un seguimiento al cumplimiento de las actividades programadas en la elaboración de los proyectos normativos para el uso seguro de los materiales nucleares y radiactivos, a traves de un cronograma anual, el cual sera validado por el GENCAN. | S44: Probabilidad | T44: Preventivo | U44: Manual | V44: 40% | W44: Documentado | X44: Continua | Y44: Con Registro | Z44: 0.12 | AA44: Muy Baja | AB44: 0.12 | AC44: Moderado | AD44: 0.6 | AE44: Moderado | AF44: Evitar | AG44: Seguimiento a las actividades programadas en el cronograma anual de expedición de normas, para validar la ejecución en los términos y tiempos establecidos. | AH44: PARRA LOZANO JUAN PABLO | AI44: COORDINADOR GENCAN | AJ44: OARE - GENCAN | AK44: JULIAN ROJAS | AL44: 2022-01-01 | AM44: 2022-12-31
A45: 35 | B45: ENERGÍAS NO CONVENCIONALES Y ASUNTOS NUCLEARES - FORMULACIÓN | C45: Posibilidad de afectación Reputacional por baja cobertura en la divulgación de la política, lineamiento o reglamento debido a no usar los canales de comunicación con la ciudadanía | D45: Reputacional | E45: baja cobertura en la divulgación de la política, lineamiento o reglamento | F45: no usar los canales de comunicación con la ciudadanía | G45: Operativo | H45: Usuarios, productos y practicas , organizacionales | I45: 6 | J45: Media | K45: 0.6 | L45: El riesgo afecta la imagen de la entidad con algunos usuarios de relevancia frente al logro de los objetivos | M45: El riesgo afecta la imagen de la entidad con algunos usuarios de relevancia frente al logro de los objetivos | N45: Moderado | O45: 0.6 | P45: Moderado | Q45: 1 | R45: El secretario ejecutivo de GENCAN comunica fecha y lugar de realización de la divulgación con suficiente antelación a los usuarios objeto de la norma, a través de oficios, correo electrónico y/o llamadas telefónicas, propendiendo por una mayor participación en el evento y la respectiva disponibilidad de recursos económicos. | S45: Probabilidad | T45: Preventivo | U45: Manual | V45: 40% | W45: Documentado | X45: Continua | Y45: Con Registro | Z45: 0.36 | AA45: Baja | AB45: 0.36 | AC45: Moderado | AD45: 0.6 | AE45: Moderado | AF45: Evitar | AG45: Al menos con dos semanas de antelación al evento de divulgación, se remite comunicación a los usuarios objeto de la norma mediante oficio y/o correo electrónico y/o llamada telefónica, con el fin de que el proceso de divulgación cuente con la mayor cobertura posible. | AH45: ÁVILA OROZCO JHONATHAN MAURICIO | AI45: SECRETARIO EJECUTIVO | AJ45: OARE - GENCAN | AK45: JULIAN ROJAS | AL45: 2022-01-01 | AM45: 2022-12-31
A46: 36 | B46: ENERGÍAS NO CONVENCIONALES Y ASUNTOS NUCLEARES EJECUCIÓN | C46: Posibilidad de afectación Reputacional por Informes de seguimiento a acuerdos y tratados internacionales en materia nuclear, presentados fuera de tiempo debido a omitir o retrasar la remisión de los informes a la OPGI con destino al Congreso de la República | D46: Reputacional | E46: Informes de seguimiento a acuerdos y tratados internacionales en materia nuclear, presentados fuera de tiempo | F46: omitir o retrasar la remisión de los informes a la OPGI con destino al Congreso de la República | G46: Cumplimiento | H46: Usuarios, productos y practicas , organizacionales | I46: 2 | J46: Muy Baja | K46: 0.2 | L46: El riesgo afecta la imagen de alguna área de la organización | M46: El riesgo afecta la imagen de alguna área de la organización | N46: Leve | O46: 0.2 | P46: Bajo | Q46: 1 | R46: El Coordinador del Grupo de Trabajo, a través del informe de seguimiento a Acuerdos y Tratados Internacionales en materia nuclear, remite a la OPGI el resultado de las comunicación(es)/solicitud(es) realizadas a la(s) Entidad(es) responsable(s) de reportar información a Minenergía. | S46: Probabilidad | T46: Preventivo | U46: Manual | V46: 40% | W46: Documentado | X46: Aleatoria | Y46: Sin Registro | Z46: 0.12 | AA46: Muy Baja | AB46: 0.12 | AC46: Leve | AD46: 0.2 | AE46: Bajo | AF46: Evitar | AG46: Reiteración de la(s) solicitud(es) para remitir informe(s) o insumos para la elaboración del informe de seguimiento de acuerdos y tratados internacionales. | AH46: PARRA LOZANO JUAN PABLO | AI46: COORDINADOR GENCAN | AJ46: OARE - GENCAN | AK46: JULIAN ROJAS | AL46: 2022-01-01 | AM46: 2022-12-31
A47: 37 | B47: ENERGÍAS NO CONVENCIONALES Y ASUNTOS NUCLEARES - SEGUIMIENTO | C47: Posibilidad de afectación Reputacional por Instalaciones nucleares o radiactivas, a cargo de Minenergía, sin control regulatorio debido a falta de gestión para la expedición o renovación de autorizaciones para el uso seguro de los materiales radiactivos | D47: Reputacional | E47: Instalaciones nucleares o radiactivas, a cargo de Minenergía, sin control regulatorio | F47: falta de gestión para la expedición o renovación de autorizaciones para el uso seguro de los materiales radiactivos | G47: Operativo | H47: Usuarios, productos y practicas , organizacionales | I47: 3 | J47: Baja | K47: 0.4 | L47: El riesgo afecta la imagen de la entidad con algunos usuarios de relevancia frente al logro de los objetivos | M47: El riesgo afecta la imagen de la entidad con algunos usuarios de relevancia frente al logro de los objetivos | N47: Moderado | O47: 0.6 | P47: Moderado | Q47: 1 | R47: El profesional de GENCAN, evalúa la solicitud o renovación de autorización, verificando el cumplimiento de los requisitos para el uso seguro de los materiales nucleares o radiactivos. A partir del proceso de verificación, se expide documento donde se decide sobre el otorgamiento o negación de la solicitud. | S47: Probabilidad | T47: Preventivo | U47: Manual | V47: 40% | W47: Documentado | X47: Continua | Y47: Con Registro | Z47: 0.24 | AA47: Baja | AB47: 0.24 | AC47: Moderado | AD47: 0.6 | AE47: Moderado | AF47: Evitar | AG47: Con el fin de evitar que instalaciones nucleares o radiactivas queden sin autorización, se remite(n) comunicación(es) al representante legal de la instalación, alertando y/o reiterando solicitudes y/o convocando reuniones o mesas de trabajo. | AH47: LOZANO PAZ JOHN FITZGERALD | AI47: PROFESIONAL ESPECIALIZADO | AJ47: OARE - GENCAN | AK47: JULIAN ROJAS | AL47: 2022-01-01 | AM47: 2022-12-31
A48: 38 | B48: ENERGÍAS NO CONVENCIONALES Y ASUNTOS NUCLEARES - SEGUIMIENTO | C48: Posibilidad de afectación Reputacional por Incumplimiento del programa de inspecciones de vigilancia y control de instalaciones nucleares y radiactivas a cargo de Minenergía debido a eventos fortuitos, falta de tiempo o insuficiente personal ocupacionalmente expuesto con las competencias requeridas para desarrollar el programa de inspecciones | D48: Reputacional | E48: Incumplimiento del programa de inspecciones de vigilancia y control de instalaciones nucleares y radiactivas a cargo de Minenergía | F48: eventos fortuitos, falta de tiempo o insuficiente personal ocupacionalmente expuesto con las competencias requeridas para desarrollar el programa de inspecciones | G48: Cumplimiento | H48: Usuarios, productos y practicas , organizacionales | I48: 5 | J48: Baja | K48: 0.4 | L48: El riesgo afecta la imagen de la entidad con algunos usuarios de relevancia frente al logro de los objetivos | M48: El riesgo afecta la imagen de la entidad con algunos usuarios de relevancia frente al logro de los objetivos | N48: Moderado | O48: 0.6 | P48: Moderado | Q48: 1 | R48: El profesional de GENCAN, mediante cronograma anual de inspecciones de vigilancia y control de instalaciones nucleares y radiactivas a cargo de Minenergía, hace seguimiento a la programación de inspecciones con el fin de evitar incumplimiento. | S48: Probabilidad | T48: Preventivo | U48: Manual | V48: 40% | W48: Documentado | X48: Continua | Y48: Con Registro | Z48: 0.24 | AA48: Baja | AB48: 0.24 | AC48: Moderado | AD48: 0.6 | AE48: Moderado | AF48: Evitar | AG48: Verificar y promover el cumplimiento del cronograma anual de inspecciones de vigilancia y control a las instalaciones nucleares y radiactivas a cargo de Minenergía. | AH48: MAÑOSCA RUIZ MAURICIO HERNANDO | AI48: PROFESIONAL ESPECIALIZADO | AJ48: OARE - GENCAN | AK48: JULIAN ROJAS | AL48: 2022-01-01 | AM48: 2022-12-31
A49: 39 | B49: ASUNTOS REGULATORIOS Y EMPRESARIALES - FORMULACIÓN | C49: Posibilidad de afectación Reputacional por mala imagen al Ministerio ante las partes interesadas debido a la mala formulación de políticas, planes, programas, reglamentos y lineamientos sectoriales que no promuevan el desarrollo sostenible del sector, no se realicen mediante los procesos definidos y no obedescan a los objetivos transformacionales. | D49: Reputacional | E49: mala imagen al Ministerio ante las partes interesadas | F49: la mala formulación de políticas, planes, programas, reglamentos y lineamientos sectoriales que no promuevan el desarrollo sostenible del sector, no se realicen mediante los procesos definidos y no obedescan a los objetivos transformacionales. | G49: Estrategico | H49: Usuarios, productos y practicas , organizacionales | I49: 5 | J49: =IF(I49<=0,"",IF(I49<=2,"Muy Baja",IF(I49<=5,"Baja",IF(I49<=19,"Media",IF(I49<=50,"Alta","Muy Alta"))))) -> Baja | K49: =IF(J49="","",IF(J49="Muy Baja",0.2,IF(J49="Baja",0.4,IF(J49="Media",0.6,IF(J49="Alta",0.8,IF(J49="Muy Alta",1,)))))) -> 0.4 | L49: El riesgo afecta la imagen de la entidad con algunos usuarios de relevancia frente al logro de los objetivos | M49: El riesgo afecta la imagen de la entidad con algunos usuarios de relevancia frente al logro de los objetivos | N49: Moderado | O49: =IF(N49="","",IF(N49="Leve",0.2,IF(N49="Menor",0.4,IF(N49="Moderado",0.6,IF(N49="Mayor",0.8,IF(N49="Catastrófico",1,)))))) -> 0.6 | P49: =IF(OR(AND(J49="Muy Baja",N49="Leve"),AND(J49="Muy Baja",N49="Menor"),AND(J49="Baja",N49="Leve")),"Bajo",IF(OR(AND(J49="Muy baja",N49="Moderado"),AND(J49="Baja",N49="Menor"),AND(J49="Baja",N49="Moderado"),AND(J49="Media",N49="Leve"),AND(J49="Media",N49="Menor"),AND(J49="Media",N49="Moderado"),AND(J49="Alta",N49="Leve"),AND(J49="Alta",N49="Menor")),"Moderado",IF(OR(AND(J49="Muy Baja",N49="Mayor"),AND(J49="Baja",N49="Mayor"),AND(J49="Media",N49="Mayor"),AND(J49="Alta",N49="Moderado"),AND(J49="Alta",N49="Mayor"),AND(J49="Muy Alta",N49="Leve"),AND(J49="Muy Alta",N49="Menor"),AND(J49="Muy Alta",N49="Moderado"),AND(J49="Muy Alta",N49="Mayor")),"Alto",IF(OR(AND(J49="Muy Baja",N49="Catastrófico"),AND(J49="Baja",N49="Catastrófico"),AND(J49="Media",N49="Catastrófico"),AND(J49="Alta",N49="Catastrófico"),AND(J49="Muy Alta",N49="Catastrófico")),"Extremo","")))) -> Moderado | Q49: 1 | R49: El profesional del OARE realiza seguimiento a la formulación de las policías que se encurten en formulación bajo criterio para el diseño, desarrollo y la caracterización del proceso de formulación y adopción de políticas, planes, programas, reglamentos y lineamientos sectoriales, a través de reuniones documentadas mediante actas. | S49: =IF(OR(T49="Preventivo",T49="Detectivo"),"Probabilidad",IF(T49="Correctivo","Impacto","")) -> Probabilidad | T49: Preventivo | U49: Manual | V49: =IF(AND(T49="Preventivo",U49="Automático"),"50%",IF(AND(T49="Preventivo",U49="Manual"),"40%",IF(AND(T49="Detectivo",U49="Automático"),"40%",IF(AND(T49="Detectivo",U49="Manual"),"30%",IF(AND(T49="Correctivo",U49="Automático"),"35%",IF(AND(T49="Correctivo",U49="Manual"),"25%","")))))) -> 40% | W49: Documentado | X49: Continua | Y49: Con Registro | Z49: 0.24 | AA49: =IFERROR(IF(Z49="","",IF(Z49<=0.2,"Muy Baja",IF(Z49<=0.4,"Baja",IF(Z49<=0.6,"Media",IF(Z49<=0.8,"Alta","Muy Alta"))))),"") -> Baja | AB49: =+Z49 -> 0.24 | AC49: =IFERROR(IF(AD49="","",IF(AD49<=0.2,"Leve",IF(AD49<=0.4,"Menor",IF(AD49<=0.6,"Moderado",IF(AD49<=0.8,"Mayor","Catastrófico"))))),"") -> Moderado | AD49: =IFERROR(IF(S49="Impacto",(O49-(+O49*V49)),IF(S49="Probabilidad",O49,"")),"") -> 0.6 | AE49: =IFERROR(IF(OR(AND(AA49="Muy Baja",AC49="Leve"),AND(AA49="Muy Baja",AC49="Menor"),AND(AA49="Baja",AC49="Leve")),"Bajo",IF(OR(AND(AA49="Muy baja",AC49="Moderado"),AND(AA49="Baja",AC49="Menor"),AND(AA49="Baja",AC49="Moderado"),AND(AA49="Media",AC49="Leve"),AND(AA49="Media",AC49="Menor"),AND(AA49="Media",AC49="Moderado"),AND(AA49="Alta",AC49="Leve"),AND(AA49="Alta",AC49="Menor")),"Moderado",IF(OR(AND(AA49="Muy Baja",AC49="Mayor"),AND(AA49="Baja",AC49="Mayor"),AND(AA49="Media",AC49="Mayor"),AND(AA49="Alta",AC49="Moderado"),AND(AA49="Alta",AC49="Mayor"),AND(AA49="Muy Alta",AC49="Leve"),AND(AA49="Muy Alta",AC49="Menor"),AND(AA49="Muy Alta",AC49="Moderado"),AND(AA49="Muy Alta",AC49="Mayor")),"Alto",IF(OR(AND(AA49="Muy Baja",AC49="Catastrófico"),AND(AA49="Baja",AC49="Catastrófico"),AND(AA49="Media",AC49="Catastrófico"),AND(AA49="Alta",AC49="Catastrófico"),AND(AA49="Muy Alta",AC49="Catastrófico")),"Extremo","")))),"") -> Moderado | AF49: Evitar | AG49: Realizar reuniones de seguimiento en la que se valide que la formulación y adopción de políticas, planes, programas, reglamentos y lineamientos sectoriales promuevan el desarrollo sostenible del sector minero energético y estén acordes con el proceso definido. | AH49: Manuel Calero | AI49: Secretario Ejecutivo | AJ49: OARE | AK49: JULIAN ROJAS | AL49: 2022-01-03 | AM49: 2022-12-31
A50: 40 | B50: ASUNTOS REGULATORIOS Y EMPRESARIALES - FORMULACIÓN | C50: Posibilidad de afectación Reputacional por mala imagen al Ministerio ante las partes interesadas debido a el no cumplimineto a la formulación de política planeada | D50: Reputacional | E50: mala imagen al Ministerio ante las partes interesadas | F50: el no cumplimineto a la formulación de política planeada | G50: Operativo | H50: Usuarios, productos y practicas , organizacionales | I50: 4 | J50: Baja | K50: 0.4 | L50: El riesgo afecta la imagen de la entidad con algunos usuarios de relevancia frente al logro de los objetivos | M50: El riesgo afecta la imagen de la entidad con algunos usuarios de relevancia frente al logro de los objetivos | N50: Moderado | O50: 0.6 | P50: Moderado | Q50: 1 | R50: El profesional de la OARE consulta permanente del plan de acción anual y la agenda regulatoria para evaluar si se están cumpliendo las metas propuestas a través de reuniones de seguimiento | S50: =IF(OR(T50="Preventivo",T50="Detectivo"),"Probabilidad",IF(T50="Correctivo","Impacto","")) -> Probabilidad | T50: Preventivo | U50: Manual | V50: 40% | W50: Documentado | X50: Continua | Y50: Con Registro | Z50: 0.24 | AA50: Baja | AB50: 0.24 | AC50: Moderado | AD50: 0.6 | AE50: Moderado | AF50: Evitar | AG50: Realizar reuniones de seguimiento para revisar el cumplimiento de las metas establecidas en el plan de acción anual y en la agenda regulatoria. | AH50: Manuel Calero | AI50: Secretario Ejecutivo | AJ50: OARE | AK50: JULIAN ROJAS | AL50: 2022-01-03 | AM50: 2022-12-31
A51: 41 | B51: ASUNTOS REGULATORIOS Y EMPRESARIALES - SEGUIMIENTO | C51: Posibilidad de afectación Reputacional por mala imagen del Ministerio ante las partes interesadas debido a no realizar el seguimiento, la vigilancia y el control a las políticas, proyectos y reglamentos en ejecución. | D51: Reputacional | E51: mala imagen del Ministerio ante las partes interesadas | F51: no realizar el seguimiento, la vigilancia y el control a las políticas, proyectos y reglamentos en ejecución. | G51: Operativos | H51: Usuarios, productos y practicas , organizacionales | I51: 4 | J51: Baja | K51: 0.4 | L51: El riesgo afecta la imagen de la entidad con algunos usuarios de relevancia frente al logro de los objetivos | M51: El riesgo afecta la imagen de la entidad con algunos usuarios de relevancia frente al logro de los objetivos | N51: Moderado | O51: 0.6 | P51: Moderado | Q51: 1 | R51: El profesional de la OARE realiza seguimiento, vigilancia y control a las políticas, proyectos y reglamentos en ejecución. | S51: Probabilidad | T51: Preventivo | U51: Manual | V51: 40% | W51: Documentado | X51: Continua | Y51: Con Registro | Z51: 0.24 | AA51: Baja | AB51: 0.24 | AC51: Moderado | AD51: 0.6 | AE51: Moderado | AF51: Evitar | AG51: Envíar informe sobre proyectos normativos emitidos por el Ministerio de Minas y Energía y los que tienen que ver con la agenda regulatoria de la CREG. | AH51: Manuel Calero | AI51: Secretario Ejecutivo | AJ51: OARE | AK51: JULIAN ROJAS | AL51: 2022-01-03 | AM51: 2022-12-31
A52: 42 | B52: ASUNTOS REGULATORIOS Y EMPRESARIALES - SEGUIMIENTO | C52: Posibilidad de afectación Reputacional por mala imagen al Ministerio ante las partes interesadas debido a enviar información errónea en el informe para esesorar al ministro y viceministro en su intervención en las sesiones CREG. | D52: Reputacional | E52: mala imagen al Ministerio ante las partes interesadas | F52: enviar información errónea en el informe para esesorar al ministro y viceministro en su intervención en las sesiones CREG. | G52: Estratégico | H52: Ejecucion y Administracion de procesos | I52: 20 | J52: Alta | K52: 0.8 | L52: El riesgo afecta la imagen de alguna área de la organización | M52: El riesgo afecta la imagen de alguna área de la organización | N52: Leve | O52: 0.2 | P52: Moderado | Q52: 1 | R52: Realizar las actividades establecidas en el procedimiento para el análisis y seguimiento de los proyectos regulatorios desarrollados por la CREG, con el fin de garantizar la entrega oportuna de la información a la alta dirección | S52: Probabilidad | T52: Preventivo | U52: Manual | V52: 40% | W52: Documentado | X52: Continua | Y52: Con Registro | Z52: 0.48 | AA52: Media | AB52: 0.48 | AC52: Leve | AD52: 0.2 | AE52: Moderado | AF52: Evitar | AG52: Revisar la agenda regulatoria de la CREG e informar al Ministro y Viceministro acerca del cumplimiento de la misma, de acuerdo a los resultados de las sesiones PRECREG en las que se validen el seguimiento de los proyectos regulatorios desarrollados por la CREG acorde con el procedimiento definido. | AH52: Manuel Calero | AI52: Secretario Ejecutivo | AJ52: OARE | AK52: JULIAN ROJAS | AL52: 2022-01-03 | AM52: 2022-12-31
A53: 43 | B53: GRUPO DE EJECUCIÓN ESTRATEGICA DEL SECTOR EXTRACTIVO - EJECUCIÓN | C53: Posibilidad de afectación Reputacional por Por falta de seguimiento del equipo GEESE. debido a No se realizan mesas de seguimiento que permitan evidenciar el avance y terminación de los proyectos que se traducen en nuevos usuarios de energía eléctrica para su oportuno reporte. | D53: Reputacional | E53: Por falta de seguimiento del equipo GEESE. | F53: No se realizan mesas de seguimiento que permitan evidenciar el avance y terminación de los proyectos que se traducen en nuevos usuarios de energía eléctrica para su oportuno reporte. | G53: Estratégico | H53: Usuarios, productos y practicas , organizacionales | I53: 50 | J53: =IF(I53<=0,"",IF(I53<=2,"Muy Baja",IF(I53<=5,"Baja",IF(I53<=19,"Media",IF(I53<=50,"Alta","Muy Alta"))))) -> Alta | K53: =IF(J53="","",IF(J53="Muy Baja",0.2,IF(J53="Baja",0.4,IF(J53="Media",0.6,IF(J53="Alta",0.8,IF(J53="Muy Alta",1,)))))) -> 0.8 | L53: El riesgo afecta la imagen de la entidad a nivel nacional, con efecto publicitarios sostenible a nivel país | M53: El riesgo afecta la imagen de la entidad a nivel nacional, con efecto publicitarios sostenible a nivel país | N53: Catastrófico | O53: =IF(N53="","",IF(N53="Leve",0.2,IF(N53="Menor",0.4,IF(N53="Moderado",0.6,IF(N53="Mayor",0.8,IF(N53="Catastrófico",1,)))))) -> 1 | P53: =IF(OR(AND(J53="Muy Baja",N53="Leve"),AND(J53="Muy Baja",N53="Menor"),AND(J53="Baja",N53="Leve")),"Bajo",IF(OR(AND(J53="Muy baja",N53="Moderado"),AND(J53="Baja",N53="Menor"),AND(J53="Baja",N53="Moderado"),AND(J53="Media",N53="Leve"),AND(J53="Media",N53="Menor"),AND(J53="Media",N53="Moderado"),AND(J53="Alta",N53="Leve"),AND(J53="Alta",N53="Menor")),"Moderado",IF(OR(AND(J53="Muy Baja",N53="Mayor"),AND(J53="Baja",N53="Mayor"),AND(J53="Media",N53="Mayor"),AND(J53="Alta",N53="Moderado"),AND(J53="Alta",N53="Mayor"),AND(J53="Muy Alta",N53="Leve"),AND(J53="Muy Alta",N53="Menor"),AND(J53="Muy Alta",N53="Moderado"),AND(J53="Muy Alta",N53="Mayor")),"Alto",IF(OR(AND(J53="Muy Baja",N53="Catastrófico"),AND(J53="Baja",N53="Catastrófico"),AND(J53="Media",N53="Catastrófico"),AND(J53="Alta",N53="Catastrófico"),AND(J53="Muy Alta",N53="Catastrófico")),"Extremo","")))) -> Extremo | Q53: 1 | R53: El grupo técnico del GEESE realizará mesas de seguimiento, así como llamadas y visitas a través de las cuales pueda evidenciar el avance y terminación de los proyectos que se traducen en nuevos usuarios de energía eléctrica para su oportuno reporte. | S53: =IF(OR(T53="Preventivo",T53="Detectivo"),"Probabilidad",IF(T53="Correctivo","Impacto","")) -> Probabilidad | T53: Preventivo | U53: Manual | V53: =IF(AND(T53="Preventivo",U53="Automático"),"50%",IF(AND(T53="Preventivo",U53="Manual"),"40%",IF(AND(T53="Detectivo",U53="Automático"),"40%",IF(AND(T53="Detectivo",U53="Manual"),"30%",IF(AND(T53="Correctivo",U53="Automático"),"35%",IF(AND(T53="Correctivo",U53="Manual"),"25%","")))))) -> 40% | W53: Documentado | X53: Continua | Y53: Con Registro | Z53: =IFERROR(IF(S53="Probabilidad",(K53-(+K53*V53)),IF(S53="Impacto",K53,"")),"") -> 0.48 | AA53: =IFERROR(IF(Z53="","",IF(Z53<=0.2,"Muy Baja",IF(Z53<=0.4,"Baja",IF(Z53<=0.6,"Media",IF(Z53<=0.8,"Alta","Muy Alta"))))),"") -> Media | AB53: =+Z53 -> 0.48 | AC53: =IFERROR(IF(AD53="","",IF(AD53<=0.2,"Leve",IF(AD53<=0.4,"Menor",IF(AD53<=0.6,"Moderado",IF(AD53<=0.8,"Mayor","Catastrófico"))))),"") -> Catastrófico | AD53: =IFERROR(IF(S53="Impacto",(O53-(+O53*V53)),IF(S53="Probabilidad",O53,"")),"") -> 1 | AE53: =IFERROR(IF(OR(AND(AA53="Muy Baja",AC53="Leve"),AND(AA53="Muy Baja",AC53="Menor"),AND(AA53="Baja",AC53="Leve")),"Bajo",IF(OR(AND(AA53="Muy baja",AC53="Moderado"),AND(AA53="Baja",AC53="Menor"),AND(AA53="Baja",AC53="Moderado"),AND(AA53="Media",AC53="Leve"),AND(AA53="Media",AC53="Menor"),AND(AA53="Media",AC53="Moderado"),AND(AA53="Alta",AC53="Leve"),AND(AA53="Alta",AC53="Menor")),"Moderado",IF(OR(AND(AA53="Muy Baja",AC53="Mayor"),AND(AA53="Baja",AC53="Mayor"),AND(AA53="Media",AC53="Mayor"),AND(AA53="Alta",AC53="Moderado"),AND(AA53="Alta",AC53="Mayor"),AND(AA53="Muy Alta",AC53="Leve"),AND(AA53="Muy Alta",AC53="Menor"),AND(AA53="Muy Alta",AC53="Moderado"),AND(AA53="Muy Alta",AC53="Mayor")),"Alto",IF(OR(AND(AA53="Muy Baja",AC53="Catastrófico"),AND(AA53="Baja",AC53="Catastrófico"),AND(AA53="Media",AC53="Catastrófico"),AND(AA53="Alta",AC53="Catastrófico"),AND(AA53="Muy Alta",AC53="Catastrófico")),"Extremo","")))),"") -> Extremo | AF53: Evitar | AG53: Programar mesas de seguimiento, así como llamadas y visitas a través de las cuales pueda evidenciar el avance y terminación de los proyectos que se traducen en nuevos usuarios de energía eléctrica para su oportuno reporte. Se levantará lista de asistencia que evidencie el desarrollo de la reunión, asi como la matriz de seguimiento con el fin de facilitar los procesos de revisión de los proyectos. | AH53: Eduard Estrada | AI53: Profesional Universitario | AJ53: GEESE | AK53: Monica Verdugo | AL53: 2022-01-03 | AM53: 2022-12-31
A54: 44 | B54: GRUPO DE EJECUCIÓN ESTRATEGICA DEL SECTOR EXTRACTIVO - EJECUCIÓN | C54: Posibilidad de afectación Reputacional por Retrasos en la verificación de requisitos por parte del equipo técnico del GEESE debido a No se envian oportunamente las comunicaciones a las entidades adscritas al Ministerio que apoyan esta función (IPSE y UPME), entre otros. | D54: Reputacional | E54: Retrasos en la verificación de requisitos por parte del equipo técnico del GEESE | F54: No se envian oportunamente las comunicaciones a las entidades adscritas al Ministerio que apoyan esta función (IPSE y UPME), entre otros. | G54: Estratégico | H54: Usuarios, productos y practicas , organizacionales | I54: 50 | J54: Alta | K54: 0.8 | L54: El riesgo afecta la imagen de la entidad a nivel nacional, con efecto publicitarios sostenible a nivel país | M54: El riesgo afecta la imagen de la entidad a nivel nacional, con efecto publicitarios sostenible a nivel país | N54: Catastrófico | O54: 1 | P54: Extremo | Q54: 1 | R54: El grupo técnico del GEESE, realizará un estricto seguimiento a las solicitudes para la emisión oportuna de conceptos, a través de una matriz de control de los mismos, mesas de trabajo de control, envío oportuno de comunicaciones a las entidades adscritas al Ministerio que apoyan esta función (IPSE y UPME), entre otros. | S54: Probabilidad | T54: Preventivo | U54: Manual | V54: 40% | W54: Documentado | X54: Continua | Y54: Con Registro | Z54: 0.48 | AA54: Media | AB54: 0.48 | AC54: Catastrófico | AD54: 1 | AE54: Extremo | AF54: Evitar | AG54: Realizar un estricto seguimiento a las solicitudes para la emisión oportuna de conceptos, a través de una matriz de control de los mismos, mesas de trabajo de control, envío oportuno de comunicaciones a las entidades adscritas al Ministerio que apoyan esta función (IPSE y UPME). Se levantará lista de asistencia que evidencie el desarrollo de la reunión, asi como la matriz de seguimiento con el fin de facilitar los procesos de revisión de las solicitudes de conceptos de los proyectos. | AH54: Eduard Estrada | AI54: Profesional Universitario | AJ54: GEESE | AK54: Monica Verdugo | AL54: 2022-01-03 | AM54: 2022-12-31
A55: 45 | B55: GRUPO DE EJECUCIÓN ESTRATEGICA DEL SECTOR EXTRACTIVO - EJECUCIÓN | C55: Posibilidad de afectación Reputacional por Retrasos en los tiempos propuestos para realizar la distribución y asignación de los recursos del incentivo a la producción en el marco de las metodologías adoptadas por la Comisión Rectora del SGR. debido a Debido a que no se aplican los criterios de distribución y asignación de los recursos del incentivo a la producción de manera oportuna para el cumplimiento de los plazos propuestos. | D55: Reputacional | E55: Retrasos en los tiempos propuestos para realizar la distribución y asignación de los recursos del incentivo a la producción en el marco de las metodologías adoptadas por la Comisión Rectora del SGR. | F55: Debido a que no se aplican los criterios de distribución y asignación de los recursos del incentivo a la producción de manera oportuna para el cumplimiento de los plazos propuestos. | G55: Cumplimiento | H55: Ejecucion y Administracion de procesos | I55: 10 | J55: Media | K55: 0.6 | L55: El riesgo afecta la imagen de la entidad a nivel nacional, con efecto publicitarios sostenible a nivel país | M55: El riesgo afecta la imagen de la entidad a nivel nacional, con efecto publicitarios sostenible a nivel país | N55: Catastrófico | O55: 1 | P55: Extremo | Q55: 1 | R55: El Grupo de Ejecución Estratégica del Sector Extractivo (GEESE) promoverá las acciones necesarias para realizar la distribución y asignación de recursos del incentivo a la producción a través de la aplicación de las metodologías adoptadas por la CR del SGR. Dentro de las acciones se realizarán mesas de trabajo para la aplicación de los criterios de distribución, se evaluará el avance en la ejecución de los recursos por cada uno de los municipios beneficiarios de estos recursos, se realizarán los cálculos y validaciones por parte de los equipos técnico, financiero y jurídico del GEESE, y demás dependencias que participan en el proceso, hasta lograr la expedición de los actos administrativos mediante los cuales se distribuyan y asignen los recursos del incentivo a la producción. | S55: Probabilidad | T55: Preventivo | U55: Manual | V55: 40% | W55: Documentado | X55: Continua | Y55: Con Registro | Z55: 0.36 | AA55: Baja | AB55: 0.36 | AC55: Catastrófico | AD55: 1 | AE55: Extremo | AF55: Evitar | AG55: El Grupo de Ejecución Estratégica del Sector Extractivo (GEESE) promoverá las acciones necesarias para realizar la distribución y asignación de recursos del incentivo a la producción a través de la aplicación de las metodologías adoptadas por la CR del SGR. Dentro de las acciones se realizarán mesas de trabajo para la aplicación de los criterios de distribución, se evaluará el avance en la ejecución de los recursos por cada uno de los municipios beneficiarios de estos recursos, se realizarán los cálculos y validaciones por parte de los equipos técnico, financiero y jurídico del GEESE, y demás dependencias que participan en el proceso, hasta lograr la expedición de los actos administrativos mediante los cuales se distribuyan y asignen los recursos del incentivo a la producción. | AH55: Eduard Estrada | AI55: Profesional Universitario | AJ55: GEESE | AK55: Monica Verdugo | AL55: 2022-01-03 | AM55: 2022-12-31
A56: 46 | B56: GRUPO DE EJECUCIÓN ESTRATEGICA DEL SECTOR EXTRACTIVO - EJECUCIÓN | C56: Posibilidad de afectación Reputacional por Por desconocimiento sobre los Acuerdos de la CR del SGR mediante los cuales se adoptaron las metodologías para la distribución y asignación de los recursos destinados a incentivar la producción de recursos naturales no renovables (RNNR) debido a Debido al desconocimiento de los criterios par ala distribución y asignación de los recursos destinados a incentivar la producción de RNNR | D56: Reputacional | E56: Por desconocimiento sobre los Acuerdos de la CR del SGR mediante los cuales se adoptaron las metodologías para la distribución y asignación de los recursos destinados a incentivar la producción de recursos naturales no renovables (RNNR) | F56: Debido al desconocimiento de los criterios par ala distribución y asignación de los recursos destinados a incentivar la producción de RNNR | G56: Cumplimiento | H56: Ejecucion y Administracion de procesos | I56: 10 | J56: Media | K56: 0.6 | L56: El riesgo afecta la imagen de la entidad a nivel nacional, con efecto publicitarios sostenible a nivel país | M56: El riesgo afecta la imagen de la entidad a nivel nacional, con efecto publicitarios sostenible a nivel país | N56: Catastrófico | O56: 1 | P56: Extremo | Q56: 1 | R56: El Grupo de Ejecución Estratégica del Sector Extractivo (GEESE) promoverá las acciones necesarias para realizar la distribución y asignación de recursos del incentivo a la producción a través de la aplicación de las metodologías adoptadas por la CR del SGR. Dentro de las acciones se realizarán mesas de trabajo para la aplicación de los criterios de distribución, se evaluará el avance en la ejecución de los recursos por cada uno de los municipios beneficiarios de estos recursos, se realizarán los cálculos y validaciones por parte de los equipos técnico, financiero y jurídico del GEESE, y demás dependencias que participan en el proceso, hasta lograr la expedición de los actos administrativos mediante los cuales se distribuyan y asignen los recursos del incentivo a la producción. | S56: Probabilidad | T56: Preventivo | U56: Manual | V56: 40% | W56: Documentado | X56: Continua | Y56: Con Registro | Z56: 0.36 | AA56: Baja | AB56: 0.36 | AC56: Catastrófico | AD56: 1 | AE56: Extremo | AF56: Evitar | AG56: El Grupo de Ejecución Estratégica del Sector Extractivo (GEESE) promoverá las acciones necesarias para realizar la distribución y asignación de recursos del incentivo a la producción a través de la aplicación de las metodologías adoptadas por la CR del SGR. Dentro de las acciones se realizarán mesas de trabajo para la aplicación de los criterios de distribución, se evaluará el avance en la ejecución de los recursos por cada uno de los municipios beneficiarios de estos recursos, se realizarán los cálculos y validaciones por parte de los equipos técnico, financiero y jurídico del GEESE, y demás dependencias que participan en el proceso, hasta lograr la expedición de los actos administrativos mediante los cuales se distribuyan y asignen los recursos del incentivo a la producción. | AH56: Eduard Estrada | AI56: Profesional Universitario | AJ56: GEESE | AK56: Monica Verdugo | AL56: 2022-01-03 | AM56: 2022-12-31
A57: 47 | B57: GRUPO DE EJECUCIÓN ESTRATEGICA DEL SECTOR EXTRACTIVO - EJECUCIÓN | C57: Posibilidad de afectación Reputacional por Por no realizar el requerimiento de información a las Agencias con la debida anticipación. debido a Debido a que no se realiza consolidación y validación de la información que calcula la ANH y la ANM | D57: Reputacional | E57: Por no realizar el requerimiento de información a las Agencias con la debida anticipación. | F57: Debido a que no se realiza consolidación y validación de la información que calcula la ANH y la ANM | G57: Estratégico | H57: Ejecucion y Administracion de procesos | I57: 10 | J57: Media | K57: 0.6 | L57: El riesgo afecta la imagen de la entidad a nivel nacional, con efecto publicitarios sostenible a nivel país | M57: El riesgo afecta la imagen de la entidad a nivel nacional, con efecto publicitarios sostenible a nivel país | N57: Catastrófico | O57: 1 | P57: Extremo | Q57: 1 | R57: El GEESE requerirá a la Agencia Nacional de Minería y la Agencia Nacional de Hidrocarburos con anticipación los insumos que fueron definidos en la Ley 2056 de 2020 y su reglamentación, para su consolidación y posterior remisión al DNP y MHCP, conforme los términos dispuestos en la normativa vigente. | S57: Probabilidad | T57: Preventivo | U57: Manual | V57: 40% | W57: Documentado | X57: Continua | Y57: Con Registro | Z57: 0.36 | AA57: Baja | AB57: 0.36 | AC57: Catastrófico | AD57: 1 | AE57: Extremo | AF57: Evitar | AG57: El Grupo de Ejecución Estratégica del Sector Extractivo (GEESE) realizará el requerimiento con anticipación a la Agencia Nacional de Minería y la Agencia Nacional de Hidrocarburos de los insumos que fueron definidos en la Ley 2056 de 2020 y su reglamentación, para su consolidación y posterior remisión al DNP y MHCP, conforme los términos dispuestos en la normativa vigente. Esto se realizará a través de oficios y correos electronicos. | AH57: Eduard Estrada | AI57: Profesional Universitario | AJ57: GEESE | AK57: Monica Verdugo | AL57: 2022-01-03 | AM57: 2022-12-31
A58: 48 | B58: GRUPO DE EJECUCIÓN ESTRATEGICA DEL SECTOR EXTRACTIVO - EJECUCIÓN | C58: Posibilidad de afectación Reputacional por Por falta de seguimiento del equipo técnico del GEESE. debido a No se realizan mesas de seguimiento que permitan evidenciar los objetivos y fines de la fuente de inversión de los proyectos de inversión financiados con recursos del incentivo a la producción. | D58: Reputacional | E58: Por falta de seguimiento del equipo técnico del GEESE. | F58: No se realizan mesas de seguimiento que permitan evidenciar los objetivos y fines de la fuente de inversión de los proyectos de inversión financiados con recursos del incentivo a la producción. | G58: Estratégico | H58: Usuarios, productos y practicas , organizacionales | I58: 50 | J58: Alta | K58: 0.8 | L58: El riesgo afecta la imagen de la entidad a nivel nacional, con efecto publicitarios sostenible a nivel país | M58: El riesgo afecta la imagen de la entidad a nivel nacional, con efecto publicitarios sostenible a nivel país | N58: Catastrófico | O58: 1 | P58: Extremo | Q58: 1 | R58: El GEESE realizará el acompañamiento técnico a los municipios beneficiarios del incentivo a la producción y emitirá un oficio de cumplimiento previo a la aprobación de los proyectos, en el cual se registrará que el proyecto de inversión cumple con los objetivos y fines de esta fuente de inversión. | S58: Probabilidad | T58: Preventivo | U58: Manual | V58: 40% | W58: Documentado | X58: Continua | Y58: Con Registro | Z58: 0.48 | AA58: Media | AB58: 0.48 | AC58: Catastrófico | AD58: 1 | AE58: Extremo | AF58: Evitar | AG58: El Grupo de Ejecución Estratégica del Sector Extractivo (GEESE) realizará el acompañamiento técnico a los municipios beneficiarios del incentivo a la producción y emitirá un oficio de cumplimiento previo a la aprobación de los proyectos, en el cual se registrará que el proyecto de inversión cumple con los objetivos y fines de esta fuente de inversión. | AH58: Eduard Estrada | AI58: Profesional Universitario | AJ58: GEESE | AK58: Monica Verdugo | AL58: 2022-01-03 | AM58: 2022-12-31
A59: 49 | B59: ASUNTOS AMBIENTALES Y SOCIALES - EJECUCIÓN Y SEGUIMIENTO | C59: Posibilidad de afectación Económico y Reputacional por incumplimiento en planes, programas y proyectos de inversión y en las metas a nivel socio-ambiental de diferentes partes interesadas debido a Falta de ejecución y seguimiento oportuno a los indicadores establecidos en el Plan de Acción a cargo de la Oficina de Asuntos Ambientales y Sociales | D59: Económico y Reputacional | E59: incumplimiento en planes, programas y proyectos de inversión y en las metas a nivel socio-ambiental de diferentes partes interesadas | F59: Falta de ejecución y seguimiento oportuno a los indicadores establecidos en el Plan de Acción a cargo de la Oficina de Asuntos Ambientales y Sociales | G59: Estratégico | H59: Ejecucion y Administracion de procesos | I59: 12 | J59: =IF(I59<=0,"",IF(I59<=2,"Muy Baja",IF(I59<=5,"Baja",IF(I59<=19,"Media",IF(I59<=50,"Alta","Muy Alta"))))) -> Media | K59: =IF(J59="","",IF(J59="Muy Baja",0.2,IF(J59="Baja",0.4,IF(J59="Media",0.6,IF(J59="Alta",0.8,IF(J59="Muy Alta",1,)))))) -> 0.6 | L59: El riesgo afecta la imagen de la entidad con algunos usuarios de relevancia frente al logro de los objetivos | M59: =IF(NOT(ISERROR(MATCH(L59,'Tabla Impacto'!$B$221:$B$223,0))),'Tabla Impacto'!$F$223&"Por favor no seleccionar los criterios de impacto(Afectación Económica o presupuestal y Pérdida Reputacional)",L59) -> El riesgo afecta la imagen de la entidad con algunos usuarios de relevancia frente al logro de los objetivos | N59: =IF(OR(M59='Tabla Impacto'!$C$11,M59='Tabla Impacto'!$D$11),"Leve",IF(OR(M59='Tabla Impacto'!$C$12,M59='Tabla Impacto'!$D$12),"Menor",IF(OR(M59='Tabla Impacto'!$C$13,M59='Tabla Impacto'!$D$13),"Moderado",IF(OR(M59='Tabla Impacto'!$C$14,M59='Tabla Impacto'!$D$14),"Mayor",IF(OR(M59='Tabla Impacto'!$C$15,M59='Tabla Impacto'!$D$15),"Catastrófico",""))))) -> Moderado | O59: =IF(N59="","",IF(N59="Leve",0.2,IF(N59="Menor",0.4,IF(N59="Moderado",0.6,IF(N59="Mayor",0.8,IF(N59="Catastrófico",1,)))))) -> 0.6 | P59: =IF(OR(AND(J59="Muy Baja",N59="Leve"),AND(J59="Muy Baja",N59="Menor"),AND(J59="Baja",N59="Leve")),"Bajo",IF(OR(AND(J59="Muy baja",N59="Moderado"),AND(J59="Baja",N59="Menor"),AND(J59="Baja",N59="Moderado"),AND(J59="Media",N59="Leve"),AND(J59="Media",N59="Menor"),AND(J59="Media",N59="Moderado"),AND(J59="Alta",N59="Leve"),AND(J59="Alta",N59="Menor")),"Moderado",IF(OR(AND(J59="Muy Baja",N59="Mayor"),AND(J59="Baja",N59="Mayor"),AND(J59="Media",N59="Mayor"),AND(J59="Alta",N59="Moderado"),AND(J59="Alta",N59="Mayor"),AND(J59="Muy Alta",N59="Leve"),AND(J59="Muy Alta",N59="Menor"),AND(J59="Muy Alta",N59="Moderado"),AND(J59="Muy Alta",N59="Mayor")),"Alto",IF(OR(AND(J59="Muy Baja",N59="Catastrófico"),AND(J59="Baja",N59="Catastrófico"),AND(J59="Media",N59="Catastrófico"),AND(J59="Alta",N59="Catastrófico"),AND(J59="Muy Alta",N59="Catastrófico")),"Extremo","")))) -> Moderado | Q59: 1 | R59: El profesional de la oficina de Asuntos Ambientales y Sociales, revisa y verifica los avances reportados por los líderes de la OAAS en cumplimiento con las metas establecidas en el Plan de Acción para la vigencia 2022, por medio de un instrumento de seguimiento que permita ver cumplimientos de manera global y por indicador establecidos dentro del plan | S59: Probabilidad | T59: Preventivo | U59: Manual | V59: 40% | W59: Documentado | X59: Continua | Y59: Con Registro | Z59: =IFERROR(IF(S59="Probabilidad",(K59-(+K59*V59)),IF(S59="Impacto",K59,"")),"") -> 0.36 | AA59: Baja | AB59: 0.36 | AC59: Moderado | AD59: =IFERROR(IF(S59="Impacto",(O59-(+O59*V59)),IF(S59="Probabilidad",O59,"")),"") -> 0.6 | AE59: Moderado | AF59: Evitar | AG59: Desde la OAAS mensualmente se realizar seguimiento a los indicadores que integran el plan de acción a cargo de la oficina, verificando el cumplimiento que esten acorde a la programación establecida y justificando su nivel de avance. | AH59: LUISA FERNANDA AVILA MARTINEZ | AI59: CONTRATISTA | AJ59: OAAS | AK59: MARIA PAULA MORENO | AL59: 2022-02-01 | AM59: 31/21/2022
A60: 50 | B60: ASUNTOS AMBIENTALES Y SOCIALES - EJECUCIÓN Y SEGUIMIENTO | C60: Posibilidad de afectación Económico y Reputacional por Incumplimiento en los productos y servicios resultados de las contrataciones, así como de los proyectos de inversión. debido a la falta de seguimiento y control operativo al cumplimiento y entrega de los productos establecidos contractualmente con proveedores y/o contratistas a cargo de la OAAS | D60: Económico y Reputacional | E60: Incumplimiento en los productos y servicios resultados de las contrataciones, así como de los proyectos de inversión. | F60: la falta de seguimiento y control operativo al cumplimiento y entrega de los productos establecidos contractualmente con proveedores y/o contratistas a cargo de la OAAS | G60: Cumplimiento | H60: Usuarios, productos y practicas , organizacionales | I60: 12 | J60: Media | K60: 0.6 | L60: El riesgo afecta la imagen de la entidad con algunos usuarios de relevancia frente al logro de los objetivos | M60: =IF(NOT(ISERROR(MATCH(L60,'Tabla Impacto'!$B$221:$B$223,0))),'Tabla Impacto'!$F$223&"Por favor no seleccionar los criterios de impacto(Afectación Económica o presupuestal y Pérdida Reputacional)",L60) -> El riesgo afecta la imagen de la entidad con algunos usuarios de relevancia frente al logro de los objetivos | N60: =IF(OR(M60='Tabla Impacto'!$C$11,M60='Tabla Impacto'!$D$11),"Leve",IF(OR(M60='Tabla Impacto'!$C$12,M60='Tabla Impacto'!$D$12),"Menor",IF(OR(M60='Tabla Impacto'!$C$13,M60='Tabla Impacto'!$D$13),"Moderado",IF(OR(M60='Tabla Impacto'!$C$14,M60='Tabla Impacto'!$D$14),"Mayor",IF(OR(M60='Tabla Impacto'!$C$15,M60='Tabla Impacto'!$D$15),"Catastrófico",""))))) -> Moderado | O60: 0.6 | P60: Moderado | Q60: 1 | R60: El supervisor en conjunto con los profesionales asignado de la Oficina de Asuntos Ambientales y Sociales revisa y verifica los informes y avances programados para cumplimiento de acuerdos contractuales y metas de proyectos de inversión establecidas para la Oficina de Asuntos Ambientales y sociales en la vigencia 2022, por medio de un instrumento de seguimiento que permita evidenciar los avances en términos presupuestales y de producto. | S60: =IF(OR(T60="Preventivo",T60="Detectivo"),"Probabilidad",IF(T60="Correctivo","Impacto","")) -> Probabilidad | T60: Preventivo | U60: Manual | V60: =IF(AND(T60="Preventivo",U60="Automático"),"50%",IF(AND(T60="Preventivo",U60="Manual"),"40%",IF(AND(T60="Detectivo",U60="Automático"),"40%",IF(AND(T60="Detectivo",U60="Manual"),"30%",IF(AND(T60="Correctivo",U60="Automático"),"35%",IF(AND(T60="Correctivo",U60="Manual"),"25%","")))))) -> 40% | W60: Documentado | X60: Continua | Y60: Con Registro | Z60: 0.36 | AA60: =IFERROR(IF(Z60="","",IF(Z60<=0.2,"Muy Baja",IF(Z60<=0.4,"Baja",IF(Z60<=0.6,"Media",IF(Z60<=0.8,"Alta","Muy Alta"))))),"") -> Baja | AB60: 0.36 | AC60: Moderado | AD60: 0.6 | AE60: Moderado | AF60: Evitar | AG60: Desde la OAAS mensualmente se realizar seguimiento a los entregables contractuales y productos de los proyectos de inversión a cargo de la oficina, verificando el cumplimiento que esten acorde a la programación establecida y justificando su nivel de avance por medio del registro de información en las platataformas SECOP II y Neón según aplique. | AH60: KATHERINE RAMIREZ HIGUITA | AI60: CONTRATISTA | AJ60: OAAS | AK60: MARIA PAULA MORENO | AL60: 2022-01-01 | AM60: 2022-12-31
A61: 51 | B61: ASUNTOS AMBIENTALES Y SOCIALES - EJECUCIÓN Y SEGUIMIENTO | C61: Posibilidad de afectación Reputacional por pérdida de información de valor para el Sector Minero energético en materia socio ambiental debido a la falta de lineamientos o metodología establecidas en la Oficina frente al manejo de la memoria institucional alineados con las políticas del Ministerio. | D61: Reputacional | E61: pérdida de información de valor para el Sector Minero energético en materia socio ambiental | F61: la falta de lineamientos o metodología establecidas en la Oficina frente al manejo de la memoria institucional alineados con las políticas del Ministerio. | G61: Estratégico | H61: Usuarios, productos y practicas , organizacionales | I61: 4 | J61: Baja | K61: 0.4 | L61: El riesgo afecta la imagen de la entidad internamente, de conocimiento general, nivel interno, de junta dircetiva y accionistas y/o de provedores | M61: =IF(NOT(ISERROR(MATCH(L61,'Tabla Impacto'!$B$221:$B$223,0))),'Tabla Impacto'!$F$223&"Por favor no seleccionar los criterios de impacto(Afectación Económica o presupuestal y Pérdida Reputacional)",L61) -> El riesgo afecta la imagen de la entidad internamente, de conocimiento general, nivel interno, de junta dircetiva y accionistas y/o de provedores | N61: =IF(OR(M61='Tabla Impacto'!$C$11,M61='Tabla Impacto'!$D$11),"Leve",IF(OR(M61='Tabla Impacto'!$C$12,M61='Tabla Impacto'!$D$12),"Menor",IF(OR(M61='Tabla Impacto'!$C$13,M61='Tabla Impacto'!$D$13),"Moderado",IF(OR(M61='Tabla Impacto'!$C$14,M61='Tabla Impacto'!$D$14),"Mayor",IF(OR(M61='Tabla Impacto'!$C$15,M61='Tabla Impacto'!$D$15),"Catastrófico",""))))) -> Menor | O61: 0.4 | P61: Moderado | Q61: 1 | R61: El jefe de Oficina de Asuntos Ambientales y Sociales en conjunto con su equipo de trabajo establecen, definen e implementan lineamientos acorde con las políticas establecidas dentro del Ministerio para el manejo y repositorio de información relacionada con la gestión de la OAAS durante la vigencia 2022. | S61: Probabilidad | T61: Preventivo | U61: Manual | V61: 40% | W61: Documentado | X61: Aleatoria | Y61: Con Registro | Z61: 0.24 | AA61: Baja | AB61: 0.24 | AC61: Menor | AD61: 0.4 | AE61: Moderado | AF61: Evitar | AG61: Desde la OAAS de manera trimestral se realizará la verificación del cumplimiento de los lineamientos establecidos para el manejo y repositorio de información por medio de un formato de validación tipo check list. | AH61: LUIS EDUARDO SIERRA | AI61: Profesional Especializado | AJ61: OAAS | AK61: MARIA PAULA MORENO | AL61: 2022-04-01 | AM61: 2022-12-31
A62: 52 | B62: ASUNTOS AMBIENTALES Y SOCIALES - EJECUCIÓN Y SEGUIMIENTO | C62: Posibilidad de afectación Reputacional por incumplimiento en los tiempos de respuesta de los PQRS a cargo de la OAAS debido a falta de seguimiento periodico a la gestión y/o respuesta de los PQRS asignadas a la OAAS por medio del aplicativo ARGO. | D62: Reputacional | E62: incumplimiento en los tiempos de respuesta de los PQRS a cargo de la OAAS | F62: falta de seguimiento periodico a la gestión y/o respuesta de los PQRS asignadas a la OAAS por medio del aplicativo ARGO. | G62: Cumplimiento | H62: Ejecucion y Administracion de procesos | I62: 50 | J62: Alta | K62: 0.8 | L62: El riesgo afecta la imagen de la entidad a nivel nacional, con efecto publicitarios sostenible a nivel país | M62: =IF(NOT(ISERROR(MATCH(L62,'Tabla Impacto'!$B$221:$B$223,0))),'Tabla Impacto'!$F$223&"Por favor no seleccionar los criterios de impacto(Afectación Económica o presupuestal y Pérdida Reputacional)",L62) -> El riesgo afecta la imagen de la entidad a nivel nacional, con efecto publicitarios sostenible a nivel país | N62: =IF(OR(M62='Tabla Impacto'!$C$11,M62='Tabla Impacto'!$D$11),"Leve",IF(OR(M62='Tabla Impacto'!$C$12,M62='Tabla Impacto'!$D$12),"Menor",IF(OR(M62='Tabla Impacto'!$C$13,M62='Tabla Impacto'!$D$13),"Moderado",IF(OR(M62='Tabla Impacto'!$C$14,M62='Tabla Impacto'!$D$14),"Mayor",IF(OR(M62='Tabla Impacto'!$C$15,M62='Tabla Impacto'!$D$15),"Catastrófico",""))))) -> Catastrófico | O62: 1 | P62: Extremo | Q62: 1 | R62: El jefe de Oficina de Asuntos Ambientales y Sociales en conjunto con su equipo de trabajo establecen un plan de acción que permita el seguimiento y cumplimiento a las respuetas de los PQRS asignados a la OAAS, por medio de reportes de seguimiento a la gestión de PQRS a manera de alertas. | S62: Probabilidad | T62: Detectivo | U62: Manual | V62: 30% | W62: Documentado | X62: Continua | Y62: Con Registro | Z62: 0.56 | AA62: Media | AB62: 0.56 | AC62: Catastrófico | AD62: 1 | AE62: Extremo | AF62: Evitar | AG62: Desde la OAAS de manera semanal se generará un anáisis de gestión que de evidencia de los avances frente a los PQRS. | AH62: HECTOR PEREZ CARDONA | AI62: Profesional Especializado | AJ62: OAAS | AK62: MARIA PAULA MORENO | AL62: 2022-02-01 | AM62: 31/21/2022
A63: 53 | B63: GESTIÓN DEL TALENTO HUMANO | C63: Posibilidad de afectación Económico por generación de pagos o descuentos erróneos debido a inconsistencias en el registro de las novedades de nómina. | D63: Económico | E63: generación de pagos o descuentos erróneos | F63: inconsistencias en el registro de las novedades de nómina. | G63: Operativos | H63: Ejecucion y Administracion de procesos | I63: 51 | J63: Muy Alta | K63: 1 | L63: Entre 10 y 50 SMLMV | M63: =IF(NOT(ISERROR(MATCH(L63,'Tabla Impacto'!$B$221:$B$223,0))),'Tabla Impacto'!$F$223&"Por favor no seleccionar los criterios de impacto(Afectación Económica o presupuestal y Pérdida Reputacional)",L63) -> Entre 10 y 50 SMLMV | N63: =IF(OR(M63='Tabla Impacto'!$C$11,M63='Tabla Impacto'!$D$11),"Leve",IF(OR(M63='Tabla Impacto'!$C$12,M63='Tabla Impacto'!$D$12),"Menor",IF(OR(M63='Tabla Impacto'!$C$13,M63='Tabla Impacto'!$D$13),"Moderado",IF(OR(M63='Tabla Impacto'!$C$14,M63='Tabla Impacto'!$D$14),"Mayor",IF(OR(M63='Tabla Impacto'!$C$15,M63='Tabla Impacto'!$D$15),"Catastrófico",""))))) -> Menor | O63: 0.4 | P63: Alto | Q63: 1 | R63: El profesional del Grupo Nomina y Prestaciones Sociales registra las novedades a traves del aplicativo SARA los primeros 10 dias del mes y otro funcionario verifica la inclusión y veracidad de la novedad en el sistema. El profesional del Grupo Nomina y Prestaciones Sociales realiza los ajustes de devolución en el siguiente mes con previa autorización del funcionario. | S63: Impacto | T63: Correctivo | U63: Manual | V63: 25% | W63: Documentado | X63: Continua | Y63: Con Registro | Z63: 1 | AA63: Muy Alta | AB63: 1 | AC63: Menor | AD63: 0.3 | AE63: Alto | AF63: Evitar | AG63: Revisar y verificar las novedades de nómina de terceros que se ingresaron en el sistema antes de la verificación del jefe inmediato | AH63: IVONNE RUIZ | AI63: PROFESIONAL UNIVERSITARIO | AJ63: SUBDIRECCIÓN DE TALENTO HUMANO | AK63: SANDRA MILENA RODRIGUEZ RAMIREZ | AL63: 2022-01-01 | AM63: 2022-12-31
A64: 54 | B64: GESTIÓN DEL TALENTO HUMANO | C64: Posibilidad de afectación Reputacional por mala imagen en la falta de transparencia para el proceso de vinculación debido a Nombrar ó encargar a un servidor público que no cumpla con los requisitos existentes en el manual de funciones vigente de la entidad | D64: Reputacional | E64: mala imagen en la falta de transparencia para el proceso de vinculación | F64: Nombrar ó encargar a un servidor público que no cumpla con los requisitos existentes en el manual de funciones vigente de la entidad | G64: Operativo | H64: Ejecucion y Administracion de procesos | I64: 80 | J64: =IF(I64<=0,"",IF(I64<=2,"Muy Baja",IF(I64<=5,"Baja",IF(I64<=19,"Media",IF(I64<=50,"Alta","Muy Alta"))))) -> Muy Alta | K64: =IF(J64="","",IF(J64="Muy Baja",0.2,IF(J64="Baja",0.4,IF(J64="Media",0.6,IF(J64="Alta",0.8,IF(J64="Muy Alta",1,)))))) -> 1 | L64: El riesgo afecta la imagen de alguna área de la organización | M64: =IF(NOT(ISERROR(MATCH(L64,'Tabla Impacto'!$B$221:$B$223,0))),'Tabla Impacto'!$F$223&"Por favor no seleccionar los criterios de impacto(Afectación Económica o presupuestal y Pérdida Reputacional)",L64) -> El riesgo afecta la imagen de alguna área de la organización | N64: =IF(OR(M64='Tabla Impacto'!$C$11,M64='Tabla Impacto'!$D$11),"Leve",IF(OR(M64='Tabla Impacto'!$C$12,M64='Tabla Impacto'!$D$12),"Menor",IF(OR(M64='Tabla Impacto'!$C$13,M64='Tabla Impacto'!$D$13),"Moderado",IF(OR(M64='Tabla Impacto'!$C$14,M64='Tabla Impacto'!$D$14),"Mayor",IF(OR(M64='Tabla Impacto'!$C$15,M64='Tabla Impacto'!$D$15),"Catastrófico",""))))) -> Leve | O64: =IF(N64="","",IF(N64="Leve",0.2,IF(N64="Menor",0.4,IF(N64="Moderado",0.6,IF(N64="Mayor",0.8,IF(N64="Catastrófico",1,)))))) -> 0.2 | P64: =IF(OR(AND(J64="Muy Baja",N64="Leve"),AND(J64="Muy Baja",N64="Menor"),AND(J64="Baja",N64="Leve")),"Bajo",IF(OR(AND(J64="Muy baja",N64="Moderado"),AND(J64="Baja",N64="Menor"),AND(J64="Baja",N64="Moderado"),AND(J64="Media",N64="Leve"),AND(J64="Media",N64="Menor"),AND(J64="Media",N64="Moderado"),AND(J64="Alta",N64="Leve"),AND(J64="Alta",N64="Menor")),"Moderado",IF(OR(AND(J64="Muy Baja",N64="Mayor"),AND(J64="Baja",N64="Mayor"),AND(J64="Media",N64="Mayor"),AND(J64="Alta",N64="Moderado"),AND(J64="Alta",N64="Mayor"),AND(J64="Muy Alta",N64="Leve"),AND(J64="Muy Alta",N64="Menor"),AND(J64="Muy Alta",N64="Moderado"),AND(J64="Muy Alta",N64="Mayor")),"Alto",IF(OR(AND(J64="Muy Baja",N64="Catastrófico"),AND(J64="Baja",N64="Catastrófico"),AND(J64="Media",N64="Catastrófico"),AND(J64="Alta",N64="Catastrófico"),AND(J64="Muy Alta",N64="Catastrófico")),"Extremo","")))) -> Alto | R64: El profesional del Grupo de Gestión Laboral y Carrera Administrativa, verifica que la información suministrada por el candidato cumpla con los requisitos establecidos en el manual de funciones, a traves de una lista de chequeo de verificación de documentos y la certificación de cumplimiento de requisitos establecidos en el procedimiento de provisión de empleo. El profesional del Grupo de Gestión Laboral y Carrera Administrativa, elabora el proyecto de acto administrativo de revocatoria de nombramiento en caso de que se materialice el riesgo | S64: Impacto | T64: Correctivo | U64: Manual | V64: 25% | W64: Documentado | X64: Continua | Y64: Con Registro | Z64: =IFERROR(IF(S64="Probabilidad",(K64-(+K64*V64)),IF(S64="Impacto",K64,"")),"") -> 1 | AA64: =IFERROR(IF(Z64="","",IF(Z64<=0.2,"Muy Baja",IF(Z64<=0.4,"Baja",IF(Z64<=0.6,"Media",IF(Z64<=0.8,"Alta","Muy Alta"))))),"") -> Muy Alta | AB64: =+Z64 -> 1 | AC64: =IFERROR(IF(AD64="","",IF(AD64<=0.2,"Leve",IF(AD64<=0.4,"Menor",IF(AD64<=0.6,"Moderado",IF(AD64<=0.8,"Mayor","Catastrófico"))))),"") -> Leve | AD64: =IFERROR(IF(S64="Impacto",(O64-(+O64*V64)),IF(S64="Probabilidad",O64,"")),"") -> 0.15 | AE64: =IFERROR(IF(OR(AND(AA64="Muy Baja",AC64="Leve"),AND(AA64="Muy Baja",AC64="Menor"),AND(AA64="Baja",AC64="Leve")),"Bajo",IF(OR(AND(AA64="Muy baja",AC64="Moderado"),AND(AA64="Baja",AC64="Menor"),AND(AA64="Baja",AC64="Moderado"),AND(AA64="Media",AC64="Leve"),AND(AA64="Media",AC64="Menor"),AND(AA64="Media",AC64="Moderado"),AND(AA64="Alta",AC64="Leve"),AND(AA64="Alta",AC64="Menor")),"Moderado",IF(OR(AND(AA64="Muy Baja",AC64="Mayor"),AND(AA64="Baja",AC64="Mayor"),AND(AA64="Media",AC64="Mayor"),AND(AA64="Alta",AC64="Moderado"),AND(AA64="Alta",AC64="Mayor"),AND(AA64="Muy Alta",AC64="Leve"),AND(AA64="Muy Alta",AC64="Menor"),AND(AA64="Muy Alta",AC64="Moderado"),AND(AA64="Muy Alta",AC64="Mayor")),"Alto",IF(OR(AND(AA64="Muy Baja",AC64="Catastrófico"),AND(AA64="Baja",AC64="Catastrófico"),AND(AA64="Media",AC64="Catastrófico"),AND(AA64="Alta",AC64="Catastrófico"),AND(AA64="Muy Alta",AC64="Catastrófico")),"Extremo","")))),"") -> Alto | AF64: Evitar | AG64: verifica que la información suministrada por el candidato cumpla con los requisitos establecidos en el manual de funciones, | AH64: IVONNE RUIZ | AI64: PROFESIONAL UNIVERSITARIO | AJ64: SUBDIRECCIÓN DE TALENTO HUMANO | AK64: SANDRA MILENA RODRIGUEZ RAMIREZ | AL64: 2022-01-01 | AM64: 2022-12-31
A65: 55 | B65: GESTIÓN DEL TALENTO HUMANO | C65: Posibilidad de afectación Económico y Reputacional por ineficiencia en la ejecución de funciones de los funcionarios nuevos y/o remplazantes del ministerio generando mala imagen y ejecuciónes deficientes debido a la fuga de conocimiento porque el funcionario que se retira no entrega de forma completa, detallada y explícita el informe de las funciones y actividades ejercidas en su cargo asi como la documentación según la lista de chequeo establecida para tal fin | D65: Económico y Reputacional | E65: ineficiencia en la ejecución de funciones de los funcionarios nuevos y/o remplazantes del ministerio generando mala imagen y ejecuciónes deficientes | F65: la fuga de conocimiento porque el funcionario que se retira no entrega de forma completa, detallada y explícita el informe de las funciones y actividades ejercidas en su cargo asi como la documentación según la lista de chequeo establecida para tal fin | G65: Operativos | H65: Ejecucion y Administracion de procesos | I65: 40 | J65: Alta | K65: 0.8 | L65: El riesgo afecta la imagen de alguna área de la organización | M65: =IF(NOT(ISERROR(MATCH(L65,'Tabla Impacto'!$B$221:$B$223,0))),'Tabla Impacto'!$F$223&"Por favor no seleccionar los criterios de impacto(Afectación Económica o presupuestal y Pérdida Reputacional)",L65) -> El riesgo afecta la imagen de alguna área de la organización | N65: =IF(OR(M65='Tabla Impacto'!$C$11,M65='Tabla Impacto'!$D$11),"Leve",IF(OR(M65='Tabla Impacto'!$C$12,M65='Tabla Impacto'!$D$12),"Menor",IF(OR(M65='Tabla Impacto'!$C$13,M65='Tabla Impacto'!$D$13),"Moderado",IF(OR(M65='Tabla Impacto'!$C$14,M65='Tabla Impacto'!$D$14),"Mayor",IF(OR(M65='Tabla Impacto'!$C$15,M65='Tabla Impacto'!$D$15),"Catastrófico",""))))) -> Leve | O65: 0.2 | P65: Moderado | Q65: 1 | R65: El profesional del Grupo de Gestión Laboral y Carrera Administrativa verifica la documentación para las desvinculación de los servidores a traves del formato de control de documentos para retiro del cargo establecido en el procedimiento de retiro de servidores. | S65: Probabilidad | T65: Preventivo | U65: Manual | V65: 40% | W65: Documentado | X65: Continua | Y65: Con Registro | Z65: 0.48 | AA65: Media | AB65: 0.48 | AC65: Leve | AD65: 0.2 | AE65: Moderado | AF65: Evitar | AG65: reiteraciones remitidas a los exfuncionarios | AH65: IVONNE RUIZ | AI65: PROFESIONAL UNIVERSITARIO | AJ65: SUBDIRECCIÓN DE TALENTO HUMANO | AK65: SANDRA MILENA RODRIGUEZ RAMIREZ | AL65: 2022-01-01 | AM65: 2022-12-31
A66: 56 | B66: GESTIÓN DOCUMENTAL | C66: Posibilidad de afectación Reputacional por Inadecuada aplicación de procedimientos debido a que funcionarios responsables no aplican los controles establecidos para la documentacion e informacion que reposa en el archivo central | D66: Reputacional | E66: Inadecuada aplicación de procedimientos | F66: que funcionarios responsables no aplican los controles establecidos para la documentacion e informacion que reposa en el archivo central | G66: Operativos | H66: Ejecucion y Administracion de procesos | I66: 52 | J66: Muy Alta | K66: 1 | L66: El riesgo afecta la imagen de alguna área de la organización | M66: El riesgo afecta la imagen de alguna área de la organización | N66: Leve | O66: 0.2 | P66: Alto | Q66: 1 | R66: Los Auxiliares Administrativos del grupo RCGI diligencian los formatos establecidos para el prestamo y verifican la devolucion de documentos e informacion entregados a las distintas areas organizacionales. | S66: Probabilidad | T66: Preventivo | U66: Manual | V66: 40% | W66: Documentado | X66: Continua | Y66: Con Registro | Z66: 0.6 | AA66: Media | AB66: 0.6 | AC66: Leve | AD66: 0.2 | AE66: Moderado | AF66: Evitar | AG66: Realizar el diligenciamiento de los formatos establecidos para el prestamo y verificar la devolucion de documentos e informacion entregada a distintas areas organizacionales | AH66: LUIS GABRIEL GORDO / ANDREA LARA | AI66: AUXILIAR ADMINISTRATIVO | AJ66: GRUPO DE RELACIONAMIENTO CON EL CIUDADANO Y GESTION DE LA INFORMACIÓN | AK66: LUISA FERNANDA HURTADO | AL66: 2022-01-01 | AM66: 2022-12-31
A67: 57 | B67: GESTIÓN DOCUMENTAL | C67: Posibilidad de afectación Reputacional por incumplimiento a los lineamientos de manejo y organización documental debido a que los funcionarios encargados en las distintas areas de la organizacion no aplican adecuadamente las actividades de organización documental y administracion de archivos | D67: Reputacional | E67: incumplimiento a los lineamientos de manejo y organización documental | F67: que los funcionarios encargados en las distintas areas de la organizacion no aplican adecuadamente las actividades de organización documental y administracion de archivos | G67: Operativos | H67: Ejecucion y Administracion de procesos | I67: 52 | J67: Muy Alta | K67: 1 | L67: El riesgo afecta la imagen de la entidad internamente, de conocimiento general, nivel interno, de junta dircetiva y accionistas y/o de provedores | M67: El riesgo afecta la imagen de la entidad internamente, de conocimiento general, nivel interno, de junta dircetiva y accionistas y/o de provedores | N67: Menor | O67: 0.4 | P67: Alto | Q67: 1 | R67: Los Auxiliares Administrativos del grupo de RCGI adelantan visitas a las distintas areas organizacionales para verificar el cumplimiento de los lineamientos para el manejo y organización de archivos | S67: Probabilidad | T67: Preventivo | U67: Manual | V67: 40% | W67: Documentado | X67: Continua | Y67: Con Registro | Z67: 0.6 | AA67: Media | AB67: 0.6 | AC67: Menor | AD67: 0.4 | AE67: Moderado | AF67: Evitar | AG67: Los Auxiliares Administrativos del grupo de RCGI adelantan visitas a las distintas areas organizacionales para verificar el cumplimiento de los lineamientos para el manejo y organización de archivos | AH67: LUIS GABRIEL GORDO / ANDREA LARA | AI67: AUXILIAR ADMINISTRATIVO | AJ67: GRUPO DE GESTIÓN DE RELACIONAMIENTO CON EL CIUDADANO Y GESTION DE LA INFORMACIÓN | AK67: LUISA FERNANDA HURTADO | AL67: 2022-01-01 | AM67: 2022-12-31
A68: 58 | B68: GESTIÓN DE RECURSOS FÍSICOS | C68: Posibilidad de afectación Económico por perdida de los bienes y/o recursos del Ministerio o de cada servidor debido a Inconsistencia en los inventarios de los elementos de propiedad | D68: Económico | E68: perdida de los bienes y/o recursos del Ministerio o de cada servidor | F68: Inconsistencia en los inventarios de los elementos de propiedad | G68: Operativo | H68: Ejecucion y Administracion de procesos | I68: 50 | J68: Alta | K68: 0.8 | L68: Entre 50 y 100 SMLMV | M68: =IF(NOT(ISERROR(MATCH(L68,'Tabla Impacto'!$B$221:$B$223,0))),'Tabla Impacto'!$F$223&"Por favor no seleccionar los criterios de impacto(Afectación Económica o presupuestal y Pérdida Reputacional)",L68) -> Entre 50 y 100 SMLMV | N68: =IF(OR(M68='Tabla Impacto'!$C$11,M68='Tabla Impacto'!$D$11),"Leve",IF(OR(M68='Tabla Impacto'!$C$12,M68='Tabla Impacto'!$D$12),"Menor",IF(OR(M68='Tabla Impacto'!$C$13,M68='Tabla Impacto'!$D$13),"Moderado",IF(OR(M68='Tabla Impacto'!$C$14,M68='Tabla Impacto'!$D$14),"Mayor",IF(OR(M68='Tabla Impacto'!$C$15,M68='Tabla Impacto'!$D$15),"Catastrófico",""))))) -> Moderado | O68: 0.6 | P68: Alto | Q68: 1 | R68: El profesional de Grupo de Servicios Administrativos, realiza pruebas de inventario aleatorias en las diferentes áreas del Ministerio de Minas y Energía, a traves de un modulo de inventarios en el aplicativo NEON dejando el soporte del inventario con firma del servidor. esto con el fin de validar la concordancia de los elementos asignados a cada servidor público con respecto a los registros de inventario | S68: =IF(OR(T68="Preventivo",T68="Detectivo"),"Probabilidad",IF(T68="Correctivo","Impacto","")) -> Probabilidad | T68: Detectivo | U68: Manual | V68: =IF(AND(T68="Preventivo",U68="Automático"),"50%",IF(AND(T68="Preventivo",U68="Manual"),"40%",IF(AND(T68="Detectivo",U68="Automático"),"40%",IF(AND(T68="Detectivo",U68="Manual"),"30%",IF(AND(T68="Correctivo",U68="Automático"),"35%",IF(AND(T68="Correctivo",U68="Manual"),"25%","")))))) -> 30% | W68: Documentado | X68: Aleatoria | Y68: Con Registro | Z68: =IFERROR(IF(S68="Probabilidad",(K68-(+K68*V68)),IF(S68="Impacto",K68,"")),"") -> 0.56 | AA68: =IFERROR(IF(Z68="","",IF(Z68<=0.2,"Muy Baja",IF(Z68<=0.4,"Baja",IF(Z68<=0.6,"Media",IF(Z68<=0.8,"Alta","Muy Alta"))))),"") -> Media | AB68: =+Z68 -> 0.56 | AC68: =IFERROR(IF(AD68="","",IF(AD68<=0.2,"Leve",IF(AD68<=0.4,"Menor",IF(AD68<=0.6,"Moderado",IF(AD68<=0.8,"Mayor","Catastrófico"))))),"") -> Moderado | AD68: =IFERROR(IF(S68="Impacto",(O68-(+O68*V68)),IF(S68="Probabilidad",O68,"")),"") -> 0.6 | AE68: =IFERROR(IF(OR(AND(AA68="Muy Baja",AC68="Leve"),AND(AA68="Muy Baja",AC68="Menor"),AND(AA68="Baja",AC68="Leve")),"Bajo",IF(OR(AND(AA68="Muy baja",AC68="Moderado"),AND(AA68="Baja",AC68="Menor"),AND(AA68="Baja",AC68="Moderado"),AND(AA68="Media",AC68="Leve"),AND(AA68="Media",AC68="Menor"),AND(AA68="Media",AC68="Moderado"),AND(AA68="Alta",AC68="Leve"),AND(AA68="Alta",AC68="Menor")),"Moderado",IF(OR(AND(AA68="Muy Baja",AC68="Mayor"),AND(AA68="Baja",AC68="Mayor"),AND(AA68="Media",AC68="Mayor"),AND(AA68="Alta",AC68="Moderado"),AND(AA68="Alta",AC68="Mayor"),AND(AA68="Muy Alta",AC68="Leve"),AND(AA68="Muy Alta",AC68="Menor"),AND(AA68="Muy Alta",AC68="Moderado"),AND(AA68="Muy Alta",AC68="Mayor")),"Alto",IF(OR(AND(AA68="Muy Baja",AC68="Catastrófico"),AND(AA68="Baja",AC68="Catastrófico"),AND(AA68="Media",AC68="Catastrófico"),AND(AA68="Alta",AC68="Catastrófico"),AND(AA68="Muy Alta",AC68="Catastrófico")),"Extremo","")))),"") -> Moderado | AF68: Evitar | AG68: Trimestral se realizara visita a una muestra de servidores públicos para revisión de inventario, validado a través de un reporte del aplicativo para manejo de bienes de la entidad firmado por el funcionario responsable del inventario. | AH68: JOSE VICENTE GARCÍA AREVALO | AI68: PROFESIONAL UNIVERSITARIO | AJ68: GRUPO DE SERVICIOS ADMINISTRATIVOS | AK68: JENNY CONSTANZA NOVA MARTINEZ | AL68: 2021-01-03 | AM68: 2022-12-31
A69: 59 | B69: GESTIÓN DE RECURSOS FÍSICOS | C69: Posibilidad de afectación Económico por Falla tecnica de vehiculos oficiales del Ministerio de Minas y Energia debido a incumplimiento del plan de mantenimiento de vehiculos | D69: Económico | E69: Falla tecnica de vehiculos oficiales del Ministerio de Minas y Energia | F69: incumplimiento del plan de mantenimiento de vehiculos | G69: Cumplimiento | H69: Ejecucion y Administracion de procesos | I69: 20 | J69: Alta | K69: 0.8 | L69: Entre 50 y 100 SMLMV | M69: Entre 50 y 100 SMLMV | N69: Moderado | O69: 0.6 | P69: Alto | Q69: 1 | R69: El profesional del Grupo de Servicios Administrativos, realiza seguimiento de las actividades del plan de mantenimiento preventivo de los vehiculos oficiales del Ministerio de Minas y Energia, a través de base de datos de la programación de los mantenimientos. | S69: Probabilidad | T69: Preventivo | U69: Manual | V69: 40% | W69: Documentado | X69: Continua | Y69: Con Registro | Z69: 0.48 | AA69: Media | AB69: 0.48 | AC69: Moderado | AD69: 0.6 | AE69: Moderado | AF69: Evitar | AG69: Realizar seguimiento del cumplimiento de las actividades de mantenimiento preventivo. | AH69: JOSE MAURICIO PULIDO PRIETO | AI69: AUXILIAR ADMINISTRATIVO | AJ69: GRUPO DE SERVICIOS ADMINISTRATIVOS | AK69: JENNY CONSTANZA NOVA MARTINEZ | AL69: 2021-01-03 | AM69: 2022-12-31
A70: 60 | B70: GESTIÓN DE RECURSOS FÍSICOS | C70: Posibilidad de afectación Económico por sanción del ente que presta el servicio y corte de un servicio publico de la entidad afectando a todos los funcionarios debido a pagos de los servicios públicos fuera de los plazos establecidos | D70: Económico | E70: sanción del ente que presta el servicio y corte de un servicio publico de la entidad afectando a todos los funcionarios | F70: pagos de los servicios públicos fuera de los plazos establecidos | G70: Operativos | H70: Ejecucion y Administracion de procesos | I70: 12 | J70: Media | K70: 0.6 | L70: Entre 100 y 500 SMLMV | M70: =IF(NOT(ISERROR(MATCH(L70,'Tabla Impacto'!$B$221:$B$223,0))),'Tabla Impacto'!$F$223&"Por favor no seleccionar los criterios de impacto(Afectación Económica o presupuestal y Pérdida Reputacional)",L70) -> Entre 100 y 500 SMLMV | N70: =IF(OR(M70='Tabla Impacto'!$C$11,M70='Tabla Impacto'!$D$11),"Leve",IF(OR(M70='Tabla Impacto'!$C$12,M70='Tabla Impacto'!$D$12),"Menor",IF(OR(M70='Tabla Impacto'!$C$13,M70='Tabla Impacto'!$D$13),"Moderado",IF(OR(M70='Tabla Impacto'!$C$14,M70='Tabla Impacto'!$D$14),"Mayor",IF(OR(M70='Tabla Impacto'!$C$15,M70='Tabla Impacto'!$D$15),"Catastrófico",""))))) -> Mayor | O70: 0.8 | P70: Alto | Q70: 1 | R70: El profesional de Grupo de Servicios Administrativos, lleva un seguimiento y control de las facturas y sus pagos de los servicios publicos, a traves de una matriz donde se plantean todos los servidores públicos, con los plazos establecidos para el pago y su valor mensual. | S70: Probabilidad | T70: Preventivo | U70: Manual | V70: 40% | W70: Documentado | X70: Continua | Y70: Con Registro | Z70: 0.36 | AA70: Baja | AB70: 0.36 | AC70: Mayor | AD70: 0.8 | AE70: Alto | AF70: Evitar | AG70: Revisar y tramitar mensualmente las facturas de servicios públicos y llevar control de estos en matriz de seguimiento. | AH70: DIANA MARÍA BALCERO GOMEZ | AI70: PROFESIONAL ESPECIALIZADO | AJ70: Grupo de Servicios Administrativos | AK70: JENNY CONSTANZA NOVA MARTINEZ | AL70: 2021-01-03 | AM70: 2022-12-31
A71: 61 | B71: GESTIÓN DE RECURSOS FÍSICOS | C71: Posibilidad de afectación Económico por Ausencia del registro presupuestal que respalde la comisión o gasto de desplazamiento y posible proceso disciplinario por multas o sanciones debido a No tramite del acto administrativo ante el area financiera | D71: Económico | E71: Ausencia del registro presupuestal que respalde la comisión o gasto de desplazamiento y posible proceso disciplinario por multas o sanciones | F71: No tramite del acto administrativo ante el area financiera | G71: Operativos | H71: Ejecucion y Administracion de procesos | I71: 50 | J71: Alta | K71: 0.8 | L71: Entre 10 y 50 SMLMV | M71: =IF(NOT(ISERROR(MATCH(L71,'Tabla Impacto'!$B$221:$B$223,0))),'Tabla Impacto'!$F$223&"Por favor no seleccionar los criterios de impacto(Afectación Económica o presupuestal y Pérdida Reputacional)",L71) -> Entre 10 y 50 SMLMV | N71: =IF(OR(M71='Tabla Impacto'!$C$11,M71='Tabla Impacto'!$D$11),"Leve",IF(OR(M71='Tabla Impacto'!$C$12,M71='Tabla Impacto'!$D$12),"Menor",IF(OR(M71='Tabla Impacto'!$C$13,M71='Tabla Impacto'!$D$13),"Moderado",IF(OR(M71='Tabla Impacto'!$C$14,M71='Tabla Impacto'!$D$14),"Mayor",IF(OR(M71='Tabla Impacto'!$C$15,M71='Tabla Impacto'!$D$15),"Catastrófico",""))))) -> Menor | O71: 0.4 | P71: Moderado | Q71: 1 | R71: El profesional del Grupo de Servicios Administrativo realiza seguimiento de las solicitudes de comisiones/gastos de desplazamiento radicadas en el aplicativo NEON para tramite respectivo. | S71: Probabilidad | T71: Preventivo | U71: Manual | V71: 40% | W71: Documentado | X71: Continua | Y71: Con Registro | Z71: 0.48 | AA71: Media | AB71: 0.48 | AC71: Menor | AD71: 0.4 | AE71: Moderado | AF71: Evitar | AG71: Realizar seguimiento de las solicitudes de comisión radicadas para el tramite respectivo en aplicativo destinado para tal fin. | AH71: MARIBEL ANGEL PALOMINO / ANYELA ANGULO / NELSON SALINAS | AI71: CONTRATISTAS | AJ71: Grupo de Servicios Administrativos | AK71: JENNY CONSTANZA NOVA MARTINEZ | AL71: 2021-01-03 | AM71: 2022-12-31
A72: 62 | B72: GESTIÓN FINANCIERA Y CONTABLE | C72: Posibilidad de afectación Económico y Reputacional por sanciones disciplinarias, multas economicas y afectación a la imagen del ministerio ante los entes de control, congreso y ciudadania debido a Incumplimiento en el cronograma de entrega de los estados financieros establecidos en las normas contables | D72: Económico y Reputacional | E72: sanciones disciplinarias, multas economicas y afectación a la imagen del ministerio ante los entes de control, congreso y ciudadania | F72: Incumplimiento en el cronograma de entrega de los estados financieros establecidos en las normas contables | G72: Financieros | H72: Fallas Tecnologicas | I72: 12 | J72: Media | K72: 0.6 | L72: El riesgo afecta la imagen de la entidad a nivel nacional, con efecto publicitarios sostenible a nivel país | M72: El riesgo afecta la imagen de la entidad a nivel nacional, con efecto publicitarios sostenible a nivel país | N72: Catastrófico | O72: 1 | P72: Extremo | Q72: 1 | R72: El profesional del Grupo de Gestión Financiera y Contable, realiza un seguimiento continuo a la circular expedida por la contaduria general de la nación, donde se establecen las fechas de manera mensual para la entrega de la información de los estados financieros (resolución 182 de mayo 2017), a traves de la revisión de la pagina web de la Contaduria General de la Nación y posteriormente mediante socializaciones de las actualizaciones en el aplicativo CHIP (consolidación hacienda información publica) | S72: =IF(OR(T72="Preventivo",T72="Detectivo"),"Probabilidad",IF(T72="Correctivo","Impacto","")) -> Probabilidad | T72: Preventivo | U72: Manual | V72: =IF(AND(T72="Preventivo",U72="Automático"),"50%",IF(AND(T72="Preventivo",U72="Manual"),"40%",IF(AND(T72="Detectivo",U72="Automático"),"40%",IF(AND(T72="Detectivo",U72="Manual"),"30%",IF(AND(T72="Correctivo",U72="Automático"),"35%",IF(AND(T72="Correctivo",U72="Manual"),"25%","")))))) -> 40% | W72: Documentado | X72: Continua | Y72: Con Registro | Z72: 0.36 | AA72: =IFERROR(IF(Z72="","",IF(Z72<=0.2,"Muy Baja",IF(Z72<=0.4,"Baja",IF(Z72<=0.6,"Media",IF(Z72<=0.8,"Alta","Muy Alta"))))),"") -> Baja | AB72: =+Z72 -> 0.36 | AC72: =IFERROR(IF(AD72="","",IF(AD72<=0.2,"Leve",IF(AD72<=0.4,"Menor",IF(AD72<=0.6,"Moderado",IF(AD72<=0.8,"Mayor","Catastrófico"))))),"") -> Catastrófico | AD72: =IFERROR(IF(S72="Impacto",(O72-(+O72*V72)),IF(S72="Probabilidad",O72,"")),"") -> 1 | AE72: =IFERROR(IF(OR(AND(AA72="Muy Baja",AC72="Leve"),AND(AA72="Muy Baja",AC72="Menor"),AND(AA72="Baja",AC72="Leve")),"Bajo",IF(OR(AND(AA72="Muy baja",AC72="Moderado"),AND(AA72="Baja",AC72="Menor"),AND(AA72="Baja",AC72="Moderado"),AND(AA72="Media",AC72="Leve"),AND(AA72="Media",AC72="Menor"),AND(AA72="Media",AC72="Moderado"),AND(AA72="Alta",AC72="Leve"),AND(AA72="Alta",AC72="Menor")),"Moderado",IF(OR(AND(AA72="Muy Baja",AC72="Mayor"),AND(AA72="Baja",AC72="Mayor"),AND(AA72="Media",AC72="Mayor"),AND(AA72="Alta",AC72="Moderado"),AND(AA72="Alta",AC72="Mayor"),AND(AA72="Muy Alta",AC72="Leve"),AND(AA72="Muy Alta",AC72="Menor"),AND(AA72="Muy Alta",AC72="Moderado"),AND(AA72="Muy Alta",AC72="Mayor")),"Alto",IF(OR(AND(AA72="Muy Baja",AC72="Catastrófico"),AND(AA72="Baja",AC72="Catastrófico"),AND(AA72="Media",AC72="Catastrófico"),AND(AA72="Alta",AC72="Catastrófico"),AND(AA72="Muy Alta",AC72="Catastrófico")),"Extremo","")))),"") -> Extremo | AF72: Evitar | AG72: Seguimiento y actualizaciones de manera mensual a la plataforma CHIP. Seguimientos y actualizaciones a las comunicaciones y a las fechas establecidas por la contaduria para la entrega de los estados financieros. Generar informes financieros 3 días calendario antes de la fecha limite de entrega. | AH72: JUAN ESTEBAN RODRIGUEZ MONTEALEGRE | AI72: PROFESIONAL ESPECIALIZADO | AJ72: GESTIÓN FINANCIERA Y CONTABLE | AK72: CAMILO ENRIQUE ÁLVAREZ | AL72: 2022-01-03 | AM72: 2022-12-31
A73: 63 | B73: GESTIÓN FINANCIERA Y CONTABLE | C73: Posibilidad de afectación Económico y Reputacional por la subestimacion o sobreestimacion en los ingresos registrados debido a la omision, asignacion, causacion y recaudo para el registro de la gestion de ingresos. | D73: Económico y Reputacional | E73: la subestimacion o sobreestimacion en los ingresos registrados | F73: la omision, asignacion, causacion y recaudo para el registro de la gestion de ingresos. | G73: Operativos | H73: Ejecucion y Administracion de procesos | I73: 12 | J73: Media | K73: 0.6 | L73: El riesgo afecta la imagen de alguna área de la organización | M73: El riesgo afecta la imagen de alguna área de la organización | N73: Leve | O73: 0.2 | P73: Moderado | Q73: 2 | R73: Seguimiento a los estados de cuenta y extratctos bancarios emitidos por el Banco de la Republica, Banco Agrario de colombia, Banco Davivienda y Banco Popular. Verificar directamente con la persona o la entidad el concepto a registrar cuando los documentos soportes no son suficientes para determinar la informacion necesaria para el registro contable. | S73: Probabilidad | T73: Preventivo | U73: Manual | V73: 40% | W73: Documentado | X73: Continua | Y73: Con Registro | Z73: 0.36 | AA73: Baja | AB73: 0.36 | AC73: Leve | AD73: 0.2 | AE73: Bajo | AF73: Evitar | AG73: Verificar semanalmente los ingresos asignados por la Dirección del Tesoro Nacional con el estado de cuenta generado por el Banco de la Republica. Verificación Asignación y clasificación de los ingresos asignados por Tesorería al Ministerio de Minas y Energía mensualmente. Solicitar a las direcciones pertinentes que contratos están obligados a consignar rendimientos financieros y cual valor consignaron el mes correspondiente. | AH73: EDDY AUGUSTO ROMERO GARZON | AI73: PROFESIONAL ESPECIALIZADO | AJ73: GESTIÓN FINANCIERA Y CONTABLE | AK73: CAMILO ENRIQUE ÁLVAREZ | AL73: 2022-01-03 | AM73: 2022-12-31
A74: 64 | B74: GESTIÓN FINANCIERA Y CONTABLE | C74: Posibilidad de afectación Económico y Reputacional por inconsistencia en la liquidacion de la obligación y presentacion de informes errados debido a la clasificacion del contribuyente y de la aplicación de la norma contable y tributaria para la de debida aplicacion de los descuentos o deducciones. | D74: Económico y Reputacional | E74: inconsistencia en la liquidacion de la obligación y presentacion de informes errados | F74: la clasificacion del contribuyente y de la aplicación de la norma contable y tributaria para la de debida aplicacion de los descuentos o deducciones. | G74: Operativo | H74: Ejecucion y Administracion de procesos | I74: 12 | J74: =IF(I74<=0,"",IF(I74<=2,"Muy Baja",IF(I74<=5,"Baja",IF(I74<=19,"Media",IF(I74<=50,"Alta","Muy Alta"))))) -> Media | K74: =IF(J74="","",IF(J74="Muy Baja",0.2,IF(J74="Baja",0.4,IF(J74="Media",0.6,IF(J74="Alta",0.8,IF(J74="Muy Alta",1,)))))) -> 0.6 | L74: El riesgo afecta la imagen de alguna área de la organización | M74: El riesgo afecta la imagen de alguna área de la organización | N74: Leve | O74: =IF(N74="","",IF(N74="Leve",0.2,IF(N74="Menor",0.4,IF(N74="Moderado",0.6,IF(N74="Mayor",0.8,IF(N74="Catastrófico",1,)))))) -> 0.2 | P74: =IF(OR(AND(J74="Muy Baja",N74="Leve"),AND(J74="Muy Baja",N74="Menor"),AND(J74="Baja",N74="Leve")),"Bajo",IF(OR(AND(J74="Muy baja",N74="Moderado"),AND(J74="Baja",N74="Menor"),AND(J74="Baja",N74="Moderado"),AND(J74="Media",N74="Leve"),AND(J74="Media",N74="Menor"),AND(J74="Media",N74="Moderado"),AND(J74="Alta",N74="Leve"),AND(J74="Alta",N74="Menor")),"Moderado",IF(OR(AND(J74="Muy Baja",N74="Mayor"),AND(J74="Baja",N74="Mayor"),AND(J74="Media",N74="Mayor"),AND(J74="Alta",N74="Moderado"),AND(J74="Alta",N74="Mayor"),AND(J74="Muy Alta",N74="Leve"),AND(J74="Muy Alta",N74="Menor"),AND(J74="Muy Alta",N74="Moderado"),AND(J74="Muy Alta",N74="Mayor")),"Alto",IF(OR(AND(J74="Muy Baja",N74="Catastrófico"),AND(J74="Baja",N74="Catastrófico"),AND(J74="Media",N74="Catastrófico"),AND(J74="Alta",N74="Catastrófico"),AND(J74="Muy Alta",N74="Catastrófico")),"Extremo","")))) -> Moderado | Q74: 3 | R74: Verificar en su totalidad el soporte documental para tramite de Obligacion presupuestal y posterior envio a proceso de pago, en base, a la ultima normatividad vigente para temas tributarios que apliquen al sector publico- MME | S74: =IF(OR(T74="Preventivo",T74="Detectivo"),"Probabilidad",IF(T74="Correctivo","Impacto","")) -> Probabilidad | T74: Preventivo | U74: Manual | V74: =IF(AND(T74="Preventivo",U74="Automático"),"50%",IF(AND(T74="Preventivo",U74="Manual"),"40%",IF(AND(T74="Detectivo",U74="Automático"),"40%",IF(AND(T74="Detectivo",U74="Manual"),"30%",IF(AND(T74="Correctivo",U74="Automático"),"35%",IF(AND(T74="Correctivo",U74="Manual"),"25%","")))))) -> 40% | W74: Documentado | X74: Aleatoria | Y74: Con Registro | Z74: =IFERROR(IF(S74="Probabilidad",(K74-(+K74*V74)),IF(S74="Impacto",K74,"")),"") -> 0.36 | AA74: =IFERROR(IF(Z74="","",IF(Z74<=0.2,"Muy Baja",IF(Z74<=0.4,"Baja",IF(Z74<=0.6,"Media",IF(Z74<=0.8,"Alta","Muy Alta"))))),"") -> Baja | AB74: =+Z74 -> 0.36 | AC74: =IFERROR(IF(AD74="","",IF(AD74<=0.2,"Leve",IF(AD74<=0.4,"Menor",IF(AD74<=0.6,"Moderado",IF(AD74<=0.8,"Mayor","Catastrófico"))))),"") -> Leve | AD74: =IFERROR(IF(S74="Impacto",(O74-(+O74*V74)),IF(S74="Probabilidad",O74,"")),"") -> 0.2 | AE74: =IFERROR(IF(OR(AND(AA74="Muy Baja",AC74="Leve"),AND(AA74="Muy Baja",AC74="Menor"),AND(AA74="Baja",AC74="Leve")),"Bajo",IF(OR(AND(AA74="Muy baja",AC74="Moderado"),AND(AA74="Baja",AC74="Menor"),AND(AA74="Baja",AC74="Moderado"),AND(AA74="Media",AC74="Leve"),AND(AA74="Media",AC74="Menor"),AND(AA74="Media",AC74="Moderado"),AND(AA74="Alta",AC74="Leve"),AND(AA74="Alta",AC74="Menor")),"Moderado",IF(OR(AND(AA74="Muy Baja",AC74="Mayor"),AND(AA74="Baja",AC74="Mayor"),AND(AA74="Media",AC74="Mayor"),AND(AA74="Alta",AC74="Moderado"),AND(AA74="Alta",AC74="Mayor"),AND(AA74="Muy Alta",AC74="Leve"),AND(AA74="Muy Alta",AC74="Menor"),AND(AA74="Muy Alta",AC74="Moderado"),AND(AA74="Muy Alta",AC74="Mayor")),"Alto",IF(OR(AND(AA74="Muy Baja",AC74="Catastrófico"),AND(AA74="Baja",AC74="Catastrófico"),AND(AA74="Media",AC74="Catastrófico"),AND(AA74="Alta",AC74="Catastrófico"),AND(AA74="Muy Alta",AC74="Catastrófico")),"Extremo","")))),"") -> Bajo | AF74: Evitar | AG74: Se recibe la documentación por parte del supervisor del contrato , se valida en el aplicativo NEON y se comparan los requisitos con los anexos para elaborar la obligación correspondiente. | AH74: IVAN ARTURO DOMINGUEZ | AI74: PROFESIONAL ESPECIALIZADO | AJ74: GESTIÓN FINANCIERA Y CONTABLE | AK74: CAMILO ENRIQUE ÁLVAREZ | AL74: 2022-01-03 | AM74: 2022-12-31
A75: 65 | B75: GESTIÓN FINANCIERA Y CONTABLE | C75: Posibilidad de afectación Económico y Reputacional por falta de información y soportes documentales, o informacion errada, lo cual genera unas cifras no razonables en los EEFF debido a no envio de la informacion o envio con errores. | D75: Económico y Reputacional | E75: falta de información y soportes documentales, o informacion errada, lo cual genera unas cifras no razonables en los EEFF | F75: no envio de la informacion o envio con errores. | G75: Operativos | H75: Ejecucion y Administracion de procesos | I75: 12 | J75: =IF(I75<=0,"",IF(I75<=2,"Muy Baja",IF(I75<=5,"Baja",IF(I75<=19,"Media",IF(I75<=50,"Alta","Muy Alta"))))) -> Media | K75: =IF(J75="","",IF(J75="Muy Baja",0.2,IF(J75="Baja",0.4,IF(J75="Media",0.6,IF(J75="Alta",0.8,IF(J75="Muy Alta",1,)))))) -> 0.6 | L75: El riesgo afecta la imagen de alguna área de la organización | M75: El riesgo afecta la imagen de alguna área de la organización | N75: Leve | O75: =IF(N75="","",IF(N75="Leve",0.2,IF(N75="Menor",0.4,IF(N75="Moderado",0.6,IF(N75="Mayor",0.8,IF(N75="Catastrófico",1,)))))) -> 0.2 | P75: =IF(OR(AND(J75="Muy Baja",N75="Leve"),AND(J75="Muy Baja",N75="Menor"),AND(J75="Baja",N75="Leve")),"Bajo",IF(OR(AND(J75="Muy baja",N75="Moderado"),AND(J75="Baja",N75="Menor"),AND(J75="Baja",N75="Moderado"),AND(J75="Media",N75="Leve"),AND(J75="Media",N75="Menor"),AND(J75="Media",N75="Moderado"),AND(J75="Alta",N75="Leve"),AND(J75="Alta",N75="Menor")),"Moderado",IF(OR(AND(J75="Muy Baja",N75="Mayor"),AND(J75="Baja",N75="Mayor"),AND(J75="Media",N75="Mayor"),AND(J75="Alta",N75="Moderado"),AND(J75="Alta",N75="Mayor"),AND(J75="Muy Alta",N75="Leve"),AND(J75="Muy Alta",N75="Menor"),AND(J75="Muy Alta",N75="Moderado"),AND(J75="Muy Alta",N75="Mayor")),"Alto",IF(OR(AND(J75="Muy Baja",N75="Catastrófico"),AND(J75="Baja",N75="Catastrófico"),AND(J75="Media",N75="Catastrófico"),AND(J75="Alta",N75="Catastrófico"),AND(J75="Muy Alta",N75="Catastrófico")),"Extremo","")))) -> Moderado | Q75: 4 | R75: Enviar las comunicaciones (Fisico o digital) pertinentes, con el fin de solicitar la informacion y socializar e informar el cronograma con las fechas de vencimiento; asi mismo, se debe dar seguimiento a las areas que deben informar. | S75: Probabilidad | T75: Preventivo | U75: Manual | V75: 40% | W75: Documentado | X75: Continua | Y75: Con Registro | Z75: 0.36 | AA75: =IFERROR(IF(Z75="","",IF(Z75<=0.2,"Muy Baja",IF(Z75<=0.4,"Baja",IF(Z75<=0.6,"Media",IF(Z75<=0.8,"Alta","Muy Alta"))))),"") -> Baja | AB75: =+Z75 -> 0.36 | AC75: =IFERROR(IF(AD75="","",IF(AD75<=0.2,"Leve",IF(AD75<=0.4,"Menor",IF(AD75<=0.6,"Moderado",IF(AD75<=0.8,"Mayor","Catastrófico"))))),"") -> Leve | AD75: =IFERROR(IF(S75="Impacto",(O75-(+O75*V75)),IF(S75="Probabilidad",O75,"")),"") -> 0.2 | AE75: =IFERROR(IF(OR(AND(AA75="Muy Baja",AC75="Leve"),AND(AA75="Muy Baja",AC75="Menor"),AND(AA75="Baja",AC75="Leve")),"Bajo",IF(OR(AND(AA75="Muy baja",AC75="Moderado"),AND(AA75="Baja",AC75="Menor"),AND(AA75="Baja",AC75="Moderado"),AND(AA75="Media",AC75="Leve"),AND(AA75="Media",AC75="Menor"),AND(AA75="Media",AC75="Moderado"),AND(AA75="Alta",AC75="Leve"),AND(AA75="Alta",AC75="Menor")),"Moderado",IF(OR(AND(AA75="Muy Baja",AC75="Mayor"),AND(AA75="Baja",AC75="Mayor"),AND(AA75="Media",AC75="Mayor"),AND(AA75="Alta",AC75="Moderado"),AND(AA75="Alta",AC75="Mayor"),AND(AA75="Muy Alta",AC75="Leve"),AND(AA75="Muy Alta",AC75="Menor"),AND(AA75="Muy Alta",AC75="Moderado"),AND(AA75="Muy Alta",AC75="Mayor")),"Alto",IF(OR(AND(AA75="Muy Baja",AC75="Catastrófico"),AND(AA75="Baja",AC75="Catastrófico"),AND(AA75="Media",AC75="Catastrófico"),AND(AA75="Alta",AC75="Catastrófico"),AND(AA75="Muy Alta",AC75="Catastrófico")),"Extremo","")))),"") -> Bajo | AF75: Evitar | AG75: Se genera un check list para dar seguimiento a las comunicaciones enviadas internas y externas, en las cuales se solicite información de los hechos economicos para el registro respectivo. | AH75: JUAN ESTEBAN RODRIGUEZ MONTEALEGRE | AI75: PROFESIONAL ESPECIALIZADO | AJ75: GESTIÓN FINANCIERA Y CONTABLE | AK75: CAMILO ENRIQUE ÁLVAREZ | AL75: 2022-01-03 | AM75: 2022-12-31
A76: 66 | B76: GESTIÓN FINANCIERA Y CONTABLE | C76: Posibilidad de afectación Económico y Reputacional por la Información de litigios y demandas NO razonable con la realidad, a pesar de ser una provisión subjetiva y dinamica, debido a el no uso adecuado de la herramienta por parte del profesional abogado responsable. | D76: Económico y Reputacional | E76: la Información de litigios y demandas NO razonable con la realidad, a pesar de ser una provisión subjetiva y dinamica, | F76: el no uso adecuado de la herramienta por parte del profesional abogado responsable. | G76: Financiero | H76: Ejecucion y Administracion de procesos | I76: 4 | J76: =IF(I76<=0,"",IF(I76<=2,"Muy Baja",IF(I76<=5,"Baja",IF(I76<=19,"Media",IF(I76<=50,"Alta","Muy Alta"))))) -> Baja | K76: =IF(J76="","",IF(J76="Muy Baja",0.2,IF(J76="Baja",0.4,IF(J76="Media",0.6,IF(J76="Alta",0.8,IF(J76="Muy Alta",1,)))))) -> 0.4 | L76: El riesgo afecta la imagen de alguna área de la organización | M76: El riesgo afecta la imagen de alguna área de la organización | N76: Leve | O76: =IF(N76="","",IF(N76="Leve",0.2,IF(N76="Menor",0.4,IF(N76="Moderado",0.6,IF(N76="Mayor",0.8,IF(N76="Catastrófico",1,)))))) -> 0.2 | P76: =IF(OR(AND(J76="Muy Baja",N76="Leve"),AND(J76="Muy Baja",N76="Menor"),AND(J76="Baja",N76="Leve")),"Bajo",IF(OR(AND(J76="Muy baja",N76="Moderado"),AND(J76="Baja",N76="Menor"),AND(J76="Baja",N76="Moderado"),AND(J76="Media",N76="Leve"),AND(J76="Media",N76="Menor"),AND(J76="Media",N76="Moderado"),AND(J76="Alta",N76="Leve"),AND(J76="Alta",N76="Menor")),"Moderado",IF(OR(AND(J76="Muy Baja",N76="Mayor"),AND(J76="Baja",N76="Mayor"),AND(J76="Media",N76="Mayor"),AND(J76="Alta",N76="Moderado"),AND(J76="Alta",N76="Mayor"),AND(J76="Muy Alta",N76="Leve"),AND(J76="Muy Alta",N76="Menor"),AND(J76="Muy Alta",N76="Moderado"),AND(J76="Muy Alta",N76="Mayor")),"Alto",IF(OR(AND(J76="Muy Baja",N76="Catastrófico"),AND(J76="Baja",N76="Catastrófico"),AND(J76="Media",N76="Catastrófico"),AND(J76="Alta",N76="Catastrófico"),AND(J76="Muy Alta",N76="Catastrófico")),"Extremo","")))) -> Bajo | Q76: 5 | R76: Brindar acompañamiento a los abogados, con el fin de dar a conocer las ultimas normas referentes a la provision contable y la herramiena si es del caso. | S76: Probabilidad | T76: Preventivo | U76: Automático | V76: 40% | W76: Documentado | X76: Continua | Y76: Con Registro | Z76: 0.36 | AA76: Baja | AB76: 0.36 | AC76: Leve | AD76: 0.2 | AE76: Bajo | AF76: Evitar | AG76: Se revisan los datos de la provisión informados y se genera un seguimiento al aplicativo EKOGUI. | AH76: JUAN ESTEBAN RODRIGUEZ MONTEALEGRE | AI76: PROFESIONAL ESPECIALIZADO | AJ76: GESTIÓN FINANCIERA Y CONTABLE | AK76: CAMILO ENRIQUE ÁLVAREZ | AL76: 2022-01-03 | AM76: 2022-12-31
A77: =A76+1 -> 67 | B77: GESTIÓN DE EJECUCIÓN PRESUPUESTAL | C77: Posibilidad de afectación Económico y Reputacional por no disponibilidad de recursos para atender las obligaciones (Contrataciones, gastos, ..etc) generando mala imagen frente a las partes interesadas debido a solicitudes fuera de los plazos establecidos y/o no aprobación de los recursos por parte del Ministerio de Hacienda ya sea por no ejecutar en los periodos anteriores y no enviar información actualizada de conciliación de operaciones recíprocas. | D77: Económico y Reputacional | E77: no disponibilidad de recursos para atender las obligaciones (Contrataciones, gastos, ..etc) generando mala imagen frente a las partes interesadas | F77: solicitudes fuera de los plazos establecidos y/o no aprobación de los recursos por parte del Ministerio de Hacienda ya sea por no ejecutar en los periodos anteriores y no enviar información actualizada de conciliación de operaciones recíprocas. | G77: Financieros | H77: Ejecucion y Administracion de procesos | I77: 24 | J77: =IF(I77<=0,"",IF(I77<=2,"Muy Baja",IF(I77<=5,"Baja",IF(I77<=19,"Media",IF(I77<=50,"Alta","Muy Alta"))))) -> Alta | K77: =IF(J77="","",IF(J77="Muy Baja",0.2,IF(J77="Baja",0.4,IF(J77="Media",0.6,IF(J77="Alta",0.8,IF(J77="Muy Alta",1,)))))) -> 0.8 | L77: Mayor a 500 SMLMV | M77: Mayor a 500 SMLMV | N77: Catastrófico | O77: =IF(N77="","",IF(N77="Leve",0.2,IF(N77="Menor",0.4,IF(N77="Moderado",0.6,IF(N77="Mayor",0.8,IF(N77="Catastrófico",1,)))))) -> 1 | P77: =IF(OR(AND(J77="Muy Baja",N77="Leve"),AND(J77="Muy Baja",N77="Menor"),AND(J77="Baja",N77="Leve")),"Bajo",IF(OR(AND(J77="Muy baja",N77="Moderado"),AND(J77="Baja",N77="Menor"),AND(J77="Baja",N77="Moderado"),AND(J77="Media",N77="Leve"),AND(J77="Media",N77="Menor"),AND(J77="Media",N77="Moderado"),AND(J77="Alta",N77="Leve"),AND(J77="Alta",N77="Menor")),"Moderado",IF(OR(AND(J77="Muy Baja",N77="Mayor"),AND(J77="Baja",N77="Mayor"),AND(J77="Media",N77="Mayor"),AND(J77="Alta",N77="Moderado"),AND(J77="Alta",N77="Mayor"),AND(J77="Muy Alta",N77="Leve"),AND(J77="Muy Alta",N77="Menor"),AND(J77="Muy Alta",N77="Moderado"),AND(J77="Muy Alta",N77="Mayor")),"Alto",IF(OR(AND(J77="Muy Baja",N77="Catastrófico"),AND(J77="Baja",N77="Catastrófico"),AND(J77="Media",N77="Catastrófico"),AND(J77="Alta",N77="Catastrófico"),AND(J77="Muy Alta",N77="Catastrófico")),"Extremo","")))) -> Extremo | Q77: 1 | R77: El profesional del Grupo de Ejecución presupuestal, realiza un seguimiento de las fechas del cronograma de programación de recursos de acuerdo a Circular expedida por parte del MinHacienda. Posteriormente realiza solicitud oportuna de los recursos PAC ante el Minhacienda previa consolidación de las necesidades requeridas por parte de las dependnecias en una base de Datos. De igual manera realiza continuo control y seguimiento de la ejecución de los recursos programados por cada área. | S77: =IF(OR(T77="Preventivo",T77="Detectivo"),"Probabilidad",IF(T77="Correctivo","Impacto","")) -> Probabilidad | T77: Preventivo | U77: Manual | V77: =IF(AND(T77="Preventivo",U77="Automático"),"50%",IF(AND(T77="Preventivo",U77="Manual"),"40%",IF(AND(T77="Detectivo",U77="Automático"),"40%",IF(AND(T77="Detectivo",U77="Manual"),"30%",IF(AND(T77="Correctivo",U77="Automático"),"35%",IF(AND(T77="Correctivo",U77="Manual"),"25%","")))))) -> 40% | W77: Documentado | X77: Continua | Y77: Con Registro | Z77: =IFERROR(IF(S77="Probabilidad",(K77-(+K77*V77)),IF(S77="Impacto",K77,"")),"") -> 0.48 | AA77: Media | AB77: 0.48 | AC77: Catastrófico | AD77: 1 | AE77: Extremo | AF77: Evitar | AG77: Consolidar las necesidades de recursos PAC de la Entidad, realizando oportunamente el registro de las solicitudes en el SIIF Nación. Verificación de la aprobación de los recursos por parte de la DGCPTN de los recursos (PAC), en las fechas establecidas así como controlar la ejecución de pagos programados por cada área. Realizar las solicitudes extraordinarias de PAC en los casos de pagos urgentes que sean requeridos. | AH77: Yessica Alexandra Beltran Sierra | AI77: PROFESIONAL UNIVERSITARIO | AJ77: GRUPO DE EJECUCIÓN PRESUPUESTAL | AK77: OMAR CARMONA ARIAS | AL77: 2022-01-03 | AM77: 2022-12-31
A78: 68 | B78: GESTIÓN DE EJECUCIÓN PRESUPUESTAL | C78: Posibilidad de afectación Económico y Reputacional por falta de planeación y seguimiento a la ejecución presupuestal por parte de las dependencias debido a falta de gestion para que se cumplan los requisitos de compromisos y obligaciones presupuestales para poder ejecutar los recursos oportunamente | D78: Económico y Reputacional | E78: falta de planeación y seguimiento a la ejecución presupuestal por parte de las dependencias | F78: falta de gestion para que se cumplan los requisitos de compromisos y obligaciones presupuestales para poder ejecutar los recursos oportunamente | G78: Financieros | H78: Ejecucion y Administracion de procesos | I78: 12 | J78: Media | K78: 0.6 | L78: Mayor a 500 SMLMV | M78: Mayor a 500 SMLMV | N78: Catastrófico | O78: 1 | P78: Extremo | Q78: 1 | R78: El profesional del Grupo de Ejecución presupuestal, realiza un seguimiento oportuno a la ejecución presupuestal de la entidad, a traves de comunicaciones enviadas a cada una de las dependencias, con el fin de evidenciar los recursos pendientes por ejecutar. | S78: Probabilidad | T78: Preventivo | U78: Manual | V78: 40% | W78: Documentado | X78: Continua | Y78: Con Registro | Z78: 0.36 | AA78: Baja | AB78: 0.36 | AC78: Catastrófico | AD78: 1 | AE78: Extremo | AF78: Reducir (mitigar) | AG78: Generar comunicaciones en forma oportuna, sobre el comportamiento de la ejecución presupuestal por cada de las dependencias, con el fin de fortalecer la cultura de planificación del presupuesto y ejecución temprana. | AH78: Francia Patricia Robayo Arevalo y Claudia Janeht Sierra Tovar | AI78: PROFESIONAL ESPECIALIZADO | AJ78: GRUPO DE EJECUCIÓN PRESUPUESTAL | AK78: OMAR CARMONA ARIAS | AL78: 2022-01-03 | AM78: 2022-12-31
A79: 69 | B79: INFRAESTRUCTURA TECNOLÓGICA y SOLUCIONES DIGITALES MINENERGÍA | C79: Posibilidad de afectación Reputacional por ineficiencia en programas y equipos del Ministerio generando mala imagen ante las partes interesadas debido a Obsolescencia Tecnológica de TIC | D79: Reputacional | E79: ineficiencia en programas y equipos del Ministerio generando mala imagen ante las partes interesadas | F79: Obsolescencia Tecnológica de TIC | G79: Tecnología | H79: Fallas Tecnologicas | I79: 100 | J79: Muy Alta | K79: 1 | L79: El riesgo afecta la imagen de la entidad con algunos usuarios de relevancia frente al logro de los objetivos | M79: =IF(NOT(ISERROR(MATCH(L79,'Tabla Impacto'!$B$221:$B$223,0))),'Tabla Impacto'!$F$223&"Por favor no seleccionar los criterios de impacto(Afectación Económica o presupuestal y Pérdida Reputacional)",L79) -> El riesgo afecta la imagen de la entidad con algunos usuarios de relevancia frente al logro de los objetivos | N79: =IF(OR(M79='Tabla Impacto'!$C$11,M79='Tabla Impacto'!$D$11),"Leve",IF(OR(M79='Tabla Impacto'!$C$12,M79='Tabla Impacto'!$D$12),"Menor",IF(OR(M79='Tabla Impacto'!$C$13,M79='Tabla Impacto'!$D$13),"Moderado",IF(OR(M79='Tabla Impacto'!$C$14,M79='Tabla Impacto'!$D$14),"Mayor",IF(OR(M79='Tabla Impacto'!$C$15,M79='Tabla Impacto'!$D$15),"Catastrófico",""))))) -> Moderado | O79: 0.6 | P79: Alto | Q79: 1 | R79: El profesional del grupo de infrastructura tecnológica y soluciones digitales, realiza seguimiento a la vida útil de los recursos TIC del Centro de Cómputo y del Ministerio, a través de una base de datos. | S79: =IF(OR(T79="Preventivo",T79="Detectivo"),"Probabilidad",IF(T79="Correctivo","Impacto","")) -> Probabilidad | T79: Preventivo | U79: Manual | V79: =IF(AND(T79="Preventivo",U79="Automático"),"50%",IF(AND(T79="Preventivo",U79="Manual"),"40%",IF(AND(T79="Detectivo",U79="Automático"),"40%",IF(AND(T79="Detectivo",U79="Manual"),"30%",IF(AND(T79="Correctivo",U79="Automático"),"35%",IF(AND(T79="Correctivo",U79="Manual"),"25%","")))))) -> 40% | W79: Documentado | X79: Continua | Y79: Con Registro | Z79: 0.6 | AA79: Media | AB79: 0.6 | AC79: Moderado | AD79: 0.6 | AE79: Moderado | AF79: Evitar | AG79: Identificar y renovar la infraestructura TIC obsoleta. | AH79: OSORIO BELTRÁN CARLOS JAVIER | AJ79: INFRAESTRUCTURA TECNOLÓGICA y SOLUCIONES DIGITALES MINENERGÍA | AL79: 2022-01-03 | AM79: 2022-12-31
A80: 70 | B80: INFRAESTRUCTURA TECNOLÓGICA y SOLUCIONES DIGITALES MINENERGÍA | C80: Posibilidad de afectación Económico y Reputacional por extorciones, virus y/o filtración de información generando mala imagen ante las partes interesadas y detrimento patrimonial debido a Fallas de seguridad de la plataforma TIC que soporta los sistemas de información del Ministerio | D80: Económico y Reputacional | E80: extorciones, virus y/o filtración de información generando mala imagen ante las partes interesadas y detrimento patrimonial | F80: Fallas de seguridad de la plataforma TIC que soporta los sistemas de información del Ministerio | G80: Tecnología | H80: Daños Activos Fisicos | I80: 100 | J80: Muy Alta | K80: 1 | L80: El riesgo afecta la imagen de la entidad a nivel nacional, con efecto publicitarios sostenible a nivel país | M80: =IF(NOT(ISERROR(MATCH(L80,'Tabla Impacto'!$B$221:$B$223,0))),'Tabla Impacto'!$F$223&"Por favor no seleccionar los criterios de impacto(Afectación Económica o presupuestal y Pérdida Reputacional)",L80) -> El riesgo afecta la imagen de la entidad a nivel nacional, con efecto publicitarios sostenible a nivel país | N80: =IF(OR(M80='Tabla Impacto'!$C$11,M80='Tabla Impacto'!$D$11),"Leve",IF(OR(M80='Tabla Impacto'!$C$12,M80='Tabla Impacto'!$D$12),"Menor",IF(OR(M80='Tabla Impacto'!$C$13,M80='Tabla Impacto'!$D$13),"Moderado",IF(OR(M80='Tabla Impacto'!$C$14,M80='Tabla Impacto'!$D$14),"Mayor",IF(OR(M80='Tabla Impacto'!$C$15,M80='Tabla Impacto'!$D$15),"Catastrófico",""))))) -> Catastrófico | O80: 1 | P80: Extremo | Q80: 1 | R80: El profesional del grupo de infrastructura tecnológica y soluciones digitales, realiza un seguimiento a la plataforma de Seguridad Informática del Ministerio que permita que se mantenga actualizada contra las nuevas modalidades de ataques y virus informáticos, a través de revisiones periodicas que dejan documentadas mediante actas | S80: Probabilidad | T80: Preventivo | U80: Manual | V80: 40% | W80: Documentado | X80: Continua | Y80: Con Registro | Z80: 0.6 | AA80: Media | AB80: 0.6 | AC80: Catastrófico | AD80: 1 | AE80: Extremo | AF80: Evitar | AG80: 1. Seguimiento a las políticas de seguridad de la informática y afinamiento a la plataforma de seguridad informática. 2. Actualización del Procedimiento de Seguridad Informática. | AH80: OSORIO BELTRÁN CARLOS JAVIER | AJ80: INFRAESTRUCTURA TECNOLÓGICA y SOLUCIONES DIGITALES MINENERGÍA | AL80: 2022-01-03 | AM80: 2022-12-31
A81: 71 | B81: INFRAESTRUCTURA TECNOLÓGICA y SOLUCIONES DIGITALES MINENERGÍA | C81: Posibilidad de afectación Reputacional por Imposibilidad de transmitir y recibir información a través de diversos canales dentro y hacia afuera del Ministerio. debido a fallas tecnologicas | D81: Reputacional | E81: Imposibilidad de transmitir y recibir información a través de diversos canales dentro y hacia afuera del Ministerio. | F81: fallas tecnologicas | G81: Tecnología | H81: Fallas Tecnologicas | I81: 100 | J81: Muy Alta | K81: 1 | L81: El riesgo afecta la imagen de de la entidad con efecto publicitario sostenido a nivel de sector administrativo, nivel departamental o municipal | M81: =IF(NOT(ISERROR(MATCH(L81,'Tabla Impacto'!$B$221:$B$223,0))),'Tabla Impacto'!$F$223&"Por favor no seleccionar los criterios de impacto(Afectación Económica o presupuestal y Pérdida Reputacional)",L81) -> El riesgo afecta la imagen de de la entidad con efecto publicitario sostenido a nivel de sector administrativo, nivel departamental o municipal | N81: =IF(OR(M81='Tabla Impacto'!$C$11,M81='Tabla Impacto'!$D$11),"Leve",IF(OR(M81='Tabla Impacto'!$C$12,M81='Tabla Impacto'!$D$12),"Menor",IF(OR(M81='Tabla Impacto'!$C$13,M81='Tabla Impacto'!$D$13),"Moderado",IF(OR(M81='Tabla Impacto'!$C$14,M81='Tabla Impacto'!$D$14),"Mayor",IF(OR(M81='Tabla Impacto'!$C$15,M81='Tabla Impacto'!$D$15),"Catastrófico",""))))) -> Mayor | O81: 0.8 | P81: Alto | Q81: 1 | R81: El profesional del grupo de infrastructura tecnológica y soluciones digitales, verifica la disponibilidad y continuidad de los canales dedicados en el Ministerio para la transmisión y recepción de la información, a traves de una lista de chequeo periodica | S81: Probabilidad | T81: Preventivo | U81: Manual | V81: 40% | W81: Documentado | X81: Continua | Y81: Con Registro | Z81: 0.6 | AA81: Media | AB81: 0.6 | AC81: Mayor | AD81: 0.8 | AE81: Alto | AF81: Evitar | AG81: Monitoreo, seguimiento y validación de funcionalidad y disponibilidad de canales dedicados en el Ministerio para la transmisión y recepción de la información. | AH81: OSORIO BELTRÁN CARLOS JAVIER | AJ81: INFRAESTRUCTURA TECNOLÓGICA y SOLUCIONES DIGITALES MINENERGÍA | AL81: 2022-01-03 | AM81: 2022-12-31
A82: 72 | B82: INFRAESTRUCTURA TECNOLÓGICA y SOLUCIONES DIGITALES MINENERGÍA | C82: Posibilidad de afectación Reputacional por afectación de la infraestructura TIC del Ministerio. debido a no realizar mantenimiento a los equipos | D82: Reputacional | E82: afectación de la infraestructura TIC del Ministerio. | F82: no realizar mantenimiento a los equipos | G82: Tecnología | H82: Daños Activos Fisicos | I82: 100 | J82: Muy Alta | K82: 1 | L82: El riesgo afecta la imagen de la entidad internamente, de conocimiento general, nivel interno, de junta dircetiva y accionistas y/o de provedores | M82: =IF(NOT(ISERROR(MATCH(L82,'Tabla Impacto'!$B$221:$B$223,0))),'Tabla Impacto'!$F$223&"Por favor no seleccionar los criterios de impacto(Afectación Económica o presupuestal y Pérdida Reputacional)",L82) -> El riesgo afecta la imagen de la entidad internamente, de conocimiento general, nivel interno, de junta dircetiva y accionistas y/o de provedores | N82: =IF(OR(M82='Tabla Impacto'!$C$11,M82='Tabla Impacto'!$D$11),"Leve",IF(OR(M82='Tabla Impacto'!$C$12,M82='Tabla Impacto'!$D$12),"Menor",IF(OR(M82='Tabla Impacto'!$C$13,M82='Tabla Impacto'!$D$13),"Moderado",IF(OR(M82='Tabla Impacto'!$C$14,M82='Tabla Impacto'!$D$14),"Mayor",IF(OR(M82='Tabla Impacto'!$C$15,M82='Tabla Impacto'!$D$15),"Catastrófico",""))))) -> Menor | O82: 0.4 | P82: Alto | Q82: 1 | R82: El profesional del grupo de infrastructura tecnológica y soluciones digitales, realiza deguimiento a los mantenimientos preventivos y correctivos a la infraestructura tecnológica, a través de un cronograma y una base de datos | S82: Probabilidad | T82: Preventivo | U82: Manual | V82: 40% | W82: Documentado | X82: Continua | Y82: Con Registro | Z82: 0.6 | AA82: Media | AB82: 0.6 | AC82: Menor | AD82: 0.4 | AE82: Moderado | AF82: Evitar | AG82: Realizar Mantenimientos preventivos y correctivos programados. Los reportes solo se haran durante los trimestres en que los mantenimientos sean hechos | AH82: NORE FERRER GINA ALEXANDRA | AJ82: INFRAESTRUCTURA TECNOLÓGICA y SOLUCIONES DIGITALES MINENERGÍA | AL82: 2022-01-03 | AM82: 2022-12-31
A83: 73 | B83: INFRAESTRUCTURA TECNOLÓGICA y SOLUCIONES DIGITALES MINENERGÍA | C83: Posibilidad de afectación Reputacional por filtración de información confidencial y/o mal manejo de información debido a no realizar trazabilidad y control a los recursos compartidos durante las conexiones remotas. | D83: Reputacional | E83: filtración de información confidencial y/o mal manejo de información | F83: no realizar trazabilidad y control a los recursos compartidos durante las conexiones remotas. | G83: Tecnología | H83: Ejecucion y Administracion de procesos | I83: 100 | J83: Muy Alta | K83: 1 | L83: El riesgo afecta la imagen de la entidad internamente, de conocimiento general, nivel interno, de junta dircetiva y accionistas y/o de provedores | M83: =IF(NOT(ISERROR(MATCH(L83,'Tabla Impacto'!$B$221:$B$223,0))),'Tabla Impacto'!$F$223&"Por favor no seleccionar los criterios de impacto(Afectación Económica o presupuestal y Pérdida Reputacional)",L83) -> El riesgo afecta la imagen de la entidad internamente, de conocimiento general, nivel interno, de junta dircetiva y accionistas y/o de provedores | N83: =IF(OR(M83='Tabla Impacto'!$C$11,M83='Tabla Impacto'!$D$11),"Leve",IF(OR(M83='Tabla Impacto'!$C$12,M83='Tabla Impacto'!$D$12),"Menor",IF(OR(M83='Tabla Impacto'!$C$13,M83='Tabla Impacto'!$D$13),"Moderado",IF(OR(M83='Tabla Impacto'!$C$14,M83='Tabla Impacto'!$D$14),"Mayor",IF(OR(M83='Tabla Impacto'!$C$15,M83='Tabla Impacto'!$D$15),"Catastrófico",""))))) -> Menor | O83: 0.4 | P83: Alto | Q83: 1 | R83: El profesional del grupo de infrastructura tecnológica y soluciones digitales, valida el cumplimiento de los principios de confidencialidad e integridad de los recursos compartidos a través del software de gestión y manejo existente | S83: Probabilidad | T83: Preventivo | U83: Manual | V83: 40% | W83: Documentado | X83: Continua | Y83: Con Registro | Z83: 0.6 | AA83: Media | AB83: 0.6 | AC83: Menor | AD83: 0.4 | AE83: Moderado | AF83: Evitar | AG83: Extender el despliegue de los recursos de la Mesa de Ayuda y Soporte Técnico del Ministerio hacia los sitios de vivienda de los usuarios (Servidorespúblicos, funcionarios y contratistas), mientras dure la emergencia sanitaria. | AH83: NORE FERRER GINA ALEXANDRA | AJ83: INFRAESTRUCTURA TECNOLÓGICA y SOLUCIONES DIGITALES MINENERGÍA | AL83: 2022-01-03 | AM83: 2022-12-31
A84: 74 | B84: INFRAESTRUCTURA TECNOLÓGICA y SOLUCIONES DIGITALES MINENERGÍA | C84: Posibilidad de afectación Reputacional por multas o sanciones por parte del ente regulador y mala imagen ante las partes interesadas debido a instalación indebida de software que no se encuentre licenciado en los equipos de cómputo de los usuarios | D84: Reputacional | E84: multas o sanciones por parte del ente regulador y mala imagen ante las partes interesadas | F84: instalación indebida de software que no se encuentre licenciado en los equipos de cómputo de los usuarios | G84: Tecnología | H84: Ejecucion y Administracion de procesos | I84: 50 | J84: Alta | K84: 0.8 | L84: Entre 100 y 500 SMLMV | M84: =IF(NOT(ISERROR(MATCH(L84,'Tabla Impacto'!$B$221:$B$223,0))),'Tabla Impacto'!$F$223&"Por favor no seleccionar los criterios de impacto(Afectación Económica o presupuestal y Pérdida Reputacional)",L84) -> Entre 100 y 500 SMLMV | N84: =IF(OR(M84='Tabla Impacto'!$C$11,M84='Tabla Impacto'!$D$11),"Leve",IF(OR(M84='Tabla Impacto'!$C$12,M84='Tabla Impacto'!$D$12),"Menor",IF(OR(M84='Tabla Impacto'!$C$13,M84='Tabla Impacto'!$D$13),"Moderado",IF(OR(M84='Tabla Impacto'!$C$14,M84='Tabla Impacto'!$D$14),"Mayor",IF(OR(M84='Tabla Impacto'!$C$15,M84='Tabla Impacto'!$D$15),"Catastrófico",""))))) -> Mayor | O84: 0.8 | P84: Alto | Q84: 1 | R84: El profesional del grupo de infrastructura tecnológica y soluciones digitales, realiza seguimiento a la legalidad del software instalado en el Ministerio a traves de una base de datos que contenga el historial de programas instalados por los usuarios | S84: Probabilidad | T84: Preventivo | U84: Manual | V84: 40% | W84: Documentado | X84: Continua | Y84: Con Registro | Z84: 0.48 | AA84: Media | AB84: 0.48 | AC84: Mayor | AD84: 0.8 | AE84: Alto | AF84: Evitar | AG84: Validar y desinstalar software no autorizado en el Ministerio, dentro de los mantenimientos preventivos programados en el Contrato de Soporte. | AH84: NORE FERRER GINA ALEXANDRA | AJ84: INFRAESTRUCTURA TECNOLÓGICA y SOLUCIONES DIGITALES MINENERGÍA | AL84: 2022-01-03 | AM84: 2022-12-31
A85: 75 | B85: CONTRATACIÓN | C85: Posibilidad de afectación Económico y Reputacional por multa y sanción por parte de los entes reguladores debido a tramitar un contrato sin observancia de los requsitos legales escenciales | D85: Económico y Reputacional | E85: multa y sanción por parte de los entes reguladores | F85: tramitar un contrato sin observancia de los requsitos legales escenciales | G85: Operativos | H85: Fraude Interno | I85: 700 | J85: Muy Alta | K85: 1 | L85: Entre 100 y 500 SMLMV | M85: Entre 100 y 500 SMLMV | N85: Mayor | O85: 0.8 | P85: Alto | Q85: 1 | R85: El profesional del área contractual realiza la verificación de los documentos conforme a la lista de chequeo del proceso, el cual se puede revisar en el SECOP. | S85: Probabilidad | T85: Preventivo | U85: Manual | V85: 40% | W85: Documentado | X85: Continua | Y85: Con Registro | Z85: 0.6 | AA85: Media | AB85: 0.6 | AC85: Mayor | AD85: 0.8 | AE85: Alto | AF85: Reducir (mitigar) | AG85: Se valida que todos los documentos solicitados se encuentren completos y adecuados para proseguir con el proceso contractual, si no se cuenta con ellos se devuelve la solicitud a la dependencia y se solicita aportarlos. | AH85: CLAUDIA LILIANA MARTÍNEZ MELO | AI85: COORDINADORA DEL GRUPO DE GESTIÓN CONTRACTUAL | AJ85: GRUPO DE GESTIÓN CONTRACTUAL | AK85: JULIÁN EDUARDO PÁEZ GIL | AL85: 2022-01-03 | AM85: 2022-12-31
A86: 76 | B86: CONTRATACIÓN | C86: Posibilidad de afectación Económico y Reputacional por mala ejecución en contratos y convenios debido a falta de planeación y deficiente componente técnico | D86: Económico y Reputacional | E86: mala ejecución en contratos y convenios | F86: falta de planeación y deficiente componente técnico | G86: Operativos | H86: Fraude Interno | I86: 700 | J86: Muy Alta | K86: 1 | L86: El riesgo afecta la imagen de la entidad internamente, de conocimiento general, nivel interno, de junta dircetiva y accionistas y/o de provedores | M86: El riesgo afecta la imagen de la entidad internamente, de conocimiento general, nivel interno, de junta dircetiva y accionistas y/o de provedores | N86: Menor | O86: 0.4 | P86: Alto | Q86: 1 | R86: El profesional del área contractual revisa los estudios previos elaborados por el área solicitante y si es necesario se devuelven al área con observaciones para realizar los ajustes | S86: Probabilidad | T86: Preventivo | U86: Manual | V86: 40% | W86: Documentado | X86: Continua | Y86: Sin Registro | Z86: 0.6 | AA86: Media | AB86: 0.6 | AC86: Menor | AD86: 0.4 | AE86: Moderado | AF86: Reducir (mitigar) | AG86: Se verifica la información enviada por la dependencia solicitante, se realizan observaciones y se acompaña durante el proceso de elaboración, cuando esta ficha es aprobada se procede con la estructuración de los estudios previos por parte del área solicitante acompañada por el grupo de contratación, finalmente el abogado responsable valida y aprueba los documentos definitivos y se procede con el proceso contractual. | AH86: CLAUDIA LILIANA MARTÍNEZ MELO | AI86: COORDINADORA DEL GRUPO DE GESTIÓN CONTRACTUAL | AJ86: GRUPO DE GESTIÓN CONTRACTUAL | AK86: JULIÁN EDUARDO PÁEZ GIL | AL86: 2022-01-03 | AM86: 2022-12-31
A87: 77 | B87: COACTIVOS | C87: Posibilidad de afectación Económico por detrimento patrimonial debido a la falta de ejecutoriedad del titulo ejecutivo (Deudor no tiene ningun recurso) | D87: Económico | E87: detrimento patrimonial | F87: la falta de ejecutoriedad del titulo ejecutivo (Deudor no tiene ningun recurso) | G87: Cumplimiento | H87: Ejecucion y Administracion de procesos | I87: 10 | J87: Media | K87: 0.6 | L87: Mayor a 500 SMLMV | M87: =IF(NOT(ISERROR(MATCH(L87,'Tabla Impacto'!$B$221:$B$223,0))),'Tabla Impacto'!$F$223&"Por favor no seleccionar los criterios de impacto(Afectación Económica o presupuestal y Pérdida Reputacional)",L87) -> Mayor a 500 SMLMV | N87: =IF(OR(M87='Tabla Impacto'!$C$11,M87='Tabla Impacto'!$D$11),"Leve",IF(OR(M87='Tabla Impacto'!$C$12,M87='Tabla Impacto'!$D$12),"Menor",IF(OR(M87='Tabla Impacto'!$C$13,M87='Tabla Impacto'!$D$13),"Moderado",IF(OR(M87='Tabla Impacto'!$C$14,M87='Tabla Impacto'!$D$14),"Mayor",IF(OR(M87='Tabla Impacto'!$C$15,M87='Tabla Impacto'!$D$15),"Catastrófico",""))))) -> Catastrófico | O87: 1 | P87: Extremo | Q87: 1 | R87: El profesional del Grupo de Coactivos, verifica el cumplimiento de requisitos de ejecutoriedad del titulo ejecutivo para el Cobro Coactivo, a través, de reuniones del grupo dejando actas. | S87: Probabilidad | T87: Preventivo | U87: Manual | V87: 40% | W87: Documentado | X87: Continua | Y87: Con Registro | Z87: 0.36 | AA87: Baja | AB87: 0.36 | AC87: Catastrófico | AD87: 1 | AE87: Extremo | AF87: Evitar | AG87: Se realizará verificación de la información, documentación y requisitos aportados por la dependencia del Ministerio correspondiente para adelantar el cobro coactivo y se procede a expedir auto de avocar conocimiento, el cual queda en el expediente respectivo. | AH87: ROBERTO LEAL SARMIENTO | AI87: COORDINADOR DEL GRUPO DE JURISDICCIÓN COACTIVA | AJ87: GRUPO DE JURISDICCIÓN COACTIVA | AK87: CAMILO ENRIQUE ÁLVAREZ | AL87: 2022-01-03 | AM87: 2022-12-31
A88: 78 | B88: COACTIVOS | C88: Posibilidad de afectación Económico y Reputacional por detrimento patrimonial y mala imagen del area juridica del ministerio frente a las partes interesadas debido a la aplicación de normas no vigentes y/o interpretación errónea de las normas exitentes y/o cambio de legislación o jurisprudencia | D88: Económico y Reputacional | E88: detrimento patrimonial y mala imagen del area juridica del ministerio frente a las partes interesadas | F88: la aplicación de normas no vigentes y/o interpretación errónea de las normas exitentes y/o cambio de legislación o jurisprudencia | G88: Cumplimiento | H88: Ejecucion y Administracion de procesos | I88: 720 | J88: Muy Alta | K88: 1 | L88: Mayor a 500 SMLMV | M88: =IF(NOT(ISERROR(MATCH(L88,'Tabla Impacto'!$B$221:$B$223,0))),'Tabla Impacto'!$F$223&"Por favor no seleccionar los criterios de impacto(Afectación Económica o presupuestal y Pérdida Reputacional)",L88) -> Mayor a 500 SMLMV | N88: =IF(OR(M88='Tabla Impacto'!$C$11,M88='Tabla Impacto'!$D$11),"Leve",IF(OR(M88='Tabla Impacto'!$C$12,M88='Tabla Impacto'!$D$12),"Menor",IF(OR(M88='Tabla Impacto'!$C$13,M88='Tabla Impacto'!$D$13),"Moderado",IF(OR(M88='Tabla Impacto'!$C$14,M88='Tabla Impacto'!$D$14),"Mayor",IF(OR(M88='Tabla Impacto'!$C$15,M88='Tabla Impacto'!$D$15),"Catastrófico",""))))) -> Catastrófico | O88: 1 | P88: Extremo | Q88: 1 | R88: El profesional del Grupo de Coactivos, revisa y verifica la normaividad y jurisprudencia aplicable y vigente, cada vez que se expida un acto procesal. | S88: Probabilidad | T88: Preventivo | U88: Manual | V88: 40% | W88: Documentado | X88: Continua | Y88: Con Registro | Z88: 0.6 | AA88: Media | AB88: 0.6 | AC88: Catastrófico | AD88: 1 | AE88: Extremo | AF88: Evitar | AG88: Revisar la aplicación de la normatividad vigente y jurisprudencia aplicable. | AH88: ROBERTO LEAL SARMIENTO | AI88: COORDINADOR DEL GRUPO DE JURISDICCIÓN COACTIVA | AJ88: GRUPO DE JURISDICCIÓN COACTIVA | AK88: CAMILO ENRIQUE ÁLVAREZ | AL88: 2022-01-03 | AM88: 2022-12-31
A89: 79 | B89: CONTROL INTERNO DISCIPLINARIO | C89: Posibilidad de afectación Reputacional por mala imagen al infringir las normas sustanciales y procesales aplicables, debido a la gestion ineficiente del procedimiento disciplinario. | D89: Reputacional | E89: mala imagen al infringir las normas sustanciales y procesales aplicables, | F89: la gestion ineficiente del procedimiento disciplinario. | G89: Cumplimiento | H89: Ejecucion y Administracion de procesos | I89: 51 | J89: Muy Alta | K89: 1 | L89: El riesgo afecta la imagen de la entidad con algunos usuarios de relevancia frente al logro de los objetivos | M89: El riesgo afecta la imagen de la entidad con algunos usuarios de relevancia frente al logro de los objetivos | N89: Moderado | O89: 0.6 | P89: Alto | Q89: 1 | R89: El profesional del Grupo de Gestión de Asuntos Disciplinarios Comisionado, verifica el cumplimiento efectivo del regimen disciplnario aplicable, a traves de las instancias periodicas de impulso procesal las cuales son documentadas mediante actas. | S89: Probabilidad | T89: Preventivo | U89: Manual | V89: 40% | W89: Documentado | X89: Continua | Y89: Con Registro | Z89: 0.6 | AA89: Media | AB89: 0.6 | AC89: Moderado | AD89: 0.6 | AE89: Moderado | AF89: Evitar | AG89: Revisión periodica de la instancia de impulso de las quejas y procesos disciplinarios. Formular estrategias jurídicas que garanticen la eficiencia, legalidad y oportunidad en el desarrollo de los procesos disciplinarios en primera instancia, a través de una instancia de impulso procesal. | AH89: NICOLAS ROMERO | AI89: COORDINADOR | AJ89: GRUPO DE GESTIÓN DE ASUNTOS DISCIPLINARIOS Y PROMOCIÓN DE LA INTEGRIDAD | AK89: LAURA MOJICA | AL89: 2022-01-03 | AM89: 2022-12-31
A90: 80 | B90: CONTROL INTERNO DISCIPLINARIO | C90: Posibilidad de afectación Reputacional por falta de información para el correcto ejercicio de la acción disciplinaria con vulneración de las garantías constitucionales. debido a la pèrdida o eliminación de expedientes disciplinarios. | D90: Reputacional | E90: falta de información para el correcto ejercicio de la acción disciplinaria con vulneración de las garantías constitucionales. | F90: la pèrdida o eliminación de expedientes disciplinarios. | G90: Cumplimiento | H90: Daños Activos Fisicos | I90: 51 | J90: Muy Alta | K90: 1 | L90: El riesgo afecta la imagen de la entidad internamente, de conocimiento general, nivel interno, de junta dircetiva y accionistas y/o de provedores | M90: El riesgo afecta la imagen de la entidad internamente, de conocimiento general, nivel interno, de junta dircetiva y accionistas y/o de provedores | N90: Menor | O90: 0.4 | P90: Alto | Q90: 1 | R90: El profesional del Grupo de Gestión de Asuntos Disciplinarios comisionado, supervisará constantemente que los expedientes disciplinarios digitales se encuentren completos e integros, a traves de revisión y actualización de la herramienta One Drive. | S90: =IF(OR(T90="Preventivo",T90="Detectivo"),"Probabilidad",IF(T90="Correctivo","Impacto","")) -> Probabilidad | T90: Preventivo | U90: Manual | V90: 40% | W90: Documentado | X90: Continua | Y90: Con Registro | Z90: 0.6 | AA90: Media | AB90: 0.6 | AC90: Menor | AD90: 0.4 | AE90: Moderado | AF90: Evitar | AG90: Guardar y actualización la información en los expedientes digitales de la herramienta One Drive. | AH90: NICOLAS ROMERO | AI90: COORDINADOR | AJ90: GRUPO DE GESTIÓN DE ASUNTOS DISCIPLINARIOS Y PROMOCIÓN DE LA INTEGRIDAD | AK90: LAURA MOJICA | AL90: 2022-01-03 | AM90: 2022-12-31
A91: 81 | B91: AUDITORÍA INTERNA DE GESTIÓN INDEPENDIENTE | C91: Posibilidad de afectación Económico y Reputacional por Incumplimiento de informes de ley y los asociados a funciones legalmente asignasas a las OCI contenidos en el programa anual de auditoria debido a ejecución inferior al 90% de las metas planeadas en el Plan de Acción Anual OCI | D91: Económico y Reputacional | E91: Incumplimiento de informes de ley y los asociados a funciones legalmente asignasas a las OCI contenidos en el programa anual de auditoria | F91: ejecución inferior al 90% de las metas planeadas en el Plan de Acción Anual OCI | G91: Estratégico | H91: Ejecucion y Administracion de procesos | I91: 40 | J91: Alta | K91: 0.8 | L91: El riesgo afecta la imagen de la entidad a nivel nacional, con efecto publicitarios sostenible a nivel país | M91: =IF(NOT(ISERROR(MATCH(L91,'Tabla Impacto'!$B$221:$B$223,0))),'Tabla Impacto'!$F$223&"Por favor no seleccionar los criterios de impacto(Afectación Económica o presupuestal y Pérdida Reputacional)",L91) -> El riesgo afecta la imagen de la entidad a nivel nacional, con efecto publicitarios sostenible a nivel país | N91: =IF(OR(M91='Tabla Impacto'!$C$11,M91='Tabla Impacto'!$D$11),"Leve",IF(OR(M91='Tabla Impacto'!$C$12,M91='Tabla Impacto'!$D$12),"Menor",IF(OR(M91='Tabla Impacto'!$C$13,M91='Tabla Impacto'!$D$13),"Moderado",IF(OR(M91='Tabla Impacto'!$C$14,M91='Tabla Impacto'!$D$14),"Mayor",IF(OR(M91='Tabla Impacto'!$C$15,M91='Tabla Impacto'!$D$15),"Catastrófico",""))))) -> Catastrófico | O91: 1 | P91: Extremo | Q91: 1 | R91: El profesional de la Oficina de Control Interno, realiza seguimiento trimestral a la ejecución del Plan de Acción Anual, identificando niveles bajos de ejecución en las metas programadas para la toma de decisiones, a través de un informe que presenta al jefe de la OCI. | S91: Probabilidad | T91: Preventivo | U91: Manual | V91: 40% | W91: Documentado | X91: Continua | Y91: Con Registro | Z91: 0.48 | AA91: Media | AB91: 0.48 | AC91: Catastrófico | AD91: 1 | AE91: Extremo | AF91: Evitar | AG91: Elaborar informe de seguimiento Trimestral del Plan de Acción Anual de acuerdo a las metas establecidas y actividades planeadas en el Programa Anual de Auditoría Interna Independiente. | AH91: NORMA REGINA FIGUEROA MORENO | AI91: PROFESIONAL ESPECIALIZADO | AJ91: OCI | AK91: INGRID CECILIA ESPINOZA SANCHEZ | AL91: 2022-01-03 | AM91: 2022-12-31
A92: 82 | B92: AUDITORÍADE CALIDAD | C92: Posibilidad de afectación Reputacional por perdida del certificado del sistema de gestión de calidad debido a al incumplimiento del programa de auditoría | D92: Reputacional | E92: perdida del certificado del sistema de gestión de calidad | F92: al incumplimiento del programa de auditoría | G92: Cumplimiento | H92: Ejecucion y Administracion de procesos | I92: 1 | J92: Muy Baja | K92: 0.2 | L92: El riesgo afecta la imagen de la entidad a nivel nacional, con efecto publicitarios sostenible a nivel país | M92: =IF(NOT(ISERROR(MATCH(L92,'Tabla Impacto'!$B$221:$B$223,0))),'Tabla Impacto'!$F$223&"Por favor no seleccionar los criterios de impacto(Afectación Económica o presupuestal y Pérdida Reputacional)",L92) -> El riesgo afecta la imagen de la entidad a nivel nacional, con efecto publicitarios sostenible a nivel país | N92: =IF(OR(M92='Tabla Impacto'!$C$11,M92='Tabla Impacto'!$D$11),"Leve",IF(OR(M92='Tabla Impacto'!$C$12,M92='Tabla Impacto'!$D$12),"Menor",IF(OR(M92='Tabla Impacto'!$C$13,M92='Tabla Impacto'!$D$13),"Moderado",IF(OR(M92='Tabla Impacto'!$C$14,M92='Tabla Impacto'!$D$14),"Mayor",IF(OR(M92='Tabla Impacto'!$C$15,M92='Tabla Impacto'!$D$15),"Catastrófico",""))))) -> Catastrófico | O92: 1 | P92: Extremo | Q92: 1 | R92: El profesional de la Oficina de Planeación y Gestión Internacional elabora el programa de auditoría y realiza seguimiento a través de herramienta de control por fases de ejecución. | S92: =IF(OR(T92="Preventivo",T92="Detectivo"),"Probabilidad",IF(T92="Correctivo","Impacto","")) -> Probabilidad | T92: Preventivo | U92: Manual | V92: =IF(AND(T92="Preventivo",U92="Automático"),"50%",IF(AND(T92="Preventivo",U92="Manual"),"40%",IF(AND(T92="Detectivo",U92="Automático"),"40%",IF(AND(T92="Detectivo",U92="Manual"),"30%",IF(AND(T92="Correctivo",U92="Automático"),"35%",IF(AND(T92="Correctivo",U92="Manual"),"25%","")))))) -> 40% | W92: Documentado | X92: Continua | Y92: Con Registro | Z92: 0.12 | AA92: Muy Baja | AB92: 0.12 | AC92: Catastrófico | AD92: 1 | AE92: Extremo | AF92: Evitar | AG92: Elaborar programa de auditoría y hacer seguimiento a su ejecución | AH92: AIDA MARCELA NIETO PENAGOS | AI92: Profesional Especializado | AJ92: Oficina de Planeación y Gestión Internacional | AK92: LUIS VILLANUEVA PÉREZ | AL92: 2022-03-15 | AM92: 2022-09-15
A93: 83 | B93: SERVICIO AL CIUDADANO | C93: Posibilidad de afectación Reputacional por incumplir terminos de Ley para la entrega de información debido a la falta de gestion de las areas organizacionales del Ministerio | D93: Reputacional | E93: incumplir terminos de Ley para la entrega de información | F93: la falta de gestion de las areas organizacionales del Ministerio | G93: Operativos | H93: Ejecucion y Administracion de procesos | I93: 51 | J93: Muy Alta | K93: 1 | L93: El riesgo afecta la imagen de la entidad con algunos usuarios de relevancia frente al logro de los objetivos | M93: El riesgo afecta la imagen de la entidad con algunos usuarios de relevancia frente al logro de los objetivos | N93: Moderado | O93: 0.6 | P93: Alto | Q93: 1 | R93: El Secretario Ejecutivo del grupo de Relacionamiento con el Ciudadano y Gestion de la informacion - RCGI verifica que la peticion presentada por los ciudadanos y grupos de valor se registre de manera detallada en la base de datos de PQRS y se incluya el respectivo seguimiento | S93: Probabilidad | T93: Preventivo | U93: Manual | V93: 40% | W93: Documentado | X93: Continua | Y93: Con Registro | Z93: 0.6 | AA93: Media | AB93: 0.6 | AC93: Moderado | AD93: 0.6 | AE93: Moderado | AF93: Evitar | AG93: 1.Diligenciar permanentemente la base de datos de peticiones presentadas al Ministerio. 2.Documentar el envío de alertas semanales de vencimiento de peticiones asignadas a las areas organizacionales del Ministerio | AH93: HERNANDO RODRIGUEZ OTALORA | AI93: SECRETAERIO EJECUTIVO | AJ93: GRUPO DE RELACIONAMIENTO CON EL CIUDADANO Y GESTION DE LA INFORMACION | AK93: LUISA FERNANDA HURTADO | AL93: 2022-01-01 | AM93: 2022-12-31
A94: 84 | B94: SERVICIO AL CIUDADANO | C94: Posibilidad de afectación Reputacional por mala imagen ante los ciudadanos y los grupos de valor debido a no disponer de informacion relacionada con el seguimiento y monitoreo a la calidad del servicio en los canales de atención dispuestos por el MME | D94: Reputacional | E94: mala imagen ante los ciudadanos y los grupos de valor | F94: no disponer de informacion relacionada con el seguimiento y monitoreo a la calidad del servicio en los canales de atención dispuestos por el MME | G94: Operativos | H94: Usuarios, productos y practicas , organizacionales | I94: 52 | J94: Muy Alta | K94: 1 | L94: El riesgo afecta la imagen de la entidad con algunos usuarios de relevancia frente al logro de los objetivos | M94: El riesgo afecta la imagen de la entidad con algunos usuarios de relevancia frente al logro de los objetivos | N94: Moderado | O94: 0.6 | P94: Alto | Q94: 1 | R94: El responsable del grupo de Relacionamiento con el Ciudadano y Gestion de la informacion - RCGI realiza encuestas para la medición de la satisfacción de los tramites y servicios prestados por el ministerio a los ciudadanos o grupos de valor | S94: Probabilidad | T94: Preventivo | U94: Automático | V94: 50% | W94: Documentado | X94: Aleatoria | Y94: Con Registro | Z94: 0.5 | AA94: Media | AB94: 0.5 | AC94: Moderado | AD94: 0.6 | AE94: Moderado | AF94: Evitar | AG94: Aplicar metodologías para la captura de información (encuestas, teléfono, correo) para establecer los niveles de percepción de ciudadanos y grupos de valor | AH94: WILSON TORRES / JOHN GALVIS | AI94: CONTRATISTAS | AJ94: GRUPO DE RELACIONAMIENTO CON EL CIUDADANO Y GESTION DE LA INFORMACION | AK94: LUISA FERNANDA HURTADO | AL94: 2022-01-01 | AM94: 2022-12-31
A95: 85 | B95: ASUNTOS LEGISLATIVOS | C95: Posibilidad de afectación Reputacional por investigación de entes de control y citacion a debates por incumplimiento de la ley, generando mala imagen del ministerio ante las partes interesadas debido a retrasos en la consolidación de la información solicitada por los Congresistas de la República, Aplicando terminos según Ley 5 de 1992. | D95: Reputacional | E95: investigación de entes de control y citacion a debates por incumplimiento de la ley, generando mala imagen del ministerio ante las partes interesadas | F95: retrasos en la consolidación de la información solicitada por los Congresistas de la República, Aplicando terminos según Ley 5 de 1992. | G95: Operativos | H95: Ejecucion y Administracion de procesos | I95: 51 | J95: Muy Alta | K95: 1 | L95: El riesgo afecta la imagen de la entidad con algunos usuarios de relevancia frente al logro de los objetivos | M95: =IF(NOT(ISERROR(MATCH(L95,'Tabla Impacto'!$B$221:$B$223,0))),'Tabla Impacto'!$F$223&"Por favor no seleccionar los criterios de impacto(Afectación Económica o presupuestal y Pérdida Reputacional)",L95) -> El riesgo afecta la imagen de la entidad con algunos usuarios de relevancia frente al logro de los objetivos | N95: =IF(OR(M95='Tabla Impacto'!$C$11,M95='Tabla Impacto'!$D$11),"Leve",IF(OR(M95='Tabla Impacto'!$C$12,M95='Tabla Impacto'!$D$12),"Menor",IF(OR(M95='Tabla Impacto'!$C$13,M95='Tabla Impacto'!$D$13),"Moderado",IF(OR(M95='Tabla Impacto'!$C$14,M95='Tabla Impacto'!$D$14),"Mayor",IF(OR(M95='Tabla Impacto'!$C$15,M95='Tabla Impacto'!$D$15),"Catastrófico",""))))) -> Moderado | O95: 0.6 | P95: Alto | Q95: 1 | R95: El profesional del Grupo de Asuntos Legislativos, realiza alertas de cumplimiento a los procesos involucrados para poder consolidar la información solicitada, a traves, correos oficiales que soliciten los insumos para dicha respuesta El profesional del Grupo de Asuntos Legislativos, envia oficios solicitando prorrogas al Congresista que realiza la solicitud de información al Ministerio, para garantizar mas tiempo y poder realizar la consolidación y envió de la respuesta en términos legales, a traves de oficios mediante el aplicativo ARGO llevando la trazabilidad de los mismos y de las respuestas recibidas en la base de datos del Grupo. | S95: Impacto | T95: Correctivo | U95: Manual | V95: 25% | W95: Documentado | X95: Continua | Y95: Con Registro | Z95: 1 | AA95: Muy Alta | AB95: 1 | AC95: Moderado | AD95: 0.45 | AE95: Alto | AF95: Reducir (compartir) | AG95: Recopilar en base de datos en excel la información de las solicitudes realizadas por los Congresistas con su respectivo radicado de entrada y tema, con el fin de realizar el seguimiento y trazabilidad, conforme a lo establecido en el procedimiento y garantizando un control efectivo de las entradas y salidas delas solicitudes, evitando el incumplimiento de los términos legales. Enviar alertas de cumplimiento a las partes interesadas con fin de recibir la información pertinente y dar respuesta a las solicitudes. | AH95: SANDRA PAOLA MUÑOZ SANDERS | AI95: AUXILIAR ADMINISTRATIVO | AJ95: GRUPO DE ASUNTOS LEGISLATIVOS | AK95: LAURA CAMILA AVILA JIMENEZ | AL95: 2022-01-03 | AM95: 2022-12-31
A96: 86 | B96: GESTIÓN JURÍDICA | C96: Posibilidad de afectación Reputacional por emitir conceptos juridicos erroneos generando baja credibilidad del Ministerio de Minas y Energía ante los usuarios internos y externos debido a la falta de claridad en la solicitud o que abarque varios temas misionales | D96: Reputacional | E96: emitir conceptos juridicos erroneos generando baja credibilidad del Ministerio de Minas y Energía ante los usuarios internos y externos | F96: la falta de claridad en la solicitud o que abarque varios temas misionales | G96: Operativos | H96: Usuarios, productos y practicas , organizacionales | I96: 5 | J96: Baja | K96: 0.4 | L96: El riesgo afecta la imagen de de la entidad con efecto publicitario sostenido a nivel de sector administrativo, nivel departamental o municipal | M96: El riesgo afecta la imagen de de la entidad con efecto publicitario sostenido a nivel de sector administrativo, nivel departamental o municipal | N96: Mayor | O96: 0.8 | P96: Alto | Q96: 1 | R96: El profesional o contratista de la Oficina Asesora Juridica, revisa las consultas para establecer que su contenido sea claro ó que no abarque varios temas misionales. Si los contenidos no son claros, se solicita al usuario precisar su consulta a través de comunicacion escrita. | S96: Probabilidad | T96: Preventivo | U96: Manual | V96: 40% | W96: Documentado | X96: Continua | Y96: Con Registro | Z96: 0.24 | AA96: Baja | AB96: 0.24 | AC96: Mayor | AD96: 0.8 | AE96: Alto | AF96: Aceptar | AG96: Revisión inmediata, por parte de funcionarios y contratistas, del contenido y claridad de requerimientos realizados por usuarios internos y externos, para verificar si requiere solicitar aclaración a la solicitud y/o apoyarse en otra área misional para dar respuesta a requerimientos. | AH96: CUBILLOS SIERRA BERTHA ADRIANA | AI96: PROFESIONAL ESPECIALIZADO | AJ96: OFICINA ASESORA JURIDICA | AK96: PAOLA GALEANO ECHEVERRI | AL96: 2022-01-01 | AM96: 2022-12-31
A97: 87 | B97: GESTIÓN JURÍDICA | C97: Posibilidad de afectación Reputacional por baja credibilidad de clientes internos y externos debido a Diversas respuestas o conceptos jurídicos sobre temas idénticos o similares. | D97: Reputacional | E97: baja credibilidad de clientes internos y externos | F97: Diversas respuestas o conceptos jurídicos sobre temas idénticos o similares. | G97: Operativos | H97: Usuarios, productos y practicas , organizacionales | I97: 2 | J97: Muy Baja | K97: 0.2 | L97: El riesgo afecta la imagen de de la entidad con efecto publicitario sostenido a nivel de sector administrativo, nivel departamental o municipal | M97: El riesgo afecta la imagen de de la entidad con efecto publicitario sostenido a nivel de sector administrativo, nivel departamental o municipal | N97: Mayor | O97: 0.8 | P97: Alto | Q97: 1 | R97: Los coordinadores de grupo revisan el contenido de las solicitudes y según tema asignan al profesional o contratista, de ser necesario imparte lineamiento conceptual y/o unificación de criterios frente a temas de repetida o permanente consulta | S97: Probabilidad | T97: Preventivo | U97: Manual | V97: 40% | W97: Documentado | X97: Continua | Y97: Con Registro | Z97: 0.12 | AA97: Muy Baja | AB97: 0.12 | AC97: Mayor | AD97: 0.8 | AE97: Alto | AF97: Aceptar | AG97: Revisión permanente del contenido de las solicitudes por parte del coordinador, para su posterior asignación al profesional o contratista, de ser necesario imparte lineamiento conceptual y/o unificación de criterios frente a temas de repetida o permanente consulta | AH97: CUBILLOS SIERRA BERTHA ADRIANA | AI97: PROFESIONAL ESPECIALIZADO | AJ97: OFICINA ASESORA JURIDICA | AK97: PAOLA GALEANO ECHEVERRI | AL97: 2022-01-01 | AM97: 2022-12-31
A98: 88 | B98: GESTIÓN JURÍDICA | C98: Posibilidad de afectación Económico y Reputacional por fallos en contra debido a actuaciones procesales presentadas fuera de los terminos legales | D98: Económico y Reputacional | E98: fallos en contra | F98: actuaciones procesales presentadas fuera de los terminos legales | G98: Operativos | H98: Ejecucion y Administracion de procesos | I98: 1 | J98: =IF(I98<=0,"",IF(I98<=2,"Muy Baja",IF(I98<=5,"Baja",IF(I98<=19,"Media",IF(I98<=50,"Alta","Muy Alta"))))) -> Muy Baja | K98: =IF(J98="","",IF(J98="Muy Baja",0.2,IF(J98="Baja",0.4,IF(J98="Media",0.6,IF(J98="Alta",0.8,IF(J98="Muy Alta",1,)))))) -> 0.2 | L98: El riesgo afecta la imagen de de la entidad con efecto publicitario sostenido a nivel de sector administrativo, nivel departamental o municipal | M98: El riesgo afecta la imagen de de la entidad con efecto publicitario sostenido a nivel de sector administrativo, nivel departamental o municipal | N98: Mayor | O98: =IF(N98="","",IF(N98="Leve",0.2,IF(N98="Menor",0.4,IF(N98="Moderado",0.6,IF(N98="Mayor",0.8,IF(N98="Catastrófico",1,)))))) -> 0.8 | P98: =IF(OR(AND(J98="Muy Baja",N98="Leve"),AND(J98="Muy Baja",N98="Menor"),AND(J98="Baja",N98="Leve")),"Bajo",IF(OR(AND(J98="Muy baja",N98="Moderado"),AND(J98="Baja",N98="Menor"),AND(J98="Baja",N98="Moderado"),AND(J98="Media",N98="Leve"),AND(J98="Media",N98="Menor"),AND(J98="Media",N98="Moderado"),AND(J98="Alta",N98="Leve"),AND(J98="Alta",N98="Menor")),"Moderado",IF(OR(AND(J98="Muy Baja",N98="Mayor"),AND(J98="Baja",N98="Mayor"),AND(J98="Media",N98="Mayor"),AND(J98="Alta",N98="Moderado"),AND(J98="Alta",N98="Mayor"),AND(J98="Muy Alta",N98="Leve"),AND(J98="Muy Alta",N98="Menor"),AND(J98="Muy Alta",N98="Moderado"),AND(J98="Muy Alta",N98="Mayor")),"Alto",IF(OR(AND(J98="Muy Baja",N98="Catastrófico"),AND(J98="Baja",N98="Catastrófico"),AND(J98="Media",N98="Catastrófico"),AND(J98="Alta",N98="Catastrófico"),AND(J98="Muy Alta",N98="Catastrófico")),"Extremo","")))) -> Alto | Q98: 1 | R98: Apoderado a cargo del proceso , realiza permanente seguimiento y verificación del cumplimiento de términos legales | S98: Probabilidad | T98: Preventivo | U98: Manual | V98: 40% | W98: Documentado | X98: Continua | Y98: Con Registro | Z98: 0.12 | AA98: Muy Baja | AB98: 0.12 | AC98: Mayor | AD98: 0.8 | AE98: Alto | AF98: Evitar | AG98: Verificación y seguimiento permanente por parte de apoderados de procesos, apoyados en el contratista externo a cargo de la vigilancia y control de los procesos y a través de la herramienta en línea consulta de procesos dispuesta para tal fin por la rama judicial | AH98: CUBILLOS SIERRA BERTHA ADRIANA | AI98: PROFESIONAL ESPECIALIZADO | AJ98: OFICINA ASESORA JURIDICA | AK98: PAOLA GALEANO ECHEVERRI | AL98: 2022-01-01 | AM98: 2022-12-31
A99: 89 | B99: GESTIÓN JURÍDICA | C99: Posibilidad de afectación Reputacional por expdición de actos administrativos ilegales debido a fallas en control de legalidad | D99: Reputacional | E99: expdición de actos administrativos ilegales | F99: fallas en control de legalidad | G99: Operativos | H99: Usuarios, productos y practicas , organizacionales | I99: 1 | J99: =IF(I99<=0,"",IF(I99<=2,"Muy Baja",IF(I99<=5,"Baja",IF(I99<=19,"Media",IF(I99<=50,"Alta","Muy Alta"))))) -> Muy Baja | K99: =IF(J99="","",IF(J99="Muy Baja",0.2,IF(J99="Baja",0.4,IF(J99="Media",0.6,IF(J99="Alta",0.8,IF(J99="Muy Alta",1,)))))) -> 0.2 | L99: El riesgo afecta la imagen de de la entidad con efecto publicitario sostenido a nivel de sector administrativo, nivel departamental o municipal | M99: El riesgo afecta la imagen de de la entidad con efecto publicitario sostenido a nivel de sector administrativo, nivel departamental o municipal | N99: Mayor | O99: =IF(N99="","",IF(N99="Leve",0.2,IF(N99="Menor",0.4,IF(N99="Moderado",0.6,IF(N99="Mayor",0.8,IF(N99="Catastrófico",1,)))))) -> 0.8 | P99: =IF(OR(AND(J99="Muy Baja",N99="Leve"),AND(J99="Muy Baja",N99="Menor"),AND(J99="Baja",N99="Leve")),"Bajo",IF(OR(AND(J99="Muy baja",N99="Moderado"),AND(J99="Baja",N99="Menor"),AND(J99="Baja",N99="Moderado"),AND(J99="Media",N99="Leve"),AND(J99="Media",N99="Menor"),AND(J99="Media",N99="Moderado"),AND(J99="Alta",N99="Leve"),AND(J99="Alta",N99="Menor")),"Moderado",IF(OR(AND(J99="Muy Baja",N99="Mayor"),AND(J99="Baja",N99="Mayor"),AND(J99="Media",N99="Mayor"),AND(J99="Alta",N99="Moderado"),AND(J99="Alta",N99="Mayor"),AND(J99="Muy Alta",N99="Leve"),AND(J99="Muy Alta",N99="Menor"),AND(J99="Muy Alta",N99="Moderado"),AND(J99="Muy Alta",N99="Mayor")),"Alto",IF(OR(AND(J99="Muy Baja",N99="Catastrófico"),AND(J99="Baja",N99="Catastrófico"),AND(J99="Media",N99="Catastrófico"),AND(J99="Alta",N99="Catastrófico"),AND(J99="Muy Alta",N99="Catastrófico")),"Extremo","")))) -> Alto | Q99: 1 | R99: Revisión y control de legalidad de los actos administrativos dentro del proceso de actuación administrativa, por parte de profesionales y contratistas a cargo. | S99: Probabilidad | T99: Preventivo | U99: Manual | V99: 40% | W99: Documentado | X99: Continua | Y99: Con Registro | Z99: 0.12 | AA99: Muy Baja | AB99: 0.12 | AC99: Mayor | AD99: 0.8 | AE99: Alto | AF99: Evitar | AG99: Revisión y verificación permanente de la vigencia de normatividad y la jurisprudencia aplicable, por parte de profesionales y contratistas a cargo | AH99: CUBILLOS SIERRA BERTHA ADRIANA | AI99: PROFESIONAL ESPECIALIZADO | AJ99: OFICINA ASESORA JURIDICA | AK99: PAOLA GALEANO ECHEVERRI | AL99: 2022-01-01 | AM99: 2022-12-31
A100: 90 | AH100: l

Sheet Reportes Riesgos Gestión
A1: Proceso | B1: Descripción del Riesgo (VIGENCIA 2022) | C1: Descripción del Control | D1: REPORTE CONTROL 1ER TRIMESTRE | E1: REPORTE CONTROL 2DO TRIMESTRE
A2: DIRECCIONAMIENTO ESTRATÉGICO | B2: Posibilidad de afectación Reputacional por mala imagen ante los directivos y la ciudadanía debido a la falta de capacitación en la formulación de indicadores del PAA, articulados con indicadores PES, PEI, PND y metas estrategicas. | C2: El profesional de la Oficina de Planeación y Gestión Internacional empezará el proceso para la formulación del plan de acción desde la vigencia anterior, brindando capacitaciones y asesorías a los líderes de cada dependencia para indicarles como se formulan los planes y solucionar dudas en su formulación para la siguiente vigencia, para esta actividad, se enviará una comunicación a las áreas con el cronograma establecido, previo a la publicación del mismo en la página web del Ministerio. | D2: Durante el ultimo trimestre de 2021 se realizarón todas las actuacione para la formulación del plan de acción 2022, del 12 de octubre y el 24 de noviembrte se realizarón los acompañamientos de manera virtual a cada una de las dependencias y se encuentra articulado con los objetivos y metas del Plan Nacional de Desarrollo, el plan de acción se aprobón en Comite de Gestión y Desempeño el día 24 de enero de 2022 y en esa misma fecha se publico eb la pagina Web del Ministerio | E2: Durante el ultimo trimestre de 2021 se realizarón todas las actuacione para la formulación del plan de acción 2022, del 12 de octubre y el 24 de noviembrte se realizarón los acompañamientos de manera virtual a cada una de las dependencias y se encuentra articulado con los objetivos y metas del Plan Nacional de Desarrollo, el plan de acción se aprobón en Comite de Gestión y Desempeño el día 24 de enero de 2022 y en esa misma fecha se publico eb la pagina Web del Ministerio
A3: DIRECCIONAMIENTO ESTRATÉGICO | B3: Posibilidad de afectación Reputacional por mala imagen ante el comité directivo al no permitir realizar seguimiento al cumplimiento de las metas de la entidad por parte de los líderes de los procesos debido al incumplimiento al seguimiento del Plan de Acción del Ministerio, en lo relacionado con la presentación de informes trimestrales del avance (por falta de insumos para su construcción) | C3: El profesional de la Oficina de Planeación y Gestión Internacional envía las notificaciones a las dependencias con tiempo de antelación, solicitando el reporte de avance de los indicadores de resultado y de producto para su registro en el aplicativo y realizar el acompañamiento permanente a los funcionarios que lo requieran, al momento de diligenciar la información. | D3: Se realizarón los acompañamiento mensual al seguimiento de los indicadores del Plan de Acción con corte al cuarto trimestre de 2021, se realizó el informe final de ejecución y se publico en la pagina Web del Ministerio | E3: Se realizarón los acompañamiento mensual al seguimiento de los indicadores del Plan de Acción con corte al primer trimestre de 2022, se realizó el informe final de ejecución y se publico en la pagina Web del Ministerio
A4: DIRECCIONAMIENTO ESTRATÉGICO | B4: Posibilidad de afectación Económico y Reputacional por demandas y quejas de los interesados en la gestión de los tramites debido a procedimientos erroneos publicados en el SUIT frente a lo establecido en la normatividad | C4: El profesional de la Oficina de Planeación y Gestión Internacional verifica que la informacion de los tramites publicaods en el SUIT se encuentra actualizada y sea la correcta a través de una plantilla de validación de información de cada tramite y la revisa con los encargados misionales correspondientes. | D4: Se cuenta con plantillas de validación de información de los tramites de " Permiso para Construir una Planta de Abastecimiento de Combustible" "DUPIS Declaración de Utilidad Publica" "Fijación de Capacidad y Fecha Entrada en Operación Central Electrica", "Registro como productor de alcohol carburante" y "Registro Geotermico" tramites con los cuales se puede confrontar la información del SUIT con el procedimiento documentado en el sistema de gestión de calidad | E4: No se presentan avances
A5: DIRECCIONAMIENTO ESTRATÉGICO | B5: Posibilidad de afectación Reputacional por Generación de Reprocesos debido a debil soporte justificativo (Legal, tecnico, economico, ambiental), por los retrasos en el tramite de ajuste de ficha de proyectos | C5: Los profesional del Grupo de Planeación y Programación, realizan controles de formulación y de viablididad tecnica, a tarvés de cuestionarios mediante el apllicativo SUIFP en donde se verifican, rechazan y/o aprueban las justificaciones de los proyectos. | D5: Con corte a marzo de 2022, se han tramitado con éxito las solicitudes de ajuste de ficha de los proyectos de inversión del sector, de acuerdo con las solicitudes de apropiaciones requeridas por las entidades en el documento de Anteproyecto de Presupuesto 2023, para lo cual se ha brindado el acompañamiento requerido por los formuladores, que se refleja en las mesas de trabajo virtual programadas. Igualmente, se ha iniciado con las capacitaciones en materia de formulación de proyectos de inversión, al igual que en lo referente a focalización de recursos en los mencionados proyectos. | E5: Con corte a junio de 2022, se tramitaron con éxito las solicitudes de ajuste de ficha de los proyectos de inversión del sector, para el Programa Operativo Anual de Inversuines POAI, de acuerdo con el Anteproyecto de Presupuesto 2023 y el MGMP, las cuales debian quedar Registradas Actualizadas por el DNP antes del 01 de junio, para lo cual se surtieron los roles de Control de Formulación Técnico, Control Jefe de Planeación Entidad, Control de Viabilidad Técnico, Control Jefe de Planeación Cbeza de Sector, y Control Posterior de Viabilidad (DNP).
A6: DIRECCIONAMIENTO ESTRATÉGICO | B6: Posibilidad de afectación Reputacional por Generación de Reprocesos debido a Debil soporte justificativo (Legal, tecnico, economico, ambiental), por los retrasos en la viabilización de trámites presupuestales | C6: Los profesional del Grupo de Planeación y Programación, Planear con tiempo y/o claridad el soporte justificativo, la solicitud de modificaciones presupuestales dentro del periodo fiscal | D6: Durante el primer trimestre de 2022, no se ha tramitado ningún tipo de modificación presupuestal que afecte los proyectos de inversión | E6: Durante el segundo trimestre de 2022, no se ha tramitado ningún tipo de modificación presupuestal que afecte los proyectos de inversión a cargo del ministerio de minas y energia. no obstante a nivel sectorial se revisa los documentos soportesde trámite de modificcaiones presupuestales a. ANM, ANH, IPSE, SGC
A7: GESTIÓN INTERNACIONAL | B7: Posibilidad de afectación Reputacional por no atender los compromisos internacionales, perdiendo credibilidad y posicionamiento en los distintos escenarios debido a la desarticulación en la gestión internacional al interior del Ministerio de Minas y Energía y sus entidades adscritas. | C7: 1. El profesional del Grupo de Asuntos Internacionales, realiza reuniones con las dependencias del Ministerio de Minas y Energía y sus entidades adscritas para hacer el levantamiento de las prioridades de cooperación internacional para el sector y presentar los lineamientos de articulación para la gestión internacional, a través de listas de asistencia y/o ayudas de memoria. (Carolina Garzón, Heidy Peña). 2. El profesional del Grupo de Asuntos Internacionales integra y registra la información del grupo a través del Sistema Integrado de Gestión Internacional (SIGI). | D7: Control 1: Se realizaron 18 reuniones con las dependencias del Ministerio de Minas y Energía y sus entidades adscritas para hacer el levantamiento de las prioridades de cooperación internacional y presentar los lineamientos de articulación para la gestión internacional del sector. Control 2: Teniendo en cuenta que el sistema se encuentra en etapa de desarrollo, se está dando seguimiento a la información del equipo de asuntos internacionales en materia de instrumentos de cooperación a través de las matrices de seguimiento adjuntas y las cuales están siendo actualizadas de acuerdo a la dinámica actual del equipo. | E7: Control 1: Se realizaron 27 reuniones con las dependencias del Ministerio de Minas y Energía y sus entidades adscritas para hacer el levantamiento de las prioridades de cooperación internacional y presentar los lineamientos de articulación para la gestión internacional del sector. Control 2: Teniendo en cuenta que el sistema se encuentra en etapa de desarrollo, se está dando seguimiento a la información del equipo de asuntos internacionales en materia de instrumentos de cooperación a través de las matrices de seguimiento y para el mes de junio se realizaron una serie de informes para dar seguimiento a los temas de competencia del Grupo de Asuntos Internacionales.
A8: ADMINISTRACIÓN DEL SISTEMA INTEGRADO DE GESTIÓN | B8: Posibilidad de afectación Económico y Reputacional por materialización de riesgos de gestión y de corrupción en la entidad e incumplimiento de la ley, generando sanciones y multas debido a mala formulación y seguimiento a los mapas de riesgo sin acompañamiento de la Oficina de Planeación y Gestión Internacional | C8: El profesional de la Oficina de Planeación y Gestión Internacional realiza mesas de trabajo, asesorías y acompañamientos para la formulación de los mapas de riesgo de cada vigencia, dejando listas de asistencia. El profesional de la Oficina de Planeación y Gestión Internacional realiza seguimiento a los controles de la gerencia de riesgos por parte de cada responsable, con el fin de evitar la materialización de los riesgos, a través de informes trimestrales para los riesgos de gestión y mensuales para los riesgos de corrupción | D8: 1. Durante el primer trimestre se realizaron mesas de trabajo con las diferentes dependencias del Ministerio para realizar ajustes a los mapas de riesgos del 2022, una vez consolidado el mapa, fue publicado en el mes de enero en el portal web de la entidad y actualmente se realiza el respectivo monitoreo a los controles que se establecieron. De acuerdo con el plan de trabajo se espera realizar mesas de trabajo nuevamente con las áreas en el último trimestre del año. 2. Para el primer trimestre se construyó el informe trimestral de monitoreo de los riesgos, a la fecha se encuentra en proceso de validación por parte de la oficina de control interno. | E8: Se realiza el seguimiento periodico de manera mensual para los riesgos de corrupción, en donde junto con Control Interno se cuenta con un analisis de evidencias identificando aquellas areas que envian evidencias que no corresponden Para los riesgos de gestión, se realizan acompañamientos a los procesos que lo solicitan
A9: ADMINISTRACIÓN DEL SISTEMA INTEGRADO DE GESTIÓN | B9: Posibilidad de afectación Reputacional por mala imagen ante los grupos de valor de la entidad debido a la no revisión y demoras en la oficialización de los documentos del sistema de gestión de calidad | C9: El profesional de la Oficina de Planeación y Gestión Internacional realiza asesoría y revisión de las solicitudes de control documental conjuntamente con los dueños de los procesos y validar los documentos antes de ser aprobados para evitar errores en forma y/o contenido, a través de listado de verificación de actualización de documentos. | D9: Durante el primer trimestre se atendieron 192 solicitudes documentales de las siguientes dependencias Administración del Sistema Integrado de Gestión, Auditoría interna de Calidad, Ejecución de políticas, proyectos y reglamentación sectorial, Minería Empresarial, Hidrocarburos, Energía Eléctrica, Energía Nuclear, Regalías, Formulación y adopción de políticas, planes, programas, reglamentos y lineamientos sectoriales, Asuntos Regulatorios y Empresariales, Gestión de Recursos Físicos, Gestión del Talento Humano, Gestión Documental, Gestión Financiera, Contratación, Jurídica, Gestión Tecnológica, de Información y Comunicación, Seguimiento, Vigilancia y Control a políticas, planes, programas, proyectos y reglamentación sectorial y Participación y Servicio al Ciudadano. Toda la trazabilidad se encuentra en el Listado Maestro de Documentos | E9: Durante el primer trimestre se atendieron 49 solicitudes documentales de las siguientes dependencias Administración del Sistema Integrado de Gestión, Hidrocarburos, Energía Eléctrica, Gestión de Recursos Físicos, Gestión Financiera Gestión Internacional, Contratación, Gestión Documental. Toda la trazabilidad se encuentra en el Listado Maestro de Documentos
A10: COMUNICACIÓN INSTITUCIONAL | B10: Posibilidad de afectación Reputacional por mala percepción del desarrollo de la misionalidad del ministerio frente a la opinión pública, debido a divulgación de información de baja confiabilidad a traves de los canales propios y otros medios de comunicación | C10: El profesional del Grupo de Comunicaciones y Prensa realiza comités para la planeación y seguimiento de las actividades a realizarse durante los días siguientes, garantizando que la información sea clara, veráz y oportuna, a través de actas. | D10: Durante el primer trimestre del año, el grupo de comunicaciones y prensa realiza comites con el grupo en pleno, con el fin de realizar la revisión y planeacion de rutas de trabajo para los temas de interes del ministerio, asi mismo se realiza la planeacion de comisiones y actividades de los diferentes hitos y/o requerimientos del Despacho | E10: Durante el segundo trimestre del año, el grupo de comunicaciones y prensa realiza comites con el grupo en pleno, con el fin de realizar la revisión y planeacion de rutas de trabajo para los temas de interes del ministerio, asi mismo se realiza la planeacion de comisiones y actividades de los diferentes hitos y/o requerimientos del Despacho
A11: COMUNICACIÓN INSTITUCIONAL | B11: Posibilidad de afectación Reputacional por mala percepción del desarrollo de las acciones adelantadas por las diferentes entidadaes adscritas al sector mienroenergetico debido a divulgación de información de baja confiabilidad a traves de los canales propios y otros medios de comunicación | C11: El profesional del Grupo de Comunicaciones y Prensa realiza comités para la planeación y seguimiento de las actividades a realizarse durante los días siguientes, garantizando que la información sea clara, veráz y oportuna, a través de actas. | D11: Durante el primer trimestre del año, el grupo de comunicaciones y prensa realiza comites en conjunto con las entidades adscritas para la revision de los temas que seran tratados en conjunto por las entidades y el ministerio | E11: Durante el segundo trimestre del año, el grupo de comunicaciones y prensa realiza comites en conjunto con las entidades adscritas para la revision de los temas que seran tratados en conjunto por las entidades y el ministerio
A12: DIRECCIÓN DE HIDROCARBUROS - FORMULACIÓN | B12: Posibilidad de afectación Reputacional por inducir a errores normativos, no facilitar la participación ciudadana en las decisiones de la Entidad debido a Falta de Publicidad y limitación a la participación de los Grupos de interés | C12: El profecional de la Dirección de Hidrocarburos, realiza seguimientos mensuales de verificación y cumplimiento a los lineamientos establecidos para la publicidad de los proyectos normativos que expide la Dirección de Hidrocarburos | D12: Durante el presente trimestre la Dirección de Hidrocarburos expidió y publico de acuerdo con los lineamientos legales establecidos, un total de treinta y seis (36) actos administrativos, de los cuales dieciocho (18) en la página web del Ministerio de Minas y Energía y dieciocho (18) en el Diario Oficial. | E12: Durante el presente trimestre la Dirección de Hidrocarburos expidió y publico de acuerdo con los lineamientos legales establecidos, un total de treinta y seis (36) actos administrativos, de los cuales dieciocho (18) en la página web del Ministerio de Minas y Energía y dieciocho (18) en el Diario Oficial.
A13: DIRECCIÓN DE HIDROCARBUROS - EJECUCIÓN | B13: Posibilidad de afectación Reputacional por demandas y quejas de los interesados en la gestión de los tramites debido a error en la captura de la información de los agentes de la cadena de combustible | C13: El profecional de la Dirección de Hidrocarburos, realiza validaciones aleatorias de la conformación reportada por los agentes de la cadena de combustibles vs la información subida al SICOM | D13: A la fecha no se han generado errores en la captura de la información de los agentes de la cadena de combustible | E13: No se han generado errores en la captura de información por parte de los agentges de la cadena de combustibles.
A14: DIRECCIÓN DE HIDROCARBUROS - EJECUCIÓN | B14: Posibilidad de afectación Económico y Reputacional por incumplimiento a los procedimientos de verificación y control a la compensación por el transporte terrestre de combustible para abastecer el departamento de Nariño debido a incumplimiento a los procedimientos establecidos | C14: El profecional de la Dirección de Hidrocarburos, realiza seguimientos mensuales de verificación y validación de cumplimiento para el reconocimiento de la compesnación por concepto de transporte de combustibles líquidos del Departamento de Nariño | D14: Durante el primer trimestre la Dirección de Hidrocarburos previo concepto técnico elaborado por el Grupo MIDSTREAM, proyectó los actos administrativos para el pago de compensación al transporte de combustibles líquidos y GLP al Departamento de Nariño de la siguiente manera: ENERO 00317, FEBRERO 00518 y MARZO 00752. NOTA: Es importante señalar que los pagos se realizan mes vencido. | E14: Durante el segundo trimestre la Dirección de Hidrocarburos previo concepto técnico elaborado por el Grupo MIDSTREAM, proyectó los actos administrativos para el pago de compensación al transporte de combustibles líquidos y GLP al Departamento de Nariño de la siguiente: ABRIL (963, 964, 966, 967, 968, 969, 970, 971, 973, 982), MAYO (1132, 1133, 1134, 1135, 1136, 1137, 1138, 1139, 1140, 1141) JUNIO PAGO DE VIGENCIAS EXPIRADAS (00992). y el mes de junio esta entramite de pago NOTA: Es importante señalar que los pagos se realizan mes vencido.
A15: DIRECCIÓN DE HIDROCARBUROS - SEGUIMIENTO | B15: Posibilidad de afectación Reputacional por Incumplimiento en el cargue de la información en el sistema NEON para tramitar los pagos programados debido a reportes extemporáneos por parte empresas y contratistas | C15: El profecional de la Dirección de Hidrocarburos, realiza verificaciones mensuales a través del sistema NEON | D15: En el presente trimestre se realizaron verificaciones y validaciones mensuales acorde a la programación del PAC. Es importante señalar que durante el primer trimestre, se realizaron requerimientos para que diera estricto cumplimiento a dicha programación | E15: Para este trimestre se realizaron verificaciones y validaciones mensuales acorde a la programación del PAC.Cabe señalar que durante el segundo trimestre, se realizó seguimiento al cumplimiento del PAC programado por el equipo de la Dirección de Hidrocarburos,
A16: DIRECCIÓN DE HIDROCARBUROS - SEGUIMIENTO | B16: Posibilidad de afectación Reputacional por Inducir al error, al debido proceso, oponibilidad y efectos jurídicos debido a falta de publicación de los actos administrativos del sector de hidrocarburos | C16: Implementar mesas de trabajo para realizar una segunda revisión a los procesos y procedimientos con el apoyo y participación de la Oficina de Planeación | D16: Para el primer trimestre de 2022, la Dirección de Hidrocarburos remitió para la respectiva publicación en el Sistema de Calidad, dies (10) procedimientos, los cuales fueron construidos junto con cada uno de los responsables del tema y avalados por los Coordinadores y Director de Hidrocarburos. | E16: Para el sgundo trimestre de 2022, la Dirección de Hidrocarburos remitió para la respectiva publicación en el Sistema de Calidad del Ministerio de Minas y Energía, treinta y dos (32) documentos, estos fueron construidos junto con cada uno de los responsables del tema tanto de la Dirección de Hidrocarburos y de SICOM.
A17: DIRECCIÓN DE HIDROCARBUROS - SEGUIMIENTO | B17: Posibilidad de afectación Reputacional por Perdida de credibilidad y mala imagen ante el sector minero energético, grupos de interés y ciudadanía en general, debido a error de captura en la asignación de cupos de combustibles | C17: El profecional de la Dirección de Hidrocarburos, realiza y verificar la configuración de los agentesde la cadena mediante muestreo aleatorio | D17: ENERO: Para el periodo de Enero se realiza una muestra de 25 agentes, donde se verifica su registro adecuado para la entrada en operación. Durante el mes no se presentaron novedades negativas que pudiesen afectar a la operación de SICOM. FEBRERO: Para el periodo de febrero, se realiza una muestra de 17 agentes, donde todos se reporta que todos cumplen con un registro adecuado para la entrada en operación. A la fecha, no se han presentado novedades negativas que puedan afectar algun proceso del SICOM MARZO: Para el mes de marzo se realiza una muestra de 20 agentes , donde no hubo novedad, esto es positivo, teniendo en cuenta que no se han registrado mal los agentes para la entrada en operación. | E17: "ABRIL: Para el periodo de abril se realiza una muestra de 30 agentes, donde se verifica su registro adecuado para la entrada en operación. Durante el mes no se presentaron novedades negativas que pudiesen afectar a la operación de SICOM. MAYO: Para el periodo de mayo, se realiza una muestra de 30 agentes, donde todos se reporta que todos cumplen con un registro adecuado para la entrada en operación. A la fecha, no se han presentado novedades negativas que puedan afectar algun proceso del SICOM JUNIO: Para el mes de junio se realiza una muestra de 30 agentes , donde no hubo novedad, esto es positivo, teniendo en cuenta que no se han registrado mal los agentes para la entrada en operación."
A18: DIRECCIÓN DE HIDROCARBUROS - SEGUIMIENTO | B18: Posibilidad de afectación reputacional por Perdida de credibilidad y mala imagen ante el sector minero energético, grupos de interés y ciudadanía en general debido a fallas reportadas por el sistema SICOM | C18: El profecional de la Dirección de Hidrocarburos, desarrolla un plan de Contingencia en caso de Fallas en el Sistema dejando reportes de las mismas | D18: ENERO: Durante el mes de Enero no se reportaron incidentes el servicio en el sistema de Información SICOM. FEBRERO: Se presentó 1 Incidente, de los cuales su mayor concentración fue en: Falla de cominicación en la Transmisión Web Services SICOM GNCV. Se depuraron sesiones y procesos que pudieron estar bloqueados en los servidores de webservices, liberando el consumo correcto del servicio. MARZO: Para el periodo de Marzo se registra 1 incidente padre, presentando una indisponibilidad en el servicio, de las aplicaciones Líquidos Java y GNCV Java producción, así mismo como en webservices, que impedía acceder o generaba error al hacer una tarea dentro del sistema, la sesión se libera y esta recupera la base de datos. Automáticamente las aplicaciones pueden hacer lectura y escritura en la base de datos que había quedado bloqueada permitiendo normalizar el proceso tanto en las aplicaciones como en el Webservice. | E18: ABRIL: Se presentó 1 Incidente, de los cuales su mayor concentración fue en: FALLA INGRESO A SICOM LÍQUIDOS por Intermitencia Acceso Aplicaciones Java Servicio Web GNCV. Al proceder con un kill del proceso, la sesión se libera y esta recupera la base de datos. Automáticamente las aplicaciones pueden hacer lectura y escritura en la base de datos que había quedado bloqueada. MAYO: Se presentó 1 Incidente, de los cuales su mayor concentración fue en: Intermitencia Acceso Portal Java GNCV Y Web Services. En donde se presentó intermitencia en el servicio web de consulta de chip para conexión a EDS, de la aplicación GNCV Java en ambiente productivo de igual modo en el cargue del portal de acceso al sistema. Una vez aplicada la configuración y reconexión de la unidad de almacenamiento o Disk Group, el servicio se restableció de manera normal, pudiéndose realizar las consultas sin inconveniente, así como el acceso al aplicativo. JUNIO: Se presentó 1 Incidente, de los cuales su mayor concentración fue en: Intermitencia Creación Orden de Pedido (Manual) Líquidos Java por Intermitencia en el servicio de creación de ordenes de pedido, de manera manual en el portal Líquidos Java, por parte de agente minorista por una interrupción de comunicación entre los dos nodos de Base de Datos Oracle. Se realizó revisión en conjunto de máquinas virtuales, realizando un reinicio de estas y así mismo también del servicio de la aplicación. El problema fue solucionado y se verificó con el usuario la creación de manera normal
A19: DIRECCIÓN DE HIDROCARBUROS - SEGUIMIENTO | B19: Posibilidad de afectación Reputacional por Incumplimiento a los lineamientos establecidos para el seguimiento y control a los contratos asignados a la Dirección de Hidrocarburos debido a falta de cumplimiento a los lineamientos establecidos para el seguimiento y control de los contratos asignados a la Dirección de Hidrocarburos | C19: El profesional de la Dirección de la Dirección de Hidrocarburos verifica que los formatos establecidos para el seguimiento y control de los contratos y /o convenios asignados a la Dirección de Hidrocarburos, cuentan con el diligenciamiento del formato correspondiete Código SP-F-14, el cual deberá estár totalamente diligenciado y firmado por parte del supervisor y/o quien haga sus veces. | D19: Durante el primer trimestre de 2022, se dio cumplimieto a los lineameintos establecidos, dadas las verificaciones del diligenciamiento de los formatos establecidos para el seguimiento y control de los contratos y /o convenios asignados a la Dirección de Hidrocarburos | E19: Durante el primer trimestre de 2022, se dio cumplimieto a los lineameintos establecidos, dadas las verificaciones del diligenciamiento de los formatos establecidos para el seguimiento y control de los contratos y /o convenios asignados a la Dirección de Hidrocarburos
A20: DIRECCIÓN DE HIDROCARBUROS - FORMULACIÓN | B20: Posibilidad de afectación Reputacional por Incumplimiento a los lineamientos establecidos en la formulación de la regulación para el sector hidrocarburos debido a la pérdida de la información relacionada con la trazabilidad en la construcción de los actos administrativo | C20: EL profesional del Grupo Gestión de Proyectos y Optimización de la Dirección de Hidrocaarburos, verifica el cumplimieto de los lineamientos establecidos, validados a través de una lista de chequeo | D20: Durante el presente trimestre la Dirección de Hidrocarburos se ha venido cumpliendo cumplió los lineamientos establecidos para la formulación de la regulación, respecto de los temas del sector | E20: Durante el primer trimestre de 2022, se dio cumplimieto a los lineameintos establecidos, dadas las verificaciones del diligenciamiento de los formatos establecidos para el seguimiento y control de los contratos y /o convenios asignados a la Dirección de Hidrocarburos
A21: MINERÍA EMPRESARIAL SEGUIMIENTO | B21: Posibilidad de afectación Económico y Reputacional por Mala articulación en los procesos de contratación generando procesos ineficientes y sanciones al supervisor debido a seguimiento y aprobación inadecuado de los productos de los contratos y convenios | C21: El supervisor de los contratos y/o convenios de la Dirección de Mineria Empresarial realiza el control y seguimiento de los productos por medio informes de supervisión. | D21: Se estan terminando los ajustes a los informes de 2021 y estructurando los del primer trimestre de 2022 | E21: Se cuenta con procedimeinto este se encuentra en tramite de aprobación, se envia evidencia.
A22: MINERÍA EMPRESARIAL SEGUIMIENTO | B22: Posibilidad de afectación Reputacional por toma de malas desiciones frente a los proyectos estrategicos mineros debido a no utilización de información oficial de los proyectos mineros proporcionada por los titulares mineros para la gestion de las problematicas asociadas. | C22: El profesional de la Dirección de Mineria Empresarial realiza la validación, seguimiento y depuración de la información proporcionada de los proyectos mineros estrategicos priorizados a través de una matriz de seguimiento. | D22: Se estructuró la matriz de los productos del proyecto de inversión y se viene realizando la actualización de la de los productos de los contratos financiados con regalías | E22: Se realiza el seguimiento correspondiente de manera mensual al estado de productos de la DME
A23: MINERÍA EMPRESARIAL FORMULACIÓN | B23: Posibilidad de afectación Reputacional por mala imagen ante las partes interesadas debido a la desarticulación interinstitucional, la no divulgacion y la incompleta formulación de políticas, planes, programas, reglamentos, lineamientos sectoriales y actos administrativos. | C23: El profesional de la dirección de Mineria Empresarial asegura que en el proceso de formulación de las políticas, planes, programas, reglamentos, lineamientos sectoriales y actos administrativos participen todas las partes interesadas, que se divulgue en los tiempos establecidos y que cumplan con los requisitos y lineamientos a traves de mesas de trabajo, ayudas de memoria de reuniones, comunicaciones oficiales y/o listas de asistencia. | D23: Durante el primer trismestre se expidió la resolución 40109 de 2022, Por medio de la cual se establecen los lineamientos para el ejercicio de las actividades de conocimiento y cartografía geológica del subsuelo colombiano y se adoptan otras disposiciones, tambien se expidió el Decreto 179 de 2022, Por el cual se modifica un artículo a la Sección 1 y se adicionan otros a la Sección 2 del Capítulo 1 del Título V de la Parte 2 del Libro 2 del Decreto 1073 de 2015, Único Reglamentario del Sector Administrativo de Minas y Energía, en lo referente a requisitos y especificaciones de orden técnico-minero para la presentación de documentos relacionados con la minería | E23: Durante el segundo trimestre se expidió la resolución 40182 de 2022, actualizando los linemientos de fiscalización.
A24: MINERÍA EMPRESARIAL EJECUCIÓN | B24: Posibilidad de afectación Reputacional por Perdida de credibilidad y mala imagen ante el sector minero y personas interesadas debido a El incumplimiento de las metas estipuladas en el plan de acción de la presente vigencia | C24: El profesional de la dirección de Mineria Empresarial realiza de manera mensual seguimientos al plan de acción analizando la ejecución de las metas y llevando la trazabilidad del cumplimiento de los indicadores, a traves de memorias de reuniones, mesas de trabajo, y herramienta de seguimiento y control. | D24: Durante los tres primeros meses del año se ha realizado el seguimiento al plan de acción en las herramientas que se disponen para ello | E24: Se ha realizado el seguimiento mensual al plan de acción de acuerdo cn las metas contempladas en el mismo
A25: FORMALIZACIÓN MINERA - EJECUCIÓN | B25: Posibilidad de afectación Económico y Reputacional por atrasos en la ejecución de convenios y/o contratos de la Dirección de Formalización Minera debido a falta de controles a las obligación de la presentación de los informes de seguimiento. | C25: El profesional de la Dirección de Formalización Minera realizará seguimiento a los contratistas a traves de los informes de supervisión donde se evidencie el cumplimientode las actividades del contrato | D25: Se revisaron y remitieron 49 informes de los contratistas de la DFM. Se anexa una mestra de los informes el restante se pueden verificar en el sistema NEON y ARGO | E25: Se revisaron y remitieron 138 informes de los contratistas de la DFM. Se anexa una mestra de los informes el restante se pueden verificar en el sistema NEON y ARGO
A26: FORMALIZACIÓN MINERA - FORMULACIÓN | B26: Posibilidad de afectación Económico y Reputacional por expedir las normas sin los procedimientos técnicos y legales exigidos por el Ministerio debido a desconocimiento de los controles y el seguimiento del proceso | C26: El profesional de la Dirección de Formalización Minera realizará seguimiento a la agenda regulatoria con el fin de mantenerla actualizada e informará a través de la respectiva comunicación, la normatividad que se vaya expidiendo de acuerdo a la agenda regulatoria en la cual se encuentran priorizadas las pólitias públicas relacionadas con la Dirección de Formalización Minera y se lleva a cabo control de la formulación de las mismas | D26: No hay avance sobre el particular | E26: No hay avance sobre el particular
A27: FORMALIZACIÓN MINERA - SEGUIMIENTO | B27: Posibilidad de afectación Económico y Reputacional por atrasos en la liquidación de convenios y/o contratos de la Dirección de Formalización Minera debido a falta de apoyo jurídico y financiero de profesionales para las liquidaciones de acuerdo al orden cronologico de ejecución | C27: Contratar personal profesional de apoyo para la supervisión y liquidación de los convenios celebrados, adicionalmente contar con el apoyo jurídico y financiero de dos profesionales encargados de establecer un cronograma de liquidaciones de acuerdo al orden cronologico de ejecución | D27: Teniendo en cuenta que el levantamiento de la información se reliza por parte de algunos contratistas, esta matriz se comienza a elaborar una vez se contratan los profesionales y se asignan tareas. La infromación se está consolidando una vez se tenga completa se entregará la evidencia. | E27: A la fecha se han renitido para revisi´´on del GGC 5 convenios para liquidar.
A28: FORMALIZACIÓN MINERA - SEGUIMIENTO | B28: Posibilidad de afectación Económico y Reputacional por la no inclusión en el plan de acción del Viceministerio de Minas de las actividades para el cumplimiento de politicas, planes y programas de la Dirección de Formalización Minera debido a la falta de seguimiento a dichas actividades | C28: Inclusión en el plan de acción del Viceministerio de Minas de actividades para el cumplimiento de politicas, planes y programas de la DFM a tavés de la matriz de seguimiento de la DFM. | D28: Se formuló el Plan de Acción y se encuentra para revisión de la Viceministra. Una vez se cuente con la versión definitiva se entregará la evidencia | E28: Se revisó con la Viceminstra el Plan de Acción y se encuentra para cargue en el sistema de seguimiento.
A29: ENERGÍA ELÉCTRICA - EJECUCIÓN | B29: Posibilidad de afectación económico y reputacional por incumplimiento a las metas del Gobierno Nacional debido a insuficiencia de proyectos con viabilidad técnica y financiera, e insuficiencia de recursos para asiganar a proyectos | C29: El profesional del Grupo de Fondos, realiza mesas de trabajo con los entes territoriales operadores de red y otros estructuradores, para digulgar las diferentes fuentes de financiación (FAER, FAZNI, OCAD Paz, entre otros) con el fin de incentivar la estructuración y ajuste de proyectos para obtener concepto favorable en la viabilidad técnica y financiera yse evidenciará a través de actas de los comités, los oficios al Ipse y a la upme solicitando proyectos | D29: El Riesgo no se materializó, Los operadores de Red presentaron a la UPME proyectos para que se realice la evaluación tecnica y financiera los cuales buscan financiación a través de los Fondos, FAER y SGR, Igualmente en el mes de Enero se realizó comité CAFAER de aquellos proyectos con el concepto de Viabilidad tecnica y Financiera. Se adjuntan evidencias Listado de Proyectos Evaluados pos la UPME- acta CAFAER 60. | E29: Considerando que el mes de enero se realizó comité CAFER el seguimiento es igual al del primer trimestre, es decir no se materializó el riesgo, igualmente se realizó el concepto sectorial de proyectos que buscan ser financiados por el mecanismo de obras por Impuestos. se anexan los conceptos emitidos por DEE.
A30: ENERGÍA ELÉCTRICA SEGUIMIENTO | B30: Posibilidad de afectación económico y reputacional por multa, sanción y mala imagen institucional debido a Demora en envío de la información solicitada por los entes de control | C30: El profesional de la Dirección de energía eléctrica realiza seguimiento a los tiempos de respuesta en la información solicitada por los entes de control y otras entidades a través de una matriz de seguimiento | D30: Se realizo el seguimiento a las solicitudes de entes de control y otras entidades en total para el trimestre fueron 31, 2 no se respondieron a tiempo, es decir el 93.55% se respondió a tiempo | E30: Se realizo el seguimiento a las solicitudes de entes de control y otras entidades en total para el trimestre fueron 36, en donde 1 no se respondió a tiempo, es decir el 97.22% se respondió a tiempo
A31: ENERGÍA ELÉCTRICA SEGUIMIENTO | B31: Posibilidad de afectación económico y reputacional por retrasos en la entrada en operación de los proyectos financiados con los Fondos FAER y FAZNI y el Programa PRONE generando multas y mala imagen debido a incumplimiento en el cronograma de los contratos y convenios | C31: Los profesionales del Gurpo de Supervisión de la Dirección de Energía Eléctrica aplican los controles descritos en el procedimiento "SP-23" donde se realizan revisiones cruzadas en las áreas técnica, jurídica, financiera, contable y administrativa para evitar los atrasos y tomar acciones preventivas en caso de que se evidencie un posible atraso, lo cual se realizará a través de la matriz general de supervisión donde se evidencian todas las actuaciones hechas en virtud de la supervisión realizada | D31: Los profesionales del Grupo de Supervisión de la Dirección de Energía Eléctrica han aplicado los controles descritos en el procedimiento "SP-23" realizando revisiones cruzadas en las áreas técnica, jurídica, financiera, contable y administrativa para evitar los atrasos y tomar acciones preventivas en caso de que se evidencie un posible atraso, lo cual se realizará a través de la matriz general de supervisión donde se evidencian todas las actuaciones hechas en virtud de la supervisión realizada. Como soporte adjuntamos una muestra de informes. | E31: Los profesionales del Grupo de Supervisión de la Dirección de Energía Eléctrica han aplicado los controles descritos en el procedimiento "SP-23" realizando revisiones cruzadas en las áreas técnica, jurídica, financiera, contable y administrativa para evitar los atrasos y tomar acciones preventivas en caso de que se evidencie un posible atraso, lo cual se realizará a través de la matriz general de supervisión donde se evidencian todas las actuaciones hechas en virtud de la supervisión realizada. Como soporte adjuntamos una muestra de informes y la Matriz General con corte al 7 de julio de 2022
A32: ENERGÍA ELÉCTRICA SEGUIMIENTO | B32: Posibilidad de afectación reputacional por desconocimiento de las variables energeticas del sector electrico debido a la falta de revisión y de seguimiento de las caracteristicas del sistema energetico | C32: El profesional del Grupo de Gestión del sector, realiza la revisión y seguimiento de las caracteristicas del sector eléctrico a través de un informe mensual de seguimiento al monitoreo | D32: Se monitorea y se hace seguimiento a las variables energéticas del sistema eléctrico, presentando los informes periódicos que permiten informar e ilustrar el conocimiento a las variables y características del sistema energético, en dónde se ha demostrado la seguridad y confiabilidad energética en el mediano plazo, por lo que no se ha materializado el riesgo. Para tal fin, se adjuntan los informes para los meses de enero, febrero y marzo de 2022. | E32: Se monitorea y se hace seguimiento a las variables energéticas del sistema eléctrico, presentando los informes periódicos que permiten informar e ilustrar el conocimiento a las variables y características del sistema energético, en dónde se ha demostrado la seguridad y confiabilidad energética en el mediano plazo, por lo que no se ha materializado ningún riesgo. Para tal fin, se adjuntan los informes para los meses de abril y mayo de 2022
A33: ENERGÍA ELÉCTRICA SEGUIMIENTO | B33: Posibilidad de afectación económico y reputacional por baja ejecución en el presupuesto asignado para la vigencia debido a la no disposición oportuna y por ende la no presentación a Comité de proyectos de infraestructura con viabilidad técnica y financiera favorable; la no presentación de oferentes en los concursos de méritos publicados para consultorías en algunos proyectos y retraso en avance de los proyectos de infraestructura por agentes externos como por ejemplo factores contractuales, climáticos o de orden público. | C33: El profesional de la Dirección de energía eléctrica, realiza seguimiento a la ejecución presupuestal de los proyectos de inversión a través de un informe de seguimiento a la ejecución de los proyectos de inversión | D33: Se realizó seguimiento a la ejecución presupuestal de los proyectos de inversión de la Dirección de Energía, se adjunta informe de seguimiento a la ejecución de los proyectos de inversión 2022. En la presente vigencia la Dirección de Energía Eléctrica tiene a cargo nueve proyectos de Inversión, con una apropiación vigente 2022 de $2.644.233.527.301. Se ha realizado el seguimiento a la ejecución de los recursos comprometidos y obligados para cada uno de los proyectos. A cierre del primer trimestre 2022 se ejecutó (obligó) el 25.75%, equivalente a $680.892 millones de pesos, del total de recursos apropiados a los proyectos de inversión de la Dirección de Energía. Por otra parte, se comprometieron recursos en un 38,32% por $1.01 billones de pesos. | E33: Se realizó seguimiento a la ejecución presupuestal de los proyectos de inversión, se adjunta informe de seguimiento a la ejecución de los proyectos de inversión 2022.En la presente vigencia la Dirección de Energía Eléctrica tiene a cargo nueve proyectos de inversión, con una apropiación vigente 2022 de $2.644.233.527.301, estos son: FAER, FAZNI, PRONE, FSSRI, FOES, FENOGE, DEMANDA NO ATENDIDA, BRECHAS DE ENERGÍA Y REGLAMENTOS. De acuerdo a la información reportada en el sistema de Seguimiento a Proyectos de Inversión (SPI), se revisa el resultado de la mensual tanto de los recursos comprometidos como de los recursos obligados para cada uno de los proyectos. A cierre del segundo trimestre 2022 se ejecutó (obligó) el 58,40%, considerándose un nivel alto de ejecución de obligaciones y el cual equivalente a $ 1,54 billones de pesos, del total de recursos apropiados a los proyectos de inversión de la Dirección de Energía. Por otra parte, se comprometieron recursos en un 69.81%, considerándose un nivel alto de ejecución de compromisos y el cual equivale a $1.84 billones de pesos
A34: ENERGÍA ELÉCTRICA - EJECUCIÓN | B34: Posibilidad de afectación económico y reputacional por por multa y sancion del ente regulador debido a otorgamiento indebido de subsdios por el incumplimiento de algunos de los requisitos exigidos en la normatividad. | C34: El profesional del Grupo de Energìa Elèctrica, realizará seguimiento a la recepción de la información de consumos de energía de usuarios de areas especiales la cual se recepciona por medio de correo electrónico en las fechas establecidas en el cronograma, la evidencia es los correos electrónicos | D34: Se realizó el seguimiento a la información correspondiente a los reportes presentados por las empresas que recibieron giros por parte del FOES, con corte a 30 de Abril de 2022. Encontrándose que para los meses de Enero, Febrero y marzo todas las empresas enviaron la información por vía digital en la fecha establecida para tal fin. Por lo anterior, se concluye que no se materializo el riesgo en dicho periodo. | E34: Se realizó el seguimiento a la información correspondiente a los reportes presentados por las empresas que recibieron giros por parte del FOES, con corte a 30 de Junio de 2022. Encontrándose que para los meses de Abril, Mayo y Junio todas las empresas enviaron la información por vía digital en la fecha establecida para tal fin. Por lo anterior, se concluye que no se materializo el riesgo en dicho periodo.
A35: ENERGÍA ELÉCTRICA FORMULACIÓN | B35: Posibilidad de afectación reputacional por Mala imagen ante los regulados por no actualización de los reglamentos debido al incumplimiento de algunas etapas de buenas prácticas Reglamentarias Decretadas por Mincit, y de procedimientos al interior del Ministerio. | C35: El Coordinador del Grupo de Reglemantos Técnicos o su delegado, realizarán un seguimiento al avance de los reglamentos técnicos, el cual se realizará por medio de una matriz de seguimiento. | D35: Se adelantaron los procesos de contratación de nueve profesionales de apoyo para el cumplimiento de la actualización de los reglamentos, mediante los siguientes contratos: GGC-356-2022 Anderson Ferley Gómez Ramos,GGC-321-2022 Daniel Alejandro Leguizamon Gómez, Jairo Alejandro Rodríguez Niño, GGC-307-2022 Jenny Elizabeth Roa Barragan, GGC-166-2022 Juan Diego Villamil Laiton, GGC-296-2022 Robert Armando Aguilar Montilla, GGC-295-2022 Sandra Milena Arias Betancourth, GGC-209-2022 William Montaño Salamanca, GGC-292-2022 Yeimy Katherine Rodríguez Quintero | E35: "Se publicaron para consulta pública los proyectos de resolución ""Por la cual se expide el nuevo Reglamento Técnico de Instalaciones Eléctricas - RETIE"" y ""Por la cual se modifica el Reglamento Técnico de Iluminación y Alumbrado Público - RETILAP"" en la pagina web www.minenergia.gov.co en la sección foros en los siguientes enlaces: RETIE : https://www.minenergia.gov.co/foros?idForo=24336619&idLbl=Listado+de+Foros+de+Marzo+De+2022 RETILAP: https://www.minenergia.gov.co/foros?idForo=24336674&idLbl=Listado+de+Foros+de+Marzo+De+2022 Desde el 1 de marzo hasta el 8 de mayo de 2022, tiempo superior al tiempo normal de consulta teniendo en cuenta la extensión y relevancia de los documentos publicados. Desde la terminación del plazo de recepción de comentarios y hasta la fecha, el grupo de reglamentos técnicos se encuentra en etapa de revisión, análisis, atención de los comentarios y ajustes a los proyectos de resolución en mención de los comentarios recibidos los cuales corresponden a cerca de tres mil setecientos comentarios para el proyecto de resolución del RETIE y alrededor de dos mil doscientos para el de RETILAP, para un total aproximado de cinco mil novecientos comentarios. Adicionalmente se precisa que de forma posterior a la revisión de los comentarios y surtida esta etapa, el Grupo de Reglamentos Técnicos deberá continuar con las etapas de buenas prácticas regulatorias, dentro de las cuales se encuentran, entre otras, las siguientes: - Solicitud del concepto previo a la Dirección de Regulación del Ministerio de Comercio, Industria y Turismo, con el objetivo de recibir concepto sobre la posible potencialidad de constituir obstáculos técnicos innecesarios al comercio con otros países, en relación con el cumplimiento de los lineamientos del Subsistema Nacional de la Calidad. - Solicitud del concepto sobre abogacía de la competencia a la Delegatura para la Protección de la Competencia de la Superintendencia de Industria y Comercio, con la finalidad de recibir pronunciamiento sobre las posibles incidencias en la libre competencia económica. - Solicitud oficial de notificación internacional del proyecto de modificación de los reglamentos al Ministerio de Comercio Industria y Turismo, el cual se realizará en el formulario de notificación internacional mediante el sistema TBT NSS de la Organización Mundial del Comercio – OMC, con el fin de que actores e interesados del orden internacional presenten observaciones al proyecto de actualización del reglamento técnico. Esta información fue puesta a conocimiento de las partes interesadas a traves de comunicado con radicado 2-2022-013031 del 16 de junio de 2022"
A36: ENERGÍAS NO CONVENCIONALES Y ASUNTOS NUCLEARES - FORMULACIÓN | B36: Posibilidad de afectación Reputacional por el deterioro de la imagen del Ministerio ante las partes interesadas debido a Incumplimiento en la elaboración de las normas y la falta de regulación para el uso seguro de materiales nucleares y radiactivos | C36: El profesional del grupo GENCAN realiza un seguimiento al cumplimiento de las actividades programadas en la elaboración de los proyectos normativos para el uso seguro de los materiales nucleares y radiactivos, a traves de un cronograma anual, el cual sera validado por el GENCAN. | D36: Se adelantan discusiones con la OAJ sobre los Proyectos de Resolución para Importación/Exportación de Materiales Radiactivos y para Autorización a Empresas Prestadoras de Servicios de Dosimetría. | E36: Ante observaciones de la OAJ sobre la expedición del Proyecto de Resolución para la Autorización de Servicios de Dosimetría Personal, en fecha 25 de mayo el GAN dio respuesta soportando la competencia desde la órbita técnica, y solicitó aclarar si las funciones regulatorias están o no debidamente sustentadas. Hasta tanto se aclaren las posiciones con la OAJ, se podrá adelantar la expedición de las normas para Importación/Exportación de Materiales Radiactivos y para Autorización a Empresas Prestadoras de Servicios de Dosimetría.
A37: ENERGÍAS NO CONVENCIONALES Y ASUNTOS NUCLEARES - FORMULACIÓN | B37: Posibilidad de afectación Reputacional por baja cobertura en la divulgación de la política, lineamiento o reglamento debido a no usar los canales de comunicación con la ciudadanía | C37: El secretario ejecutivo de GENCAN comunica fecha y lugar de realización de la divulgación con suficiente antelación a los usuarios objeto de la norma, a través de oficios, correo electrónico y/o llamadas telefónicas, propendiendo por una mayor participación en el evento y la respectiva disponibilidad de recursos económicos. | D37: Para el primer trimestre de 2022, no está programada actividad de divulgación de normatividad. | E37: En razón a que la normatividad para autorización a empresas de dosimetría y para la importación y exportación de materiales radiactivos está en discusión con la OAJ, no se ha programado divulgación de tales normas.
A38: ENERGÍAS NO CONVENCIONALES Y ASUNTOS NUCLEARES EJECUCIÓN | B38: Posibilidad de afectación Reputacional por Informes de seguimiento a acuerdos y tratados internacionales en materia nuclear, presentados fuera de tiempo debido a omitir o retrasar la remisión de los informes a la OPGI con destino al Congreso de la República | C38: El Coordinador del Grupo de Trabajo, a través del informe de seguimiento a Acuerdos y Tratados Internacionales en materia nuclear, remite a la OPGI el resultado de las comunicación(es)/solicitud(es) realizadas a la(s) Entidad(es) responsable(s) de reportar información a Minenergía. | D38: El informe de cumplimiento de acuerdos y tratados internacionales, se remitió a la OPGI en fecha 16 de marzo. | E38: Los informes sobre cumplimiento de tratados y acuerdos internacionales en materia nuclear que se suministran a la OPGI con destino al Congreso de la República, se remiten en el primero y tercer trimestre del año. El primer informe fue enviado a OPGI en fecha 16 de marzo de 2022.
A39: ENERGÍAS NO CONVENCIONALES Y ASUNTOS NUCLEARES - SEGUIMIENTO | B39: Posibilidad de afectación Reputacional por Instalaciones nucleares o radiactivas, a cargo de Minenergía, sin control regulatorio debido a falta de gestión para la expedición o renovación de autorizaciones para el uso seguro de los materiales radiactivos | C39: El profesional de GENCAN, evalúa la solicitud o renovación de autorización, verificando el cumplimiento de los requisitos para el uso seguro de los materiales nucleares o radiactivos. A partir del proceso de verificación, se expide documento donde se decide sobre el otorgamiento o negación de la solicitud. | D39: Las instalaciones Nuclear y Radiactivas a cargo del MME se encuentran bajo control regulatorio. | E39: En fecha 1-jun-2022 se otorgó Licencia de Importación de material radiactivo al Laboratorio RQP. Todas las instalaciones Nuclear y Radiactivas a cargo del MME, cuentan con sus respectivas autorizaciones y se encuentran bajo control regulatorio.
A40: ENERGÍAS NO CONVENCIONALES Y ASUNTOS NUCLEARES - SEGUIMIENTO | B40: Posibilidad de afectación Reputacional por Incumplimiento del programa de inspecciones de vigilancia y control de instalaciones nucleares y radiactivas a cargo de Minenergía debido a eventos fortuitos, falta de tiempo o insuficiente personal ocupacionalmente expuesto con las competencias requeridas para desarrollar el programa de inspecciones | C40: El profesional de GENCAN, mediante cronograma anual de inspecciones de vigilancia y control de instalaciones nucleares y radiactivas a cargo de Minenergía, hace seguimiento a la programación de inspecciones con el fin de evitar incumplimiento. | D40: De acuerdo con el Plan de Acción 2022, se programaron inspecciones a partir del mes de mayo. Para el primer trimestre de 2022, no se programaron inspecciones a instalaciones nucleares y radiactivas. | E40: Durante el segundo trimestre de 2022, se llevaron a cabo inspecciones a la planta de irradiación gamma operada por el SGC y se adelantó visita de inspección a la firma Nuclear Service S.A. en el marco de atención a su solicitud para autorización de calibración de instrumentos para protección radiológica.
A41: ASUNTOS REGULATORIOS Y EMPRESARIALES - FORMULACIÓN | B41: Posibilidad de afectación Reputacional por mala imagen al Ministerio ante las partes interesadas debido a la mala formulación de políticas, planes, programas, reglamentos y lineamientos sectoriales que no promuevan el desarrollo sostenible del sector, no se realicen mediante los procesos definidos y no obedescan a los objetivos transformacionales. | C41: El profesional del OARE realiza seguimiento a la formulación de las policías que se encurten en formulación bajo criterio para el diseño, desarrollo y la caracterización del proceso de formulación y adopción de políticas, planes, programas, reglamentos y lineamientos sectoriales, a través de reuniones documentadas mediante actas. | D41: Basado en los criterios y bajo lineamiento de política, el equipo de política y los técnicos bajo el liderato del jefe de la OARE, se reúnen para realizar seguimiento a las políticas existentes y las que se encuentran en formulación, validando que la formulación y adopción de políticas, planes, programas, reglamentos y lineamientos sectoriales promuevan el desarrollo sostenible del sector minero energético y estén acordes con el proceso definido. | E41: conforme a los criterios y obedeciendo los lineamiento de política, el equipo de política y los técnicos, bajo el liderato del jefe de la OARE, se reúnen para realizar seguimiento a las políticas existentes y las que se encuentran en formulación, validando que la formulación y adopción de políticas, planes, programas, reglamentos y lineamientos sectoriales promuevan el desarrollo sostenible del sector minero energético y estén acordes con el proceso definido.
A42: ASUNTOS REGULATORIOS Y EMPRESARIALES - FORMULACIÓN | B42: Posibilidad de afectación Reputacional por mala imagen al Ministerio ante las partes interesadas debido a el no cumplimineto a la formulación de política planeada | C42: El profesional de la OARE consulta permanente del plan de acción anual y la agenda regulatoria para evaluar si se están cumpliendo las metas propuestas a través de reuniones de seguimiento | D42: Con el fin de dar cumplimiento al cumplimento efectivo del plan de acción y la agenda regulatorio, el profesional de la oficina encargado del tema se reúne con el jefe de la OARE una vez al mes para verificar el cumplimento de las misma. | E42: dando un cumplimiento efectivo al plan de acción y la agenda regulatorio, el profesional de la oficina encargado del tema se reúne con el jefe de la OARE una vez al mes para verificar el cumplimento de las misma.
A43: ASUNTOS REGULATORIOS Y EMPRESARIALES - SEGUIMIENTO | B43: Posibilidad de afectación Reputacional por mala imagen del Ministerio ante las partes interesadas debido a no realizar el seguimiento, la vigilancia y el control a las políticas, proyectos y reglamentos en ejecución. | C43: El profesional de la OARE realiza seguimiento, vigilancia y control a las políticas, proyectos y reglamentos en ejecución. | D43: El profesional de laOARE encargado del seguimiento realiza seguimiento, vigilancia y control a las políticas, proyectos y reglamentos en ejecución, envía informes al jefe de oficina informado los proyectos normativos emitidos por el Ministerio de Minas y Energía y los que tienen que ver con la agenda regulatoria de la CREG y a su vez la verificación del cumplimiento de la agenda regulatoria. | E43: se realizan los respestivos seguimientos de vigilancia y control a las políticas, proyectos y reglamentos en ejecución, informado al jefe de oficina los proyectos normativos emitidos por el Ministerio de Minas y Energía y los que tienen que ver con la agenda regulatoria de la CREG y a su vez la verificación del cumplimiento de la agenda regulatoria.
A44: ASUNTOS REGULATORIOS Y EMPRESARIALES - SEGUIMIENTO | B44: Posibilidad de afectación Reputacional por mala imagen al Ministerio ante las partes interesadas debido a enviar información errónea en el informe para esesorar al ministro y viceministro en su intervención en las sesiones CREG. | C44: Realizar las actividades establecidas en el procedimiento para el análisis y seguimiento de los proyectos regulatorios desarrollados por la CREG, con el fin de garantizar la entrega oportuna de la información a la alta dirección | D44: El profesional de la OARE asiste a reuniones pre-creg en la cuales se realiza la revisión del cumplimiento de la agenda regulatoria de la CREG, y luego envía un informe (confidencial) al jefe de la oficina el cual el remite al Ministro y Viceministro acerca del cumplimiento de la misma, de acuerdo a los resultados de las sesiones PRECREG en las que se validen el seguimiento de los proyectos regulatorios desarrollados por la CREG acorde con el procedimiento definido. | E44: los delegados por el Jefe de la OARE asisten a reuniones pre-creg en la cuales se realiza la revisión del cumplimiento de la agenda regulatoria de la CREG, los cuales le envía un informe (confidencial) al jefe de la oficina el cual el remite al Ministro y Viceministro acerca del cumplimiento de la misma, de acuerdo a los resultados de las sesiones PRECREG en las que se validen el seguimiento de los proyectos regulatorios desarrollados por la CREG acorde con el procedimiento definido.
A45: GRUPO DE EJECUCIÓN ESTRATEGICA DEL SECTOR EXTRACTIVO - EJECUCIÓN | B45: Posibilidad de afectación Reputacional por Por falta de seguimiento del equipo GEESE. debido a No se realizan mesas de seguimiento que permitan evidenciar el avance y terminación de los proyectos que se traducen en nuevos usuarios de energía eléctrica para su oportuno reporte. | C45: El grupo técnico del GEESE realizará mesas de seguimiento, así como llamadas y visitas a través de las cuales pueda evidenciar el avance y terminación de los proyectos que se traducen en nuevos usuarios de energía eléctrica para su oportuno reporte. | D45: Durante el primer trimestre del año 2022 el GEESE realizó 15 mesas técnicas con las entidades territorial y las entidades adscritas al Ministerio que apoyan esta función (IPSE y UPME), con el fin de hacer seguimiento, aclarar las dudas que se tengan y revisar el avance que permita terminar los proyectos que se traducen en nuevos usuarios de energía eléctrica. | E45: Durante el segundo trimestre del año 2022 se controló el riesgo, lo anterior, con la realización de 21 mesas técnicas con las entidades territoriales y adscritas al Ministerio que apoyan esta función (IPSE y UPME), con el fin de hacer seguimiento, aclarar las dudas que se tengan y revisar el avance que permita terminar los proyectos que se traducen en nuevos usuarios de energía eléctrica.
